Workbook

Sheet INICIO
A42: Herramienta de planificación y presupuestación para las pruebas de la tuberculosis y de la tuberculosis farmacorresistente
A44: Herramienta de cálculo, versión 2
A50: OPS/CDE/HT/22-0011
A51: © Organización Panamericana de la Salud, 2022. Algunos derechos reservados. Esta obra está disponible en virtud de la licencia CC BY-NC-SA 3.0 IGO.

Sheet Introducción e instrucciones
A1: Herramienta de presupuestación del material fungible para el diagnóstico de la tuberculosis, versión 2.0
A3: Esta herramienta ha sido diseñada para facilitar el cálculo sistemático de las cantidades y los costos de los productos para los países que planean encargar productos de diagnóstico e insumos de laboratorio del catálogo del Servicio Farmacéutico Mundial (GDF). Para usar la herramienta, siga los pasos que se indican a continuación.
A5: Paso 1: Seleccione las pruebas o el material fungible para los que quiera una proyección (selecciónelos en la lista desplegable).
A6: LAM | B6: Sí | C6: <=Elija aquí
A7: Prueba Truenat | B7: Sí | C7: <=Elija aquí
A8: TB-LAMP | B8: Sí | C8: <=Elija aquí
A9: Prueba Xpert MTB/RIF Ultra | B9: Sí | C9: <=Elija aquí
A10: Microscopía de Ziehl-Neelsen | B10: Sí | C10: <=Elija aquí | N10: Sí | O10: No
A11: Microscopía de fluorescencia con diodos emisores de luz | B11: Sí | C11: <=Elija aquí
A12: Prueba Xpert MTB/XDR | B12: Sí | C12: <=Elija aquí
A13: LPA para medicamentos de primera línea | B13: Sí | C13: <=Elija aquí
A14: LPA para medicamentos de segunda línea | B14: Sí | C14: <=Elija aquí
A15: Prueba MAX MDR-TB | B15: Sí | C15: <=Elija aquí
A16: FluoroType MTBDR Ver 2.0 | B16: Sí | C16: <=Elija aquí
A17: MTB y MTB-RIF/INH de Cobas® | B17: Sí | C17: <=Elija aquí
A18: RT MTB y MTB RIF/INH de Abbott | B18: Sí | C18: <=Elija aquí
A19: Procesamiento y cultivo en medios sólidos y líquidos | B19: Sí | C19: <=Elija aquí
A20: Identificación de micobacterias | B20: Sí | C20: <=Elija aquí
A21: Prueba de Lowenstein-Jensen de la resistencia a medicamentos de primera línea | B21: Sí | C21: <=Elija aquí
A22: Prueba de Lowenstein-Jensen de la resistencia a medicamentos de segunda línea | B22: Sí | C22: <=Elija aquí
A23: Prueba de la resistencia a medicamentos de primera línea con tubo indicador del crecimiento de micobacterias (MGIT) | B23: Sí | C23: <=Elija aquí
A24: Prueba de la resistencia a medicamentos de segunda línea con tubo indicador del crecimiento de micobacterias (MGIT) | B24: Sí | C24: <=Elija aquí
A25: Bioseguridad y limpieza | B25: Sí | C25: <=Elija aquí
A26: Mantenimiento y reparaciones | B26: Sí | C26: <=Elija aquí
A28: Paso 2 : Indique el año para el que desee la proyección.
A32: Paso 3 : Defina el período abarcado por la proyección (en meses).
A36: Paso 4 : Compile la información epidemiológica.
A40: Paso 5 : Use el método de proyección basado en el consumo o la morbilidad para cada prueba de diagnóstico seleccionada.

Sheet Características epidemiológicas
A1: Características epidemiológicas para el cálculo de proyecciones basadas en la morbilidad
A2: Los valores en rojo deben introducirse o ajustarse de acuerdo con los datos y las prácticas reales del país, cuando sea posible.
A3: Características epidemiológicas de la TB
A4: Pulmonar, con confirmación bacteriológica | B4: Casos nuevos: | C4: 0 | D4: Recaídas: | E4: 0
A5: Pulmonar, con diagnóstico clínico | B5: Casos nuevos: | C5: 0 | D5: Recaídas: | E5: 0
A6: Extrapulmonar | B6: Casos nuevos: | C6: 0 | D6: Recaídas: | E6: 0
A7: Total de casos nuevos notificados | C7: =SUM(C4:C6) -> 0 | D7: Total de recaídas notificadas | E7: =SUM(E4:E6) -> 0
A8: Casos tratados anteriormente, excluidas las recaídas | B8: 0
A9: Total de casos notificados | B9: =SUM(C4:C6,E4:E6,B8) -> 0
A10: Casos de tuberculosis en niños (%) | B10: 0 | D10: Casos de tuberculosis en adultos (%): | E10: 0
A11: Casos de tuberculosis en personas VIH-positivas (%) | B11: 0 | D11: Casos VIH-negativos o cuya situación con respecto al VIH no se conoce (%): | E11: 0
A12: Número de personas VIH-positivas que reciben atención | B12: 0
A13: Número de casos nuevos VIH-positivos notificados (al año) | B13: 0
A14: Número de casos de tuberculosis RR/MDR que se prevé que se detectarán durante el año | B14: 0
A15: Premisas fundamentales
A16: Porcentaje de casos de tuberculosis monorresistente a la isoniazida que son recaídas o que han sido tratados anteriormente | B16: 0
A17: Proporción de personas con signos y síntomas de TB que tienen antecedentes de tratamiento eficaz: casos de recaída notificados | B17: 0 | D17: Proporción de contactos por caso notificado de tuberculosis resistente a la rifampicina | E17: 0
A18: Proporción de personas con signos y síntomas de TB: 1 caso notificado confirmado bacteriológicamente (o con frotis positivo) | B18: 0
A19: Supuestos sobre el VIH
A20: Número promedio de veces al año que se somete a cada persona con la infección por el VIH a un examen clínico para la detección de la tuberculosis | B20: 0 | D20: Porcentaje de personas con la infección por el VIH que tenían signos y síntomas de TB cuando se les hizo el examen | E20: 0
D21: Porcentaje de personas con la infección por el VIH gravamente enfermas o con CD4 < 200 que tenían signos y síntomas de TB cuando se les hizo el examen | E21: 0
D22: Porcentaje de personas con la infección por el VIH gravemente enfermas o con CD4 < 200 | E22: 0.15
D23: Porcentaje de personas con la infección por el VIH gravamente enfermas o con CD4 < 100 que tenían signos y síntomas de TB cuando se les hizo el examen | E23: 0.3
D24: Porcentaje de personas con la infección por el VIH gravemente enfermas o con CD4 < 100 | E24: 0.1
A25: Supuestos relacionados con los niños
A26: Proporción de niños con signos y síntomas de TB: casos notificados de niños con TB | B26: 0
A32: Paso 4: Navegue hasta las hojas que figuran a continuación y use proyecciones basadas en el consumo o en la morbilidad para cada prueba de diagnóstico seleccionada.

Sheet LAM
A1: LAM: Se proponen dos métodos para calcular el número previsto de pruebas que se realizarán durante el período.
B2: Los valores en rojo deben introducirse o ajustarse de acuerdo con los datos y las prácticas reales del país, cuando sea posible.
B4: Método 1: Proyección basada en el consumo. El número previsto de pruebas se basa en el número de pruebas utilizadas por mes, en promedio. | E4: Método 2: Proyección basada en la morbilidad. El número estimado de pruebas se basa en datos epidemiológicos (casos notificados) y algoritmos planificados. La suma calculada es el objetivo que se debe alcanzar cuando se usan algoritmos de acuerdo con la cobertura y los supuestos indicados.
B5: Número promedio de pruebas LAM realizadas por mes | C5: 0 | E5: Población de pacientes | F5: Cobertura de las pruebas | G5: Número de pruebas LAM para el período
B6: Número de pruebas LAM realizadas durante el período | C6: =C5*Months -> 0 | E6: Personas con infección por el VIH que tienen signos y síntomas de TB | F6: 0 | G6: =ROUND(('Características epidemiológicas'!B12*F6*'Características epidemiológicas'!B20*'Características epidemiológicas'!E20),-2) -> 0
E7: Personas con infección por el VIH gravemente enfermas o con CD4 < 200 | F7: 0 | G7: =ROUND(('Características epidemiológicas'!B12+'Características epidemiológicas'!B13)*F7*'Características epidemiológicas'!B20*'Características epidemiológicas'!E21,-2) -> 0
E8: Personas con la infección por el VIH gravemente enfermas o con CD4 < 100 | F8: 1 | G8: =ROUND(('Características epidemiológicas'!B12+'Características epidemiológicas'!B13)*F8*'Características epidemiológicas'!B20*'Características epidemiológicas'!E23*'Características epidemiológicas'!E24,-2) -> 0
E9: Número total de LAM para el período | G9: =SUM(G6:G8) -> 0 | P9: ='Características epidemiológicas'!E11*'Características epidemiológicas'!E10*'Características epidemiológicas'!C4 -> 0 | Q9: Adultos VIH+ y Bac+
P13: ='Características epidemiológicas'!C7*'Características epidemiológicas'!B10 -> 0 | Q13: Niños
B14: Cantidades de productos LAM que se deben encargar
B15: Número total de pruebas LAM realizadas durante el período (calculado con el método de proyección 1 o 2 o un valor intermedio) | C15: 0
B16: Suministro actual | C16: 0
B17: Número total de pruebas LAM requeridas durante el período | C17: =C15 -> 0
B18: Número total de pruebas LAM que se deben encargar | C18: =C15-C16 -> 0
A20: Código GDF | B20: ARTÍCULOS | C20: Unidades por paquete | D20: Necesarias por prueba | E20: Número de paquetes que se deben encargar | F20: Costo por unidad (US$) | G20: Detalles del cálculo
A21: 106749 | B21: Pruebas de determinación del antígeno LAM | C21: 25 | D21: 1 | E21: =ROUNDUP((D21/C21*C18),0) -> 0 | F21: 92.5
A22: 106525 | B22: Recipientes de esputo | C22: 1000 | D22: 1 | E22: =ROUNDUP((D22/C22*C18),0) -> 0 | F22: 83.3 | G22: Para recolectar orina
A23: 106388 | B23: Puntas de filtro para pipeta estériles, 5-100 μL | C23: 960 | D23: 1 | E23: =ROUNDUP((D23/C23*C18),0) -> 0 | F23: 61 | G23: Para administrar 60 μL, adecuadas para pipetas de un canal; varían de 20 a 200 μL
B25: Resumen | C25: Costo (US$)
B26: Costo total de los productos para pruebas LAM | C26: =SUMPRODUCT(E21:E23,F21:F23) -> 0
B27: Costo por muestra analizada | C27: =IF(C18=0,"",(C26/C18)) -> 

Sheet Truenat
B1: Prueba Truenat: Se proponen dos métodos para calcular el número previsto de pruebas que se realizarán durante el período.
B2: Los valores en rojo deben introducirse o ajustarse de acuerdo con los datos y las prácticas reales del país, cuando sea posible.
B3: Número de pruebas realizadas el año pasado | C3: 0
B5: Método 1: Proyección basada en el consumo. El número previsto de pruebas se basa en el uso diario promedio de cada módulo. | E5: Método 2: Proyección basada en la morbilidad. El número estimado de pruebas se basa en datos epidemiológicos (casos notificados) y algoritmos planificados. La suma calculada es el objetivo que se debe alcanzar cuando se usan algoritmos de acuerdo con la cobertura y los supuestos indicados. La cobertura predeterminada que se indica a continuación corresponde a un algoritmo de Truenat para todos (cobertura de 100% de todos los grupos de pacientes)
B6: Número de analizadores Truelab (modelo Uno) | C6: 0 | E6: Población de pacientes | F6: Cobertura de las pruebas | G6: Número de pruebas Truenat requeridas para el período
B7: Número de analizadores Truelab (modelo Duo) | C7: 0 | E7: Personas con infección por el VIH que tienen signos y síntomas de TB | F7: 0 | G7: =ROUND((F7*'Características epidemiológicas'!B12*'Características epidemiológicas'!B20*'Características epidemiológicas'!E20),-2) -> 0
B8: Número de analizadores Truelab (modelo Quattro) | C8: 0 | E8: Niños con signos y síntomas de TB | F8: 0 | G8: =ROUND(F8*'Características epidemiológicas'!B9*'Características epidemiológicas'!B10*'Características epidemiológicas'!B26, -2) -> 0
B9: Número total de puertos con chips | C9: =(C6*1)+(C7*2)+(C8*4) -> 0 | E9: Personas en riesgo de tuberculosis farmacorresistente | F9: 0 | G9: =ROUND(F9*('Características epidemiológicas'!E7*'Características epidemiológicas'!B17)+'Características epidemiológicas'!B8+('Características epidemiológicas'!B14*'Características epidemiológicas'!E17), -2) -> 0 | AA9: Número de dispositivos Truepep | AB9: 1 | AF9: Número de dispositivos Truepep | AG9: 1 | AJ9: Número de dispositivos Truepep | AK9: 2
B10: Número de días laborables por año | C10: 0 | E10: Adultos VIH-negativos que no habían tratados previamente y que presentan signos y síntomas de TB | F10: 0 | G10: =ROUND(F10*'Características epidemiológicas'!E11*'Características epidemiológicas'!E10*'Características epidemiológicas'!C4*'Características epidemiológicas'!B18,-2) -> 0 | S10: ='Características epidemiológicas'!B9*'Características epidemiológicas'!B10 -> 0 | T10: Niños | AA10: Número de analizadores Truelab (modelo Uno) | AB10: 1 | AF10: Número de analizadores Truelab (modelo Duo) | AG10: 1 | AJ10: Número de analizadores Truelab (modelo Quattro) | AK10: 1
B11: Número promedio de puertos con chips utilizados por día | C11: 0 | E11: Casos nuevos de TB con frotis positivo a quienes se les administró la prueba Truenat para detectar la resistencia a la rifampicina (excluidos aquellos a quienes se les administró esta prueba para el diagnóstico inicial) | F11: 0 | G11: =ROUND('Características epidemiológicas'!C7-(('Características epidemiológicas'!B9*'Características epidemiológicas'!B10)+('Características epidemiológicas'!E7+'Características epidemiológicas'!B8+'Características epidemiológicas'!B14)+('Características epidemiológicas'!E11*'Características epidemiológicas'!E10*'Características epidemiológicas'!C4)+('Características epidemiológicas'!C7*'Características epidemiológicas'!B10)),-2)*F11 -> 0 | S11: ='Características epidemiológicas'!E7+'Características epidemiológicas'!B8+'Características epidemiológicas'!B14 -> 0 | T11: Recaídas de tuberculosis resistente a la rifampicina y multirresistente | AB11: =IF(AB9=1,IF(AB10=1,(8),0),0) -> 8 | AG11: =IF(AG9=1,IF(AG10=1,(17),0),0) -> 17 | AK11: =IF(AK9=2,IF(AK10=1,(33),0),0) -> 33
B12: Número de pruebas Truenat requeridas para el período | C12: =C9*C10*C11 -> 0 | E12: Número total de cartuchos para pruebas Truenat necesarios para el período | G12: =SUM(G7:G11) -> 0 | S12: ='Características epidemiológicas'!E11*'Características epidemiológicas'!E10*'Características epidemiológicas'!C4 -> 0 | T12: Adultos VIH+ y Bac+
S16: ='Características epidemiológicas'!C7*'Características epidemiológicas'!B10 -> 0 | T16: Niños
B17: Cantidades de productos Truenat que se deben encargar
B18: Número de pruebas Truenat requeridas para el período (calculado con el método de proyección 1 o 2 o un valor intermedio) | C18: 0
B19: Porcentaje de "no válido", "error" o "ningún resultado" | C19: 0
B20: Suministro actual | C20: 0
B21: Número total de pruebas Truenat requeridas para el período | C21: 0
B22: Número total de pruebas Truenat que se deben encargar | C22: =((C18*C19)+C18)-C20 -> 0
B23: Free Truenat MTB Rif | C23: =(C22/100)*20 -> 0
A26: Código GDF | B26: Artículo | C26: Unidades por paquete | D26: Número de paquetes que se deben encargar | E26: Costo por unidad (US$) | F26: Observaciones
A27: 106697 | B27: Truenat MTB Plus | C27: 50 | D27: =ROUNDUP((C22/C27),0) -> 0 | E27: 450 | F27: Viene también en paquetes de 5 y 20 unidades
A28: 106700 | B28: Truenat MTB Rif | C28: 50 | D28: 0 | E28: 400 | F28: Pruebas adicionales Truenat MTB Rif; vienen también en paquetes de 5 y 20 unidades
B30: Resumen | C30: Costo (US$)
B31: Costo total de los productos Truenat | C31: =SUMPRODUCT(D27:D28,E27:E28) -> 0

Sheet TB-LAMP
A1: TB-LAMP: Se proponen dos métodos para calcular el número previsto de pruebas que se realizarán durante el período.
B2: Los valores en rojo deben introducirse o ajustarse de acuerdo con los datos y las prácticas reales del país, cuando sea posible.
B4: Método 1: Proyección basada en el consumo. El número previsto de pruebas se basa en el número de pruebas realizadas el año pasado. | E4: Método 2: Proyección basada en la morbilidad. El número estimado de pruebas se basa en datos epidemiológicos (casos notificados) y algoritmos planificados. La suma calculada es el objetivo que se debe alcanzar cuando se usan algoritmos de acuerdo con la cobertura y los supuestos indicados.
B5: Número promedio de pruebas TB-LAMP realizadas por mes | C5: 0 | E5: Población de pacientes | F5: Cobertura de las pruebas | G5: Número de pruebas TB-LAMP requeridas para el período
B6: Número de pruebas TB-LAMP requeridas para el período | C6: =C5*Months -> 0 | E6: Niños con signos y síntomas de TB | F6: 0 | G6: =ROUND(('Características epidemiológicas'!B12*'Características epidemiológicas'!B20*'Características epidemiológicas'!E20)+('Características epidemiológicas'!B9*'Características epidemiológicas'!B10*'Características epidemiológicas'!B26)+('Características epidemiológicas'!E7*'Características epidemiológicas'!B17)+'Características epidemiológicas'!B8+('Características epidemiológicas'!B14*'Características epidemiológicas'!E17)+('Características epidemiológicas'!E11*'Características epidemiológicas'!E10*'Características epidemiológicas'!C4*'Características epidemiológicas'!B18)+('Características epidemiológicas'!C7-(('Características epidemiológicas'!B9*'Características epidemiológicas'!B10)+('Características epidemiológicas'!E7+'Características epidemiológicas'!B8+'Características epidemiológicas'!B14)+('Características epidemiológicas'!E11*'Características epidemiológicas'!E10*'Características epidemiológicas'!C4)+('Características epidemiológicas'!C7*'Características epidemiológicas'!B10))),-2)*F6 -> 0
B12: Número de lotes utilizados por día | C12: 0 | D12: Ponga el número apropiado según el consumo anterior. El número predeterminado se basa en pruebas de máxima eficiencia (14 muestras por lote y cinco ciclos de pruebas por día)
B13: Número de muestras por lote | C13: 0
B14: Número de controles por lote | C14: 0 | S14: =SUM(S7:S9) -> 0
B15: Número de pruebas TB-LAMP requeridas para el período (calculado con el método de proyección 1 o 2 o un valor intermedio) | C15: 0
B16: Tamaño promedio de un lote | C16: =C13+C14 -> 0
B17: Número de lotes necesarios para el período | C17: =IF(C13=0,0,(C15/C13)) -> 0
B18: Suministro actual | C18: 0
B19: Número total de pruebas TB-LAMP requeridas para el período (muestras y controles) | C19: =(C17*C16) -> 0
B20: Número total de pruebas TB-LAMP que se deben encargar (muestras y controles) | C20: =(IF(C18=0,(C17*C16),(C17*C16)-C18)) -> 0
A22: Código GDF | B22: Artículo | C22: Unidades por paquete | D22: Necesarias por prueba | E22: Número de paquetes que se deben encargar | F22: Costo por unidad (US$) | G22: Detalles del cálculo
A23: 106634 | B23: Kits de detección Loopamp MTBC (2 x 48 pruebas) | C23: 96 | D23: 1.14 | E23: =ROUNDUP((D23/C23*C20),0) -> 0 | F23: 219 | G23: Un kit de detección con 96 pruebas contiene suficientes reactivos para 6 ciclos de 84 muestras de pacientes más 6 controles negativos y 6 positivos.
A24: 106635 | B24: Kit de extracción de ADN Loopamp PURE (90 pruebas) | C24: 90 | D24: 1.07 | E24: =ROUNDUP((D24/C24*C20),0) -> 0 | F24: 275 | G24: Un kit de extracción con 90 pruebas contiene suficientes reactivos para 6 ciclos de 84 muestras de pacientes más 6 controles negativos y 6 positivos.
A25: 106643 | B25: Pipette-60 Set para TB-LAMP (4 x 96 pruebas) | C25: 384 | D25: 1 | E25: =ROUNDUP((D25/C25*C20),0) -> 0 | F25: 42
B27: Resumen | C27: Costo (US$)
B28: Costo total de los productos para pruebas TB-LAMP | C28: =SUMPRODUCT(E23:E25,F23:F25) -> 0
B29: Costo por muestra analizada | C29: =IF(C20=0,"",(C28/C20)) ->  | D29: El costo de los reactivos y el material fungible por muestra depende del tamaño del lote del ciclo. Si se trabaja solo con la máxima eficiencia (14 muestras por lote y cinco ciclos de pruebas por día), el costo es de US$ 6 por muestra.

Sheet Xpert MTB RIF Ultra
A1: Prueba Xpert MTB/RIF: Se proponen dos métodos para calcular el número previsto de pruebas que se realizarán durante el período.
B2: Los valores en rojo deben introducirse o ajustarse de acuerdo con los datos y las prácticas reales del país, cuando sea posible.
B3: Número de pruebas realizadas el año pasado | C3: 0
B5: Método 1: Proyección basada en el consumo. El número previsto de pruebas se basa en el uso diario promedio de cada módulo. | E5: Método 2: Proyección basada en la morbilidad. El número estimado de pruebas se basa en datos epidemiológicos (casos notificados) y algoritmos planificados. La suma calculada es el objetivo que se debe alcanzar cuando se usan algoritmos de acuerdo con la cobertura y los supuestos indicados. La cobertura predeterminada que se indica a continuación corresponde a un algoritmo de Xpert para todos (cobertura de 100% de todos los grupos de pacientes)
B6: Número de módulos de instrumentos que hay en el país | C6: 0 | E6: Población de pacientes | F6: Cobertura de las pruebas | G6: Número de pruebas Xpert MTB/RIF requeridas para el período
B7: Número de días laborables por año | C7: 0 | E7: Personas con infección por el VIH que tienen signos y síntomas de TB | F7: 0 | G7: =ROUND((F7*'Características epidemiológicas'!B12*'Características epidemiológicas'!B20*'Características epidemiológicas'!E20),-2) -> 0
B8: Número promedio de pruebas Xpert MTB/RIF realizadas por módulo al día | C8: 0 | E8: Niños con signos y síntomas de TB | F8: 0 | G8: =ROUND(F8*'Características epidemiológicas'!B9*'Características epidemiológicas'!B10*'Características epidemiológicas'!B26, -2) -> 0
B9: Número de pruebas Xpert MTB/RIF Ultra requeridas para el período | C9: =C6*C7*C8 -> 0 | E9: Personas en riesgo de tuberculosis farmacorresistente | F9: 0 | G9: =ROUND(F9*('Características epidemiológicas'!E7*'Características epidemiológicas'!B17)+'Características epidemiológicas'!B8+('Características epidemiológicas'!B14*'Características epidemiológicas'!E17), -2) -> 0
E10: Adultos VIH-negativos que no habían tratados previamente y que presentan signos y síntomas de TB | F10: 0 | G10: =ROUND(F10*'Características epidemiológicas'!E11*'Características epidemiológicas'!E10*'Características epidemiológicas'!C4*'Características epidemiológicas'!B18,-2) -> 0 | S10: ='Características epidemiológicas'!B9*'Características epidemiológicas'!B10 -> 0 | T10: Niños
E11: Casos nuevos de TB con frotis positivo a quienes se les administró la prueba Xpert para detectar la resistencia a la rifampicina (excluidos aquellos a quienes se les administró esta prueba para el diagnóstico inicial) | F11: 0 | G11: =ROUND('Características epidemiológicas'!C7-(('Características epidemiológicas'!B9*'Características epidemiológicas'!B10)+('Características epidemiológicas'!E7+'Características epidemiológicas'!B8+'Características epidemiológicas'!B14)+('Características epidemiológicas'!E11*'Características epidemiológicas'!E10*'Características epidemiológicas'!C4)+('Características epidemiológicas'!C7*'Características epidemiológicas'!B10)),-2)*F11 -> 0 | S11: ='Características epidemiológicas'!E7+'Características epidemiológicas'!B8+'Características epidemiológicas'!B14 -> 0 | T11: Recaídas de tuberculosis resistente a la rifampicina y multirresistente
E12: Número total de cartuchos Xpert MTB/RIF Ultra necesarios para el período | G12: =SUM(G7:G11) -> 0 | S12: ='Características epidemiológicas'!E11*'Características epidemiológicas'!E10*'Características epidemiológicas'!C4 -> 0 | T12: Adultos VIH+ y Bac+
S16: ='Características epidemiológicas'!C7*'Características epidemiológicas'!B10 -> 0 | T16: Niños
B17: Cantidades de productos Xpert MTB/RIF Ultra que se deben encargar
B18: Número de cartuchos Xpert MTB/RIF necesarios para el período (calculado con el método de proyección 1 o 2 o un valor intermedio) | C18: 0
B19: Porcentaje de "no válido", "error" o "ningún resultado" | C19: 0
B20: Suministro actual | C20: 0
B21: Número total de cartuchos Xpert MTB/RIF necesarios para el período | C21: =((C18*C19)+C18) -> 0
B22: Número total de cartuchos Xpert MTB/RIF que se deben encargar | C22: =((C18*C19)+C18)-C20 -> 0
A24: Código GDF | B24: Artículo | C24: Unidades por paquete | D24: Número de paquetes que se deben encargar | E24: Costo por unidad (US$) | F24: Detalles del cálculo
A25: CGXMTB-RIF-50 | B25: Cartuchos Xpert MTB/RIF | C25: 50 | D25: =ROUNDUP((C22/C25),0) -> 0 | E25: 499
A26: 106340 | B26: Tubos de plástico estéril para centrífuga, 50 ml | C26: 500 | D26: 0 | E26: 45 | F26: Si usa recipientes de esputo normales, ponga "0" para "Número de paquetes que se deben encargar"
A27: 106525 | B27: Recipientes de esputo, paquete de 1000 | C27: 1000 | D27: =ROUNDUP(((C22*1.1)/C27),0) -> 0 | E27: 83.3
B29: Resumen | C29: Costo (US$)
B30: Costo total de los productos Xpert MTB Rif Ultra | C30: =SUMPRODUCT(D25:D27,E25:E27) -> 0

Sheet Microscopía ZN
A1: Microscopía de frotis con tinción de Ziehl-Neelsen (ZN): Se proponen dos métodos para calcular el número previsto de pruebas que se realizarán durante el período.
B2: Los valores en rojo deben introducirse o ajustarse de acuerdo con los datos y las prácticas reales del país, cuando sea posible.
B4: Método 1: Proyección basada en el consumo. El número previsto de pruebas se basa en el número de pruebas realizadas el año pasado.
B5: Número de frotis realizados para el diagnóstico o el seguimiento del tratamiento | C5: 0 | D5: Los países que están reemplazando la microscopía con una prueba molecular rápida pueden prever menos frotis para el diagnóstico.
B6: Número de frotis de cultivos | C6: ='Proces+cultivo (sól. y líq.)'!F21*'Proces+cultivo (sól. y líq.)'!F19 -> 0
B7: Suministro actual | C7: 0
B8: Número de pruebas de Ziehl-Neelsen requeridas para el período | C8: =SUM(C5:C6) -> 0
B9: Número de pruebas de Ziehl-Neelsen que se deben encargar | C9: =SUM(C5:C6)-C7 -> 0
B12: Compra de pruebas | C12: Kit | D12: <=Elija aquí
W15: Kit | X15: Materiales fungibles separados
A21: Código GDF | B21: Artículos | C21: Unidad | D21: Unidades por paquete | E21: Necesarias por prueba | F21: Número de paquetes | G21: Costo por unidad (US$) | H21: Detalles del cálculo
A22: 106522 | B22: Solución para la tinción de Ziehl-Neelsen (ZN), 1 litro (solución de carbol fucsina fuerte a 1% para tinción de ZN): 6; solución decolorante, 1 litro (solución decolorante lista para usar en portaobjetos teñidos con ZN con 3,0% de HCl/alcohol): 6; solución de contratinción para la tinción de ZN, 1 litro (azul de metileno a 0,1%, solución de contratinción para la tinción de ZN): 6; 50 x 20 portaobjetos para microscopio: 1; 100 x papeles de filtro: 1; 10 x lápices: 1; 2 x rotuladores resistentes al agua: 1; 500 x bolsas de plástico de 200 mm de ancho x 300 mm de largo: 1; 1000 x aplicadores de madera: 2; 400 x pares de guantes de nitrilo (100 pequeños, 200 medianos, 100 grandes): 1; 30 x 150 cajas de toallas de papel: 1; papel para limpiar lentes - 100 papeles: 1; aceite de inmersión, 100 ml: 1; alcohol desnaturalizado a 96%, 0,5 litros: 5; desinfectante de cloro estable, 50 tabletas: 5. | C22: kit | D22: 1000 | E22: =D22*1/1000 -> 1 | F22: =IF(W15=C12,ROUNDUP((E22/D22)*C9,0),0) -> 0 | G22: 268 | H22: 1 kit para 1000 pruebas
B25: Resumen | C25: Costo (US$)
B26: Costo total de la microscopía | C26: =F22*G22 -> 0
B27: Costo por frotis | C27: =IF(C8=0,"-",C26/C8) -> -
A31: Código GDF | B31: Artículo | C31: Unidades por paquete | D31: Número de paquetes | E31: Costo por unidad (US$) | F31: Presupuesto | G31: Detalles del cálculo
A32: 106601 | B32: Fucsina básica, 100 g (frasco) | C32: 100 | D32: =IF(X15=C12,ROUNDUP((C9*0.003)/C32,0),0) -> 0 | E32: 154.25 | F32: =D32*E32 -> 0 | G32: Carbol fucsina: 5 ml por portaobjetos, incluye +10%
A33: 106602 | B33: Azul de metileno, 10 x 10 g (frascos) | C33: 100 | D33: =IF(X15=C12,ROUNDUP((C9*0.02)/C33,0),0) -> 0 | E33: 161.5 | F33: 0 | G33: Azul de metileno: 5 ml por portaobjetos, incluye +10%
A34: 106599 | B34: Cristales de fenol, incoloros, 500 g | C34: 500 | D34: =IF(X15=C12,ROUNDUP((C9*0.03)/C34,0),0) -> 0 | E34: 96.05 | F34: 0 | G34: incluye +10%
A35: 106597 | B35: Etanol, 99%, 1 litro (botella), para soluciones para tinción | C35: 1000 | D35: =IF(X15=C12,ROUNDUP((C9*0.55)/C35,0),0) -> 0 | E35: 8.35 | F35: 0 | G35: incluye +10%
A36: 106597 | B36: Etanol, 99%, 1 litro (botella), para decolorante | C36: 1000 | D36: =IF(X15=C12,ROUNDUP((C9*7.2)/C36,0),0) -> 0 | E36: 8.35 | F36: 0 | G36: Decolorante: 7 ml por portaobjetos, incluye +10%
A37: 106603 | B37: Ácido clorhídrico, 1 litro (botella) | C37: 1000 | D37: =IF(X15=C12,ROUNDUP((C9*0.8)/C37,0),0) -> 0 | E37: 18.1 | F37: 0 | G37: incluye +10%
B38: Número total de reactivos | D38: =SUM(F32:F37) -> 0
B39: Costo de los reactivos por frotis | D39: =IF(C9=0,"-",D38/C9) -> -
A42: Código GDF | B42: Artículo | C42: Unidades por paquete | D42: Número de paquetes | E42: Costo por unidad (US$) | F42: Presupuesto | G42: Detalles del cálculo
A43: 106655 | B43: Aplicadores de madera, 150 mm | C43: 1000 | D43: =IF(X15=C12,ROUNDUP((C9*1.1)/C43,0),0) -> 0 | E43: 2.51 | F43: =D43*E43 -> 0 | G43: incluye +10%
A44: 106609 | B44: Portaobjetos para microscopio, vidrio sódico-cálcico, paquete de 1000 | C44: 1000 | D44: =IF(X15=C12,ROUNDUP((C9*1.1)/C44,0),0) -> 0 | E44: 10.4 | F44: 0 | G44: incluye +10%
A45: 106627 | B45: Aceite de inmersión, 100 ml | C45: 100 | D45: =IF(X15=C12,ROUNDUP((C9*0.11)/C45,0),0) -> 0 | E45: 9.24 | F45: 0 | G45: incluye +10%
A46: 106656 | B46: Papel para limpiar lentes | C46: 150 | D46: =IF(X15=C12,ROUNDUP((C9*0.33)/C46,0),0) -> 0 | E46: 0.57 | F46: 0 | G46: incluye +10%
A47: 106354 | B47: Papel de filtro redondo, 150 mm | C47: 100 | D47: =IF(X15=C12,ROUNDUP((C9*0.011)/C47,0),0) -> 0 | E47: 24 | F47: 0 | G47: incluye +10%
A48: 106597 | B48: Etanol, 99%, 1 litro (botella), para quemadores de alcohol | C48: 1000 | D48: =IF(X15=C12,ROUNDUP((C9*0.001)/C48,0),0) -> 0 | E48: 8.35 | F48: 0
A49: 106355 | B49: Rotulador (resistente al agua) | C49: 1 | D49: =IF(X15=C12,ROUNDUP((C9*0.001)/C49,0),0) -> 0 | E49: 2.05 | F49: 0
A50: 106525 | B50: Recipientes de esputo, paquete de 1000 | C50: 1000 | D50: =IF(X15=C12,ROUNDUP((C9*1.1)/C50,0),0) -> 0 | E50: 83.3 | F50: 0 | G50: incluye +10%
B51: Total para reactivos | D51: =SUMPRODUCT(D43:D50,E43:E50) -> 0
B52: Costo de los reactivos por frotis | D52: =IF(C9=0,"-",D51/C9) -> -
B55: Resumen | C55: Costo (US$)
B56: Costo total de la microscopía | C56: =D51+D38 -> 0
B57: Costo por frotis | C57: =IF(C9=0,"-",C56/C9) -> -

Sheet Baciloscopia LED
A1: Baciloscopia con diodos emisores de luz (LED)
B2: Los valores en rojo deben introducirse o ajustarse de acuerdo con los datos y las prácticas reales del país, cuando sea posible.
B4: Método 1: Proyección basada en el consumo. El número previsto de pruebas se basa en el número de pruebas realizadas el año pasado.
B5: Número de frotis para el diagnóstico o el seguimiento del tratamiento | C5: 0 | D5: Los países que están reemplazando la microscopía con una prueba molecular rápida pueden prever menos frotis para el diagnóstico.
B6: Número de frotis de cultivos | C6: 0
B7: Suministro actual | C7: 0
B8: Número de pruebas con LED requeridas para el período | C8: =SUM(C5:C6) -> 0
B9: Número de pruebas con LED requeridas para el período | C9: =SUM(C5:C6)-C7 -> 0
B12: Compra de pruebas | C12: Kit | D12: <=Elija aquí
W15: Kit | X15: Materiales fungibles separados
A21: Código GDF | B21: Artículo | C21: Unidad | D21: Unidades por paquete | E21: Necesarias por prueba | F21: Número de paquetes | G21: Costo por unidad (US$) | H21: Detalles del cálculo
A22: 106523 | B22: Solución para tinción de auramina, reactivos (juego de tres componentes: 200 g de cristales de fenol incoloros C6H6O, 1 litro de etanol para soluciones de tinción C2H6O y 5 g de auramina O C17H22ClN3 para preparar solución para de tinción de auramina): 1 juego; solución decolorante de auramina, 1 litro (solución decolorante lista para usar con 0,5% de HCl/alcohol): 6; solución de contratinción de auramina, 1 litro (azul de metileno a 0,3%, solución de contratinción para la tinción de auramina O): 6; 50 x 20 portaobjetos de microscopio: 1: 100 x papeles de filtro: 1; 10 x lápices: 1; 2 x rotuladores resistentes al agua: 1; 500 x bolsas de plástico de 200 mm de ancho x 300 mm de largo: 1, 1000 x aplicadores de madera: 1; 400 x pares de guantes de nitrilo (100 pequeños, 200 medianos, 100 grandes): 1; cajas de 30 rollos de toallas de papel de 150 hojas: 1; papel para limpiar lentes: 100 papeles: 1; aceite de inmersión, 100 ml: 1; alcohol desnaturalizado a 96%, 0,5 litros: 1; desinfectante de cloro estable, 50 tabletas: 5. | C22: kit | D22: 1000 | E22: =D22*1/1000 -> 1 | F22: =IF(W15=C12,ROUNDUP((E22/D22)*C9,0),0) -> 0 | G22: 200.5 | H22: 1 kit para 1000 pruebas
B25: Resumen | C25: Costo (US$)
B26: Costo total de la microscopía | C26: =F22*G22 -> 0
B27: Costo por frotis | C27: =IF(C9=0,"-",(C26/C9)) -> -
A31: Código GDF | B31: Artículo | C31: Unidades por paquete | D31: Número de paquetes | E31: Costo por unidad (US$) | F31: Presupuesto | G31: Detalles del cálculo
A32: 106602 | B32: Azul de metileno, 10 x 10 g (frascos) | C32: 100 | D32: =IF(X15=C12,ROUNDUP((C9*0.02)/C32,0),0) -> 0 | E32: 161.5 | F32: =D32*E32 -> 0 | G32: Azul de metileno: 5 ml por portaobjetos, incluye +10%
A33: 106599 | B33: Cristales de fenol, incoloros, 500 g | C33: 500 | D33: =IF(X15=C12,ROUNDUP((C9*0.03)/C33,0),0) -> 0 | E33: 96.05 | F33: =D33*E33 -> 0 | G33: incluye +10%
A34: 106276 | B34: Auramine O, polvo, 25 g | C34: 25 | D34: =IF(X15=C12,ROUNDUP((C9*0.003)/C34,0),0) -> 0 | E34: 38.4 | F34: 0 | G34: incluye +10%
A35: 106597 | B35: Etanol, 99%, 1 litro (botella), para decolorante | C35: 1000 | D35: =IF(X15=C12,ROUNDUP((C9*0.55)/C35,0),0) -> 0 | E35: 8.35 | F35: 0 | G35: Decolorante: 7 ml por portaobjetos, incluye +10%
A36: 106603 | B36: Ácido clorhídrico, 1 litro (botella) | C36: 1000 | D36: =IF(X15=C12,ROUNDUP((C9*0.8)/C36,0),0) -> 0 | E36: 18.1 | F36: =D36*E36 -> 0 | G36: incluye +10%
B37: Total para reactivos | D37: =SUM(F32:F36) -> 0
B38: Costo de los reactivos por frotis | D38: =IF(C9=0,"-",D37/C9) -> -
A41: Código GDF | B41: Artículo | C41: Unidades por paquete | D41: Número de paquetes | E41: Costo por unidad (US$) | F41: Presupuesto | G41: Detalles del cálculo
A42: 106655 | B42: Aplicadores de madera, 150 mm | C42: 1000 | D42: =IF(X15=C12,ROUNDUP((C9*1.1)/C42,0),0) -> 0 | E42: 2.51 | F42: =D42*E42 -> 0 | G42: incluye +10%
A43: 106609 | B43: Portaobjetos para microscopio, vidrio sódico-cálcico, paquete de 1000 | C43: 1000 | D43: =IF(X15=C12,ROUNDUP((C9*1.1)/C43,0),0) -> 0 | E43: 10.4 | F43: 0 | G43: incluye +10%
A44: 106627 | B44: Aceite de inmersión, 100 ml | C44: 100 | D44: =IF(X15=C12,ROUNDUP((C9*0.11)/C44,0),0) -> 0 | E44: 9.24 | F44: 0 | G44: incluye +10%
A45: 106656 | B45: Papel para limpiar lentes | C45: 150 | D45: =IF(X15=C12,ROUNDUP((C9*0.33)/C45,0),0) -> 0 | E45: 0.57 | F45: 0 | G45: incluye +10%
A46: 106354 | B46: Papel de filtro redondo, 150 mm | C46: 100 | D46: =IF(X15=C12,ROUNDUP((C9*0.011)/C46,0),0) -> 0 | E46: 24 | F46: 0 | G46: incluye +10%
A47: 106597 | B47: Etanol, 99%, 1 litro (botella), para quemadores de alcohol | C47: 1000 | D47: =IF(X15=C12,ROUNDUP((C9*0.001)/C47,0),0) -> 0 | E47: 8.35 | F47: 0
A48: 106355 | B48: Rotulador (resistente al agua) | C48: 1 | D48: =IF(X15=C12,ROUNDUP((C9*0.001)/C48,0),0) -> 0 | E48: 2.05 | F48: 0
A49: 106525 | B49: Recipientes de esputo, paquete de 1000 | C49: 1000 | D49: =IF(X15=C12,ROUNDUP((C9*1.1)/C49,0),0) -> 0 | E49: 83.3 | F49: 0 | G49: incluye +10%
B50: Total para reactivos | D50: =SUMPRODUCT(D42:D49,E42:E49) -> 0
B51: Costo de los reactivos por frotis | D51: =IF(C9=0,"-",D50/C9) -> -
B54: Resumen | C54: Costo (US$)
B55: Costo total de la microscopía | C55: =D50+D37 -> 0
B56: Costo por frotis | C56: =IF(C9=0,"-",(C55/C9)) -> -

Sheet Xpert MTB XDR
A1: Prueba Xpert MTB/XDR: Se proponen dos métodos para calcular el número previsto de pruebas que se realizarán durante el período.
B2: Los valores en rojo deben introducirse o ajustarse de acuerdo con los datos y las prácticas reales del país, cuando sea posible.
B3: Método 1: Proyección basada en el consumo. El número previsto de pruebas se basa en el número de pruebas realizadas el año pasado. | E3: Método 2: Proyección basada en la morbilidad. El número estimado de pruebas se basa en datos epidemiológicos (casos notificados) y algoritmos planificados. La suma calculada es el objetivo que se debe alcanzar cuando se usan algoritmos de acuerdo con la cobertura y los supuestos indicados.
B4: Número promedio de pruebas Xpert MTB/XDR realizadas por mes | C4: 0 | E4: Población de pacientes | F4: Cobertura de las pruebas | G4: Número de pruebas Xpert MTB/XDR requeridas para el período
B5: Número de pruebas Xpert MTB/XDR requeridas para el período | C5: =C4*Months -> 0 | E5: Número de casos de tuberculosis resistente a la rifampicina y multirresistente que se prevé que se detectarán durante el año | F5: 0 | G5: ='Características epidemiológicas'!$B$14*F5 -> 0
E6: Personas con tuberculosis monorresistente a la isoniazida detectada (para detectar la resistencia a las fluoroquinolonas) | F6: 0 | G6: =('Características epidemiológicas'!$E$7+'Características epidemiológicas'!$B$8)*F6*'Características epidemiológicas'!B16 -> 0
E7: Número total de pruebas Xpert MTB/XDR requeridas para el período | G7: =SUM(G5:G6) -> 0
B12: Número de cartuchos Xpert MTB/XDR necesarios para el período (con el método de previsión 1 o 2 o un valor intermedio) | C12: 0
B13: Porcentaje de "no válido", "error" o "ningún resultado" | C13: 0
B14: Suministro actual | C14: 0
B15: Número total de cartuchos Xpert MTB/XDR necesarios para el período | C15: =((C12*C13)+C12) -> 0
B16: Número total de cartuchos Xpert MTB/XDR que se deben encargar | C16: =((C12*C13)+C12)-C14 -> 0
A18: Código GDF | B18: Artículo | C18: Unidades por paquete | D18: Número de paquetes que se deben encargar | E18: Costo por unidad (US$) | F18: Detalles del cálculo
B19: Cartuchos Xpert MTB/XDR | C19: 10 | D19: =ROUNDUP((C16/C19),0) -> 0 | E19: 198
A20: 106340 | B20: Tubos de plástico estéril para centrífuga, 50 ml | C20: 500 | D20: 0 | E20: 45 | F20: Si usa recipientes de esputo normales, ponga "0" para "Número de paquetes que se deben encargar"
A21: 106525 | B21: Recipientes de esputo, paquete de 1000 | C21: 1000 | D21: =ROUNDUP(((C16*1.1)/C21),0) -> 0 | E21: 83.3
C24: Resumen | E24: Costo (US$)
C25: Total para Xpert MTB/XDR | E25: =SUMPRODUCT(D19:D21*E19:E21) -> 0
C26: Total por prueba Xpert MTB/XDR | E26: =IF(C16=0,"-",(E25/C16)) -> -

Sheet LPA 1.ª línea
A1: LPA para medicamentos de primera línea: Se proponen dos métodos para calcular el número previsto de pruebas que se realizarán durante el período.
B2: Los valores en rojo deben introducirse o ajustarse de acuerdo con los datos y las prácticas reales del país, cuando sea posible.
B3: Método 1: Proyección basada en el consumo. El número previsto de pruebas se basa en el número de pruebas realizadas el año pasado. | E3: Método 2: Proyección basada en la morbilidad. El número estimado de pruebas se basa en datos epidemiológicos (casos notificados) y algoritmos planificados. La suma calculada es el objetivo que se debe alcanzar cuando se usan algoritmos de acuerdo con la cobertura y los supuestos indicados.
B4: Número promedio de pruebas LPA para medicamentos de primera línea realizadas por mes | C4: 0 | E4: Población de pacientes | F4: Cobertura de las pruebas | G4: Número de pruebas LPA para medicamentos de primera línea requeridas para el período
B5: Número de pruebas LPA para medicamentos de primera línea requeridas para el período | C5: =C4*Months -> 0 | E5: Casos nuevos de TB con frotis positivo a quienes se les administró la prueba para detectar la resistencia a la rifampicina y a la isoniazida (excluidos aquellos a quienes se les administró esta prueba para el diagnóstico inicial) | F5: 0 | G5: =ROUND('Características epidemiológicas'!C7-(('Características epidemiológicas'!B9*'Características epidemiológicas'!B10)+('Características epidemiológicas'!E7+'Características epidemiológicas'!B8+'Características epidemiológicas'!B14)+('Características epidemiológicas'!E11*'Características epidemiológicas'!E10*'Características epidemiológicas'!C4)+('Características epidemiológicas'!C7*'Características epidemiológicas'!B10)),-2)*F5 -> 0
E6: Número total de pruebas LPA para medicamentos de primera línea requeridas para el período | G6: =SUM(G5:G5) -> 0
B11: Pruebas LPA para medicamentos de primera línea utilizadas | C11: GenoType MTBDRplus | D11: <=Elija aquí
B13: Número de lotes utilizados por semana | C13: 0 | E13: Ponga el número apropiado según el consumo anterior. El número predeterminado se basa en el uso óptimo de la prueba
B14: Número de muestras por lote | C14: 0 | E14: Ponga el número apropiado según el consumo anterior. El número predeterminado se basa en el uso óptimo de la prueba
B15: Número de controles por lote | C15: 0 | E15: Ponga el número apropiado según el consumo anterior. El número predeterminado se basa en el uso óptimo de la prueba
B16: Número de pruebas LPA para medicamentos de primera línea para el período (calculado con el método de proyección 1 o 2 o un valor intermedio) | C16: 0
B17: Tamaño promedio de un lote | C17: =C14+C15 -> 0
B18: Número de lotes necesarios para el período | C18: =IF(C14=0,0,C16/C14) -> 0
B19: Número de pruebas que se deben realizar (muestras y controles) | C19: =IF(C17=0,0,C18*C17) -> 0
B20: Repeticiones estimadas (%) | C20: 0
B21: Número de pruebas adicionales por lote para compensar el error de pipeteo | C21: 1 | V21: No borrar
B22: Equipo para LPA utilizado en el laboratorio | C22: GT-Blot 48 | E22: <=Elija aquí | W22: GT-Blot 48 | X22: TwinCubator
B23: Extracción de ADN con o sin GenoLyse | C23: Con GenoLyse | E23: <=Elija aquí
B24: Para la extracción de ADN | C24: Tubos de reacción estándares, 2 ml | E24: <=Elija aquí | W24: Tubos de reacción estándares, 2 ml | X24: Tubos de reacción estándares, 1,5 ml
B25: Suministro actual | C25: 0
B26: Número total de pruebas que se realizarán durante el período | C26: =ROUNDUP(C19+(C19*repet)+C21*C18,0) -> 0 | W26: MULTIBLOT NS-4800
B27: Número total de pruebas que se deben encargar | C27: =IF(C25=0,(ROUNDUP(C19+(C19*repet)+C21*C18,0)),(ROUNDUP(C19+(C19*repet)+C21*C18,0))-C25) -> 0 | W27: GenoType MTBDRplus
W28: Genoscholar NTM+MDRTB II
B29: Código GDF | C29: Artículo | D29: Unidades por paquete | E29: Número de paquetes | F29: Costo por unidad (US$) | G29: Detalles del cálculo | H29: Opción
B30: 106682 | C30: Genoscholar NTM+MDRTB II | D30: 20 | E30: =IF(C11=W28,ROUNDUP(C27/unit_pack,0),0) -> 0 | F30: 320 | W30: Con GenoLyse | X30: Sin GenoLyse
B31: 106512 | C31: GenoType MTBDRplus (kit para 96 pruebas), Versión 2.0 (30496A) | D31: 96 | E31: =IF(C11=W27,ROUNDUP(C27/unit_pack,0),0) -> 0 | F31: 720 | H31: Dos métodos: se divide en partes alícuotas un vial por lote o agua de grado molecular. Seleccionar de la lista desplegable
B32: 106477 | C32: GenoLyse (96 pruebas), Versión 1.0 (51610) | D32: 96 | E32: =IF($C$23=$W$30,ROUNDUP(C27/D32,0),0) -> 0 | F32: 50
B33: 106254 | C33: Agua de grado molecular, 10 x 1,7 ml | D33: 17 | E33: =IF(H33=X33,ROUNDUP(C18*0.505/unit_pack,0),IF(C14*0.505<=1.8,ROUNDUP(C18/10,0),ROUNDUP(C14*0.505,0))) -> 0 | F33: 201.85 | G33: Se necesitan 505 μl por lote, un vial por lote o alícuota | H33: 1 vial por lote | I33: <=Elija aquí | W33: 1 vial por lote | X33: Alícuota
B34: 106385 | C34: Tubos para PCR, 0,2 ml, con tapa fija, estériles, libres de ADNasa y ARNasa, 1000 por paquete | D34: 1000 | E34: =ROUNDUP((kit_ordered*D31*1.05)/unit_pack,0) -> 0 | F34: 45.8 | G34: 1 tubo por prueba + 5% extra
B35: 106422 | C35: Tubos para microcentrífuga, 2 ml | D35: 500 | E35: =IF(C24=W24,ROUNDUP(kit_ordered*D31*2/unit_pack,0),0) -> 0 | F35: 49.55 | G35: 2 tubos por prueba + 5% extra
B36: 106421 | C36: Tubos para microcentrífuga, 1,5 ml | D36: =IF(B36=106350,1000,500) -> 500 | E36: =IF(C24=X24,ROUNDUP(kit_ordered*D31*2/unit_pack,0),0) -> 0 | F36: 91.95 | G36: 2 tubos por prueba + 5% extra | W36: Tubos de reacción estándares, 1,5 ml | X36: Tubos de reacción estándares, 2 ml
B37: 106383 | C37: Crioviales estériles, 2 ml; se pueden abrir y cerrar con una sola mano | D37: 1000 | E37: =ROUNDUP(kit_ordered*D31/unit_pack,0) -> 0 | F37: 261.4 | G37: Los crioviales son necesarios para el almacenamiento, 1 tubo por prueba + 5% extra | Y37: =C27+(C27*5)/100 -> 0
B38: 106554 | C38: Puntas de filtro estériles, 0,1-10 μl | D38: 960 | E38: =ROUNDUP((kit_ordered*D31*2.05)/unit_pack,0) -> 0 | F38: 115.7 | G38: 2 puntas por prueba + 5% extra para añadir sobrenadante a los tubos para PCR y n x 5 μL de ADN
B39: 106389 | C39: Puntas de filtro estériles, 20-200 μl | D39: 960 | E39: =ROUNDUP((kit_ordered*D31*(2+1)+C18*(3+IF($C$22=$W$22,0,2)))*1.05/unit_pack,0) -> 0 | F39: 61 | G39: 2 puntas por prueba para la extracción de ADN, 2 puntas por lote para la amplificación, 1 punta por lote para agregar solución de desnaturalización, 1 punta por prueba para agregar amplicones de ADN; si se usa TwinCubator, 2 puntas para sustrato y conjugado + 5% extra
B40: 106390 | C40: Puntas de filtro estériles, 100-1000 μl | D40: 960 | E40: =ROUNDUP(kit_ordered*D31*1.05/unit_pack,0) -> 0 | F40: 88.5 | G40: 1 punta por lote para mezcla maestra + 5% extra
B41: 106412 | C41: Puntas largas de 1 ml con filtro | D41: 800 | E41: =ROUNDUP((kit_ordered*D31*2+IF($C$22=$W$22,0,kit_ordered*D31*2+IF(H42=X42,0,C18*8)))*1.05/unit_pack,0) -> 0 | F41: 90 | G41: 2 puntas para agregar o desechar muestras descontaminadas, solo para TwinCubator: 2 puntas por lote para agregar amortiguador de hibridación y solución de lavado astringente + 8 puntas por lote para agregar enjuague (3), agua (3), sustrato (1), conjugado (1) | H41: Seleccione a continuación si usa Combitips o no
B42: 106398 | C42: Puntas dispensadoras, 12,5 ml | D42: 100 | E42: =IF(AND(H42=X42,$C$22=$X$22),ROUNDUP(C18*8*1.05/unit_pack,0),0) -> 0 | F42: 50 | G42: Alternativa en vez de puntas largas de 1 ml: 8 puntas por lote para agregar enjuage (3), agua (3), sustrato (1), conjugado (1) + 5% extra | H42: Se usan Combitips | I42: <=Elija aquí | X42: Se usan Combitips | Y42: No se usan Combitips
B43: 106434 | C43: Pipetas Pasteur no estériles, 3 ml | D43: 500 | E43: =ROUNDUP((kit_ordered*$D$31*(2)+C18*5)*1.05/unit_pack,0) -> 0 | F43: 9.9 | G43: 2 pipetas por muestra para extraer el amortiguador de hibridación y la solución de lavado astringente y 5 pipetas por lote para extraer enjuague, agua, sustrato y conjugado + 5% extra
B44: 106556 | C44: Pinzas de plástico estéril para laboratorio | D44: 50 | E44: =ROUNDUP(C18*2/unit_pack,0) -> 0 | F44: 7.45 | G44: 2 por lote
B45: 106355 | C45: Rotulador indeleble | D45: 1 | E45: =ROUNDUP(kit_ordered/3/unit_pack,0) -> 0 | F45: 2.05 | G45: 1 rotulador para 3 kits
B46: 106384 | C46: Tubos de plástico estéril para centrífuga, 15 ml | D46: 500 | E46: =ROUNDUP(C18*4/unit_pack,0) -> 0 | F46: 48.95 | G46: 4 tubos por lote (conjugado y sustrato para dilución + amortiguador de hibridación + solución de lavado astringente)
B47: 106340 | C47: Tubos de plástico estéril para centrífuga, 50 ml | D47: 500 | E47: =ROUNDUP(C18*IF($C$22=$W$22,5,3)/unit_pack,0) -> 0 | F47: 45 | G47: 3 tubos por lote; 5 tubos si se usa GT-Blot 48 (descontaminación)
B48: 106444 | C48: Bolsas de plástico de 30 litros | D48: 200 | E48: =ROUNDUP(Months*22*4/unit_pack,0) -> 0 | F48: 98.6 | G48: 4 por día laborable
B49: 106415 | C49: Papel de filtro cuadrado, 580 mm | D49: 100 | E49: =ROUNDUP(Months*22*8/unit_pack,0) -> 0 | F49: 111.4 | G49: 8 por día laborable
B50: 106439 | C50: Juego de reactivos GT-Blot 48 | D50: 1 | E50: =IF($C$22=$W$22,ROUNDUP(kit_ordered/3/unit_pack,0),0) -> 0 | F50: 0 | G50: 1 kit para 3 kits para pruebas LPA si se usa GT-Blot 48
B51: 106438 | C51: Bandeja GT-Blot 48 para 96 tiras (negra) | D51: 1 | E51: =IF($C$22=$W$22,ROUNDUP(C18/10*1.2/unit_pack,0),0) -> 0 | F51: 2.9 | G51: 1 bandeja para 10 lotes + 20%
B52: 106755 | C52: Toallas de papel | D52: 200 | E52: =ROUNDUP(12*22*40/unit_pack,0) -> 53 | F52: 1.45 | G52: 40 por día
B53: 106333 | C53: Etanol o isopropanol, 5 litros | D53: 5 | E53: =ROUNDUP(Months*4.33*1/unit_pack,0) -> 0 | F53: 32.15 | G53: 1 litro por semana
C55: Resumen | E55: Costo (US$)
C56: Total para la prueba LPA para medicamentos de primera línea, MTBDRplus V2 | E56: =SUMPRODUCT(E31:E53*F31:F53) -> 76.85
C57: Total por prueba LPA para medicamentos de primera línea, MTBDRplus V2 | E57: =IF(C27=0,"-",E56/C27) -> -

Sheet LPA 2.ª línea
B1: LPA para medicamentos de segunda línea: Se proponen dos métodos para calcular el número previsto de pruebas que se realizarán durante el período.
B2: Los valores en rojo deben introducirse o ajustarse de acuerdo con los datos y las prácticas reales del país, cuando sea posible.
B3: Método 1: Proyección basada en el consumo. El número previsto de pruebas se basa en el uso diario promedio de cada módulo. | E3: Método 2: Proyección basada en la morbilidad. El número estimado de pruebas se basa en datos epidemiológicos (casos notificados) y algoritmos planificados. La suma calculada es el objetivo que se debe alcanzar cuando se usan algoritmos de acuerdo con la cobertura y los supuestos indicados.
B4: Número promedio de pruebas LPA para medicamentos de segunda línea realizadas por mes | C4: 0 | E4: Población de pacientes | F4: Cobertura de las pruebas | G4: Número de pruebas LPA para medicamentos de primera línea para el período
B5: Número de pruebas LPA para medicamentos de segunda línea requeridas para el período | C5: =C4*Months -> 0 | E5: Número de casos de tuberculosis resistente a la rifampicina y multirresistente que se prevé que se detectarán durante el año | F5: 0 | G5: ='Características epidemiológicas'!$B$14*F5 -> 0
E6: Personas con tuberculosis monorresistente a la isoniazida detectada (para detectar la resistencia a las fluoroquinolonas) | F6: 0 | G6: =('Características epidemiológicas'!$E$7+'Características epidemiológicas'!$B$8)*F6*'Características epidemiológicas'!B16 -> 0
E7: Número total de pruebas LPA para medicamentos de segunda línea requeridas para el período | G7: =SUM(G5:G6) -> 0
B13: Número de lotes por semana | C13: 0 | E13: Ponga el número apropiado según el consumo anterior. El número predeterminado se basa en el uso óptimo de la prueba
B14: Número de muestras por lote | C14: 0 | E14: Ponga el número apropiado según el consumo anterior. El número predeterminado se basa en el uso óptimo de la prueba
B15: Número de controles por lote | C15: 0 | E15: Ponga el número apropiado según el consumo anterior. El número predeterminado se basa en el uso óptimo de la prueba
B16: Número de pruebas LPA para medicamentos de segunda línea requeridas para el período (con el método de proyección 1 o 2 o un valor intermedio) | C16: 0
B17: Número promedio de muestras por lote | C17: =C14+C15 -> 0
B18: Número de lotes para el período | C18: =IF(C14=0,0,C16/C14) -> 0
B19: Número de pruebas (muestras y controles) | C19: =C18*C17 -> 0
B20: Repeticiones estimadas (%) | C20: 0
B21: Número de pruebas adicionales por lote para compensar el error de pipeteo | C21: 1 | W21: No borrar
B22: Equipo para LPA utilizado en el laboratorio | C22: GT-Blot 48 | E22: <=Elija aquí | X22: GT-Blot 48 | Y22: TwinCubator
B23: Extracción de ADN con o sin GenoLyse | C23: Con GenoLyse | E23: <=Elija aquí
B24: Para la extracción de ADN | C24: Tubos de reacción estándares, 2 ml | E24: <=Elija aquí | X24: Tubos de reacción estándares, 2 ml | Y24: Tubos de reacción estándares, 1,5 ml
B25: Suministro actual
B26: Número total de pruebas que se realizarán durante el período | C26: =ROUNDUP(C19+(C19*repet)+C21*C18,0) -> 0 | X26: Con GenoLyse | Y26: Sin GenoLyse
B27: Número total de pruebas que se deben encargar | C27: =IF(C25=0,(ROUNDUP(C19+(C19*repet)+C21*C18,0)),((ROUNDUP(C19+(C19*repet)+C21*C18,0))-C25)) -> 0
B29: Código GDF | C29: Artículo | D29: Unidades por paquete | E29: Número de paquetes | F29: Costo por unidad (US$) | G29: Detalles del cálculo | H29: Options
B30: 106513 | C30: GenoType MTBDRsl (kit para 96 pruebas), Versión 2.0 (30496A) | D30: 96 | E30: =ROUNDUP(C27/unit_pack,0) -> 0 | F30: 720 | H30: Dos métodos: se divide en partes alícuotas un vial por lote o agua de grado molecular. Seleccionar de la lista desplegable
B31: 106477 | C31: GenoLyse (96 pruebas), Versión 1.0 (51610) | D31: 96 | E31: =IF($C$23=$X$26,ROUNDUP(C27/D31,0),0) -> 0 | F31: 50
B32: 106254 | C32: Agua de grado molecular, 10 x 1,7 ml | D32: 17 | E32: =IF(H32=Y32,ROUNDUP(C18*0.505/unit_pack,0),IF(C14*0.505<=1.8,ROUNDUP(C18/10,0),ROUNDUP(C14*0.505,0))) -> 0 | F32: 201.85 | G32: Se necesitan 505 μl por lote, un vial por lote o alícuota | H32: Alícuota | I32: <=Elija aquí | X32: 1 vial por lote | Y32: Alícuota
B33: 106385 | C33: Tubos para PCR, 0,2 ml, con tapa fija, estériles, libres de ADNasa y ARNasa, 1000 por paquete | D33: 1000 | E33: =ROUNDUP((kit_ordered*D30*1.05)/unit_pack,0) -> 0 | F33: 45.8 | G33: 1 tubo por prueba + 5% extra
B34: 106422 | C34: Tubos para microcentrífuga, 2 ml | D34: 500 | E34: =IF(C24=X24,ROUNDUP(kit_ordered*D30*2/unit_pack,0),0) -> 0 | F34: 49.55 | G34: 2 tubos por prueba + 5% extra
B35: 106421 | C35: Tubos para microcentrífuga, 1,5 ml | D35: =IF(B35=106350,1000,500) -> 500 | E35: =IF(C24=Y24,ROUNDUP(kit_ordered*D30*2/unit_pack,0),0) -> 0 | F35: 91.95 | G35: 2 tubos por prueba + 5% extra | X35: Tubos de reacción estándares, 1,5 ml | Y35: Tubos de reacción estándares, 2 ml
B36: 106383 | C36: Crioviales estériles, 2 ml; se pueden abrir y cerrar con una sola mano | D36: 1000 | E36: =IF(H36=Z36,0,ROUNDUP(kit_ordered*D30/unit_pack,0)) -> 0 | F36: 261.4 | G36: Los crioviales son necesarios para el almacenamiento, 1 tubo por prueba + 5% extra | Z36: =total_test+(total_test*5)/100 -> 0
B37: 106554 | C37: Puntas de filtro estériles, 0,1-10 μl | D37: 960 | E37: =ROUNDUP(E35*D35/D37,0) -> 0 | F37: 115.7 | G37: 1 punta por vial
B38: 106389 | C38: Puntas de filtro estériles, 20-200 μl | D38: 960 | E38: =ROUNDUP((kit_ordered*D30*2.05)/unit_pack,0) -> 0 | F38: 61 | G38: 2 puntas por prueba + 5% extra para añadir sobrenadante a los tubos para PCR y n x 5 μL de ADN
B39: 106390 | C39: Puntas de filtro estériles, 100-1000 μl | D39: 960 | E39: =ROUNDUP((kit_ordered*D30*(2+1)+C18*(3+IF($C$22=$X$22,0,2)))*1.05/unit_pack,0) -> 0 | F39: 88.5 | G39: 2 puntas por prueba para extracción de ADN, 2 puntas por lote para amplificación, 1 punta por lote para agregar solución de desnaturalización, 1 punta por prueba para agregar amplicones de ADN; si se usa TwinCubator, 2 puntas para sustrato y conjugado + 5% extra
B40: 106412 | C40: Puntas largas de 1 ml con filtro | D40: 800 | E40: =ROUNDUP(kit_ordered*D30*1.05/unit_pack,0) -> 0 | F40: 90 | G40: 1 punta por lote para mezcla maestra + 5% extra
B41: 106398 | C41: Puntas dispensadoras, 12,5 ml | D41: 100 | E41: =ROUNDUP((kit_ordered*D30*2+IF($C$22=$X$22,0,kit_ordered*D30*2+IF(H42=Y42,0,C18*8)))*1.05/unit_pack,0) -> 0 | F41: 50 | G41: 2 puntas para agregar o desechar muestras descontaminadas; solo para TwinCubator: 2 puntas por lote para agregar amortiguador de hibridación y solución de lavado astringente + 8 puntas por lote para agregar enjuague (3), agua (3), sustrato (1), conjugado (1) | H41: Seleccione a continuación si usa Combitips o no
B42: 106434 | C42: Pipetas Pasteur no estériles, 3 ml | D42: 500 | E42: =IF(AND(H42=Y42,$C$22=$Y$22),ROUNDUP(C18*8*1.05/unit_pack,0),0) -> 0 | F42: 9.9 | G42: Alternativa en vez de puntas largas de 1 ml: 8 puntas por lote para agregar enjuage (3), agua (3), sustrato (1), conjugado (1) + 5% extra | H42: No se usan Combitips | Y42: Se usan Combitips | Z42: No se usan Combitips
B43: 106556 | C43: Pinzas de plástico estéril para laboratorio | D43: 50 | E43: =ROUNDUP((kit_ordered*$D$30*(2)+C18*5)*1.05/unit_pack,0) -> 0 | F43: 7.45 | G43: 2 pipetas por muestra para extraer el amortiguador de hibridación y la solución de lavado astringente y 5 pipetas por lote para extraer enjuague, agua, sustrato y conjugado + 5% extra
B44: 106355 | C44: Rotulador indeleble | D44: 1 | E44: =ROUNDUP(C18*2/unit_pack,0) -> 0 | F44: 2.05 | G44: 2 por lote
B45: 106384 | C45: Tubos de plástico estéril para centrífuga, 15 ml | D45: 500 | E45: =ROUNDUP(kit_ordered/3/unit_pack,0) -> 0 | F45: 48.95 | G45: 1 rotulador para 3 kits
B46: 106340 | C46: Tubos de plástico estéril para centrífuga, 50 ml | D46: 500 | E46: =ROUNDUP(C18*4/unit_pack,0) -> 0 | F46: 45 | G46: 4 tubos por lote (conjugado y sustrato para dilución + amortiguador de hibridación + solución de lavado astringente)
B47: 106444 | C47: Bolsas de plástico de 30 litros | D47: 200 | E47: =ROUNDUP(C18*IF($C$22=$X$22,5,3)/unit_pack,0) -> 0 | F47: 98.6 | G47: 3 tubos por lote; 5 tubos si se usa GT-Blot 48 (descontaminación)
B48: 106415 | C48: Papel de filtro cuadrado, 580 mm | D48: 100 | E48: =ROUNDUP(Months*22*4/unit_pack,0) -> 0 | F48: 111.4 | G48: 4 por día laborable
B49: 106439 | C49: Juego de reactivos GT-Blot 48 | D49: 1 | E49: =ROUNDUP(Months*22*8/unit_pack,0) -> 0 | F49: 0 | G49: 8 por día laborable
B50: 106438 | C50: Bandeja GT-Blot 48 para 96 tiras (negra) | D50: 1 | E50: =IF($C$22=$X$22,ROUNDUP(kit_ordered/3/unit_pack,0),0) -> 0 | F50: 2.9 | G50: 1 kit para 3 kits para pruebas LPA si se usa GT-Blot 48
B51: 106755 | C51: Toallas de papel | D51: 200 | E51: =IF($C$22=$X$22,ROUNDUP(C18/10*1.2/unit_pack,0),0) -> 0 | F51: 1.45 | G51: 1 bandeja para 10 lotes + 20%
B52: 106333 | C52: Etanol o isopropanol, 5 litros | D52: 5 | E52: =ROUNDUP(Months*4.33*1/unit_pack,0) -> 0 | F52: 32.15 | G52: 40 por día
C54: Resumen | E54: Costo (US$)
C55: Total para pruebas LPA para medicamentos de primera línea, MTBDRplus V2 | E55: =SUMPRODUCT(E30:E52*F30:F52) -> 0
C56: Total por prueba LPA para medicamentos de primera línea, MTBDRplus V2 | E56: =IF(C27=0,"-",E55/C27) -> -

Sheet Prueba MAX MDR-TB
A1: Prueba MAX MDR-TB: Se proponen dos métodos para calcular el número previsto de pruebas que se realizarán durante el período.
B2: Los valores en rojo deben introducirse o ajustarse de acuerdo con los datos y las prácticas reales del país, cuando sea posible.
B3: Método 1: Proyección basada en el consumo. El número previsto de pruebas se basa en el número de pruebas realizadas el año pasado. | E3: Método 2: Proyección basada en la morbilidad. El número estimado de pruebas se basa en datos epidemiológicos (casos notificados) y algoritmos planificados. La suma calculada es el objetivo que se debe alcanzar cuando se usan algoritmos de acuerdo con la cobertura y los supuestos indicados.
B4: Número promedio de pruebas MAX MDR-TB realizadas por mes | C4: 0 | E4: Población de pacientes | F4: Cobertura de las pruebas | G4: Número de pruebas MAX MDR-TB requeridas para el período
B5: Número de pruebas MAX MDR-TB requeridas para el período | C5: =C4*Months -> 0 | E5: Personas con infección por el VIH que tienen signos y síntomas de TB | F5: 0 | G5: =ROUND((F5*'Características epidemiológicas'!B12*'Características epidemiológicas'!B20*'Características epidemiológicas'!E20),-2) -> 0
E6: Niños con signos y síntomas de TB | F6: 0 | G6: =ROUND(F6*'Características epidemiológicas'!B9*'Características epidemiológicas'!B10*'Características epidemiológicas'!B26, -2) -> 0
E7: Personas en riesgo de tuberculosis farmacorresistente | F7: 0 | G7: =ROUND(F7*('Características epidemiológicas'!E7*'Características epidemiológicas'!B17)+'Características epidemiológicas'!B8+('Características epidemiológicas'!B14*'Características epidemiológicas'!E17), -2) -> 0
E8: Adultos VIH-negativos que no habían tratados previamente y que presentan signos y síntomas de TB | F8: 0 | G8: =ROUND(F8*'Características epidemiológicas'!E11*'Características epidemiológicas'!E10*'Características epidemiológicas'!C4*'Características epidemiológicas'!B18,-2) -> 0
E9: Casos nuevos de TB con frotis positivo a quienes se les administró la prueba Xpert para detectar la resistencia a la rifampicina (excluidos aquellos a quienes se les administró esta prueba para el diagnóstico inicial) | F9: 0 | G9: =ROUND('Características epidemiológicas'!C7-(('Características epidemiológicas'!B9*'Características epidemiológicas'!B10)+('Características epidemiológicas'!E7+'Características epidemiológicas'!B8+'Características epidemiológicas'!B14)+('Características epidemiológicas'!E11*'Características epidemiológicas'!E10*'Características epidemiológicas'!C4)+('Características epidemiológicas'!C7*'Características epidemiológicas'!B10)),-2)*F9 -> 0
E10: Número total de kits para pruebas MAX MDR-TB requeridos para el período | G10: =SUM(G5:G9) -> 0
B15: Número de muestras por lote | C15: 0
B16: Número de controles por lote | C16: 0
B17: Número de pruebas MAX MDR-TB requeridas para el período (con el método de proyección 1 o 2 o un valor intermedio) | C17: 0
B18: Tamaño promedio de un lote | C18: =C15+C16 -> 0
B19: Número de lotes necesarios para el período | C19: =IF(C15=0,"0",C17/C15) -> 0
B20: Número de pruebas (muestras y controles) | C20: =IF(C18=0,"0",C19*C18) -> 0
B21: Repeticiones estimadas (%) | C21: 0
B22: Número de pruebas adicionales por lote para compensar el error de pipeteo | C22: 1 | U22: No borrar
B23: Suministro actual | C23: 0
B24: Número total de pruebas que se realizarán durante el período | C24: =ROUNDUP(C20+(C20*repet)+C22*C19,0) -> 0
B25: Número total de pruebas que se deben encargar | C25: =IF(C23=0,(ROUNDUP(C20+(C20*repet)+C22*C19,0)),(ROUNDUP(C20+(C20*repet)+C22*C19,0)-C23)) -> 0
B27: Código GDF | C27: Artículo | D27: Unidades por paquete | E27: Número de paquetes | F27: Costo por unidad (US$) | G27: Detalles del cálculo
C28: Kit BD MAX MDR-TB | D28: 24 | E28: =ROUNDUP(C25/unit_pack,0) -> 0 | F28: 0 | G28: Ponga el costo por unidad de acuerdo con el mecanismo de compras actual
C29: Kit BD MAX STR | D29: 24 | E29: =ROUNDUP(C25/unit_pack,0) -> 0 | F29: 0
B30: 106384 | C30: Tubos de plástico estéril para centrífuga, 15 ml | D30: 500 | E30: =ROUNDUP(kit_ordered*D28*1.05/unit_pack,0) -> 0 | F30: 48.95 | G30: 1 tubo por prueba + 5% extra
B31: 106422 | C31: Tubos para microcentrífuga, 2 ml | D31: 500 | E31: =ROUNDUP(C19*2*1.05/unit_pack,0) -> 0 | F31: 49.55 | G31: 2 tubos por lote + 5% extra
B32: 106554 | C32: Puntas de filtro estériles, 0,1-10 μl | D32: 960 | E32: =ROUNDUP((kit_ordered*D28*4*1.05)/unit_pack,0) -> 0 | F32: 115.7 | G32: 4 puntas por prueba + 5% extra
B33: 106389 | C33: Puntas de filtro estériles, 20-200 μl | D33: 960 | E33: =ROUNDUP((kit_ordered*D28*4*1.05)/unit_pack,0) -> 0 | F33: 61 | G33: 4 puntas por prueba + 5% extra
B34: 106390 | C34: Puntas de filtro estériles, 100-1000 μl | D34: 960 | E34: =ROUNDUP((kit_ordered*D28*4*1.05)/unit_pack,0) -> 0 | F34: 88.5 | G34: 4 puntas por prueba + 5% extra
B35: 106444 | C35: Bolsas de plástico de 30 litros | D35: 200 | E35: =ROUNDUP(Months*22*4/unit_pack,0) -> 0 | F35: 98.6 | G35: 4 por día laborable
B36: 106415 | C36: Papel de filtro cuadrado, 580 mm | D36: 100 | E36: =ROUNDUP(Months*22*8/unit_pack,0) -> 0 | F36: 111.4 | G36: 8 por día laborable
B37: 106755 | C37: Toallas de papel | D37: 200 | E37: =ROUNDUP(12*22*40/unit_pack,0) -> 53 | F37: 1.45 | G37: 40 por día
B38: 106333 | C38: Etanol o isopropanol, 5 litros | D38: 5 | E38: =ROUNDUP(Months*4.33*1/unit_pack,0) -> 0 | F38: 32.15 | G38: 1 litro por semana
C41: Resumen | E41: Costo (US$)
C42: Total para las pruebas MAX MDR-TB | E42: =SUMPRODUCT(E28:E38*F28:F38) -> 76.85
C43: Total por prueba MAX MDR-TB | E43: =IF(total_test=0,"-",(E42/total_test)) -> -

Sheet FluoroType MTBDR Ver 2.0
A1: Prueba FluoroType® MTBDR Ver 2.0: Se proponen dos métodos para calcular el número previsto de pruebas que se realizarán durante el período.
B2: Los valores en rojo deben introducirse o ajustarse de acuerdo con los datos y las prácticas reales del país, cuando sea posible.
B3: Método 1: Proyección basada en el consumo. El número previsto de pruebas se basa en el número de pruebas realizadas el año pasado. | E3: Método 2: Proyección basada en la morbilidad. El número estimado de pruebas se basa en datos epidemiológicos (casos notificados) y algoritmos planificados. La suma calculada es el objetivo que se debe alcanzar cuando se usan algoritmos de acuerdo con la cobertura y los supuestos indicados.
B4: Número promedio de pruebas FluoroType® MTBDR Ver 2.0 realizadas por mes | C4: 0 | E4: Población de pacientes | F4: Cobertura de las pruebas | G4: Número de pruebas FluoroType® MTBDR Ver 2.0 requeridas para el período
B5: Número de pruebas FluoroType® MTBDR Ver 2.0 requeridas para el período | C5: =C4*Months -> 0 | E5: Personas con infección por el VIH que tienen signos y síntomas de TB | F5: 0 | G5: =ROUND((F5*'Características epidemiológicas'!B12*'Características epidemiológicas'!B20*'Características epidemiológicas'!E20),-2) -> 0
E6: Niños con signos y síntomas de TB | F6: 0 | G6: =ROUND(F6*'Características epidemiológicas'!B9*'Características epidemiológicas'!B10*'Características epidemiológicas'!B26, -2) -> 0
E7: Personas en riesgo de tuberculosis farmacorresistente | F7: 0 | G7: =ROUND(F7*('Características epidemiológicas'!E7*'Características epidemiológicas'!B17)+'Características epidemiológicas'!B8+('Características epidemiológicas'!B14*'Características epidemiológicas'!E17), -2) -> 0
E8: Adultos VIH-negativos que no habían tratados previamente y que presentan signos y síntomas de TB | F8: 0 | G8: =ROUND(F8*'Características epidemiológicas'!E11*'Características epidemiológicas'!E10*'Características epidemiológicas'!C4*'Características epidemiológicas'!B18,-2) -> 0
E9: Casos nuevos de TB con frotis positivo a quienes se les administró la prueba Xpert para detectar la resistencia a la rifampicina (excluidos aquellos a quienes se les administró esta prueba para el diagnóstico inicial) | F9: 0 | G9: =ROUND('Características epidemiológicas'!C7-(('Características epidemiológicas'!B9*'Características epidemiológicas'!B10)+('Características epidemiológicas'!E7+'Características epidemiológicas'!B8+'Características epidemiológicas'!B14)+('Características epidemiológicas'!E11*'Características epidemiológicas'!E10*'Características epidemiológicas'!C4)+('Características epidemiológicas'!C7*'Características epidemiológicas'!B10)),-2)*F9 -> 0
E10: Número de pruebas FluoroType® MTBDR Ver 2.0 requeridas para el período | G10: =SUM(G5:G9) -> 0
B15: Número de muestras por lote | C15: 0
B16: Número de controles por lote | C16: 0
B17: Número de pruebas FluoroType® MTBDR Ver 2.0 requeridas para el período (con el método de proyección 1 o 2 o un valor intermedio) | C17: 0
B18: Número promedio de muestras por lote | C18: =C15+C16 -> 0
B19: Número de lotes necesarios para el período | C19: =IF(C15=0,"0",C17/C15) -> 0
B20: Número de pruebas (muestras y controles) | C20: =C19*C18 -> 0
B21: Repeticiones estimadas (%) | C21: 0
B22: Número de pruebas adicionales por lote para compensar el error de pipeteo | C22: 1 | V22: No borrar
B23: Suministro actual | C23: 0
B24: Número total de pruebas que se realizarán durante el período | V24: Kit de extracción FluoroLyse
B25: Número total de pruebas que se deben encargar | C25: =IF(C23=0,(ROUNDUP(C20+(C20*repet)+C22*C19,0)),(ROUNDUP(C20+(C20*repet)+C22*C19,0))-C23) -> 0
B26: Para la extracción de ADN | C26: Kit de extracción FluoroLyse | E26: <=Elija aquí | V26: Kit GXT para la extracción de ADN y ARN
B29: Código GDF | C29: Artículo | D29: Unidades por paquete | E29: Número de paquetes | F29: Costo por unidad (US$) | G29: Detalles del cálculo | H29: Options
C30: Prueba FluoroType MTBDR | D30: 96 | E30: =ROUNDUP(C25/unit_pack,0) -> 0 | F30: 0 | G30: Ponga el costo por unidad de acuerdo con el mecanismo de compras actual
C31: Kit GXT para la extracción de ADN y ARN | D31: 96 | E31: =IF($C$26=$V$26,ROUNDUP(C25/unit_pack,0),0) -> 0 | F31: 0
C32: Kit de extracción FluoroLyse | D32: 96 | E32: =IF($C$26=$V$24,ROUNDUP(C25/unit_pack,0),0) -> 0 | F32: 0
B33: 106384 | C33: Tubos de plástico estéril para centrífuga, 15 ml | D33: 500 | E33: =ROUNDUP(kit_ordered*D30*1.05/unit_pack,0) -> 0 | F33: 48.95 | G33: 1 tubo por prueba + 5% extra
B34: 106422 | C34: Tubos para microcentrífuga, 2 ml | D34: 500 | E34: =ROUNDUP(C19*2*1.05/unit_pack,0) -> 0 | F34: 49.55 | G34: 2 tubos por lote + 5% extra
B35: 106554 | C35: Puntas de filtro estériles, 0,1-10 μl | D35: 960 | E35: =ROUNDUP((kit_ordered*D30*4*1.05)/unit_pack,0) -> 0 | F35: 115.7 | G35: 4 puntas por prueba + 5% extra
B36: 106389 | C36: Puntas de filtro estériles, 20-200 μl | D36: 960 | E36: =ROUNDUP((kit_ordered*D30*4*1.05)/unit_pack,0) -> 0 | F36: 61 | G36: 4 puntas por prueba + 5% extra
B37: 106390 | C37: Puntas de filtro estériles, 100-1000 μl | D37: 960 | E37: =ROUNDUP((kit_ordered*D30*4*1.05)/unit_pack,0) -> 0 | F37: 88.5 | G37: 4 puntas por prueba + 5% extra
B38: 106444 | C38: Bolsas de plástico de 30 litros | D38: 200 | E38: =ROUNDUP(Months*22*4/unit_pack,0) -> 0 | F38: 98.6 | G38: 4 por día laborable
B39: 106415 | C39: Papel de filtro cuadrado, 580 mm | D39: 100 | E39: =ROUNDUP(Months*22*8/unit_pack,0) -> 0 | F39: 111.4 | G39: 8 por día laborable
B40: 106755 | C40: Toallas de papel | D40: 200 | E40: =ROUNDUP(12*22*40/unit_pack,0) -> 53 | F40: 1.45 | G40: 40 por día
B41: 106333 | C41: Etanol o isopropanol, 5 litros | D41: 5 | E41: =ROUNDUP(Months*4.33*1/unit_pack,0) -> 0 | F41: 32.15 | G41: 1 litro por semana
C43: Resumen | E43: Costo (US$)
C44: Total para FluoroType® MTBDR Ver 2.0 | E44: =SUMPRODUCT(E30:E41*F30:F41) -> 76.85
C45: Total por FluoroType® MTBDR Ver 2.0 | E45: =IF(C25=0,"-",E44/C25) -> -

Sheet MTB y MTB-RIF-INH de Cobas®
A1: Pruebas MTB y MTB-RIF/INH de Cobas®: Se proponen dos métodos para calcular el número previsto de pruebas que se realizarán durante el período.
B2: Los valores en rojo deben introducirse o ajustarse de acuerdo con los datos y las prácticas reales del país, cuando sea posible.
B3: Método 1: Proyección basada en el consumo. El número previsto de pruebas se basa en el número de pruebas realizadas el año pasado. | E3: Método 2: Proyección basada en la morbilidad. El número estimado de pruebas se basa en datos epidemiológicos (casos notificados) y algoritmos planificados. La suma calculada es el objetivo que se debe alcanzar cuando se usan algoritmos de acuerdo con la cobertura y los supuestos indicados.
B4: Número promedio de pruebas MTB de Cobas® realizadas por mes | C4: 0 | E4: Población de pacientes | F4: Cobertura de las pruebas | G4: Número de pruebas MTB y MTB-RIF/INH de Cobas® realizadas durante el período
B5: Número promedio de pruebas MTB RIF/INH de Cobas® realizadas por mes | C5: 0 | E5: Personas con infección por el VIH que tienen signos y síntomas de TB | F5: 0 | G5: =ROUND((F5*'Características epidemiológicas'!B12*'Características epidemiológicas'!B20*'Características epidemiológicas'!E20),-2) -> 0
B6: Número de pruebas MTB y MTB-RIF/INH de Cobas® realizadas durante el período | C6: =(C4+C5)*Months -> 0 | E6: Niños con signos y síntomas de TB | F6: 0 | G6: =ROUND(F6*'Características epidemiológicas'!B9*'Características epidemiológicas'!B10*'Características epidemiológicas'!B26, -2) -> 0
E7: Personas en riesgo de tuberculosis farmacorresistente | F7: 0 | G7: =ROUND(F7*('Características epidemiológicas'!E7*'Características epidemiológicas'!B17)+'Características epidemiológicas'!B8+('Características epidemiológicas'!B14*'Características epidemiológicas'!E17), -2) -> 0
E8: Adultos VIH-negativos que no habían tratados previamente y que presentan signos y síntomas de TB | F8: 0 | G8: =ROUND(F8*'Características epidemiológicas'!E11*'Características epidemiológicas'!E10*'Características epidemiológicas'!C4*'Características epidemiológicas'!B18,-2) -> 0
E9: Casos nuevos de TB con frotis positivo a quienes se les administró la prueba Xpert para detectar la resistencia a la rifampicina (excluidos aquellos a quienes se les administró esta prueba para el diagnóstico inicial) | F9: 0 | G9: =ROUND('Características epidemiológicas'!C7-(('Características epidemiológicas'!B9*'Características epidemiológicas'!B10)+('Características epidemiológicas'!E7+'Características epidemiológicas'!B8+'Características epidemiológicas'!B14)+('Características epidemiológicas'!E11*'Características epidemiológicas'!E10*'Características epidemiológicas'!C4)+('Características epidemiológicas'!C7*'Características epidemiológicas'!B10)),-2)*F9 -> 0
E10: Número total de pruebas MTB y MTB-RIF/INH de Cobas® requeridas para el período | G10: =SUM(G5:G9) -> 0
B15: Número de muestras por lote | C15: 0
B16: Número de controles por lote | C16: 0
B17: Número de pruebas MTB y MTB-RIF/INH de Cobas® realizadas durante el período (con el método de previsión 1 o 2 o un valor intermedio) | C17: 0
B18: Número promedio de muestras por lote | C18: =C15+C16 -> 0
B19: Número de lotes utilizados durante el período | C19: =IF(C15=0,"0",C17/C15) -> 0
B20: Número de pruebas realizadas (muestras y controles) | C20: =C19*C18 -> 0
B21: Repeticiones estimadas (%) | C21: 0
B22: Número de pruebas adicionales por lote para compensar el error de pipeteo | C22: 1 | U22: No borrar
B23: Suministro actual | C23: 0
B24: Número total de pruebas realizadas durante el período | C24: =(ROUNDUP(C20+(C20*repet)+C22*C19,0)) -> 0
B25: Número total de pruebas que se deben encargar | C25: =(ROUNDUP(C20+(C20*repet)+C22*C19,0))-C23 -> 0
B27: Código GDF | C27: Artículo | D27: Unidades por paquete | E27: Número de paquetes | F27: Costo por unidad (US$) | G27: Detalles del cálculo
C28: MTB de Cobas® | D28: 384 | E28: =ROUNDUP(C25/unit_pack,0) -> 0 | F28: 0 | G28: Ponga el costo por unidad de acuerdo con el mecanismo de compras actual.
C29: Kit de controles positivos de MTB de Cobas® | D29: 16 | E29: =C19/D29 -> 0 | F29: 0
C30: Kit de amortiguador para controles negativos 6800/8800 de Cobas® | D30: 16 | E30: =C19/D30 -> 0 | F30: 0
C31: Solución de inactivación microbiana de Cobas® | D31: 16 | E31: =(C25*3.2)/480 -> 0 | F31: 0 | G31: 1:4 por muestra. Volumen estimado de la muestra 0,8 = 3,2 amortiguador de inactivación. Ponga el costo por unidad de acuerdo con el mecanismo de compras actual.
C32: MTB-RIF/INH de Cobas® | D32: 72 | E32: 3 | F32: 0 | G32: Ponga el costo por unidad de acuerdo con el mecanismo de compras actual.
C33: Kit de controles positivos de MTB-RIF/INH de Cobas® | D33: 16 | E33: =C19/D29 -> 0 | F33: 0
C34: Kit de amortiguador para controles negativos 6800/8800 de Cobas® | D34: 16 | E34: =C19/D30 -> 0 | F34: 0
C35: Solución de inactivación microbiana de Cobas® | D35: 16 | E35: =(C25*3.2)/480 -> 0 | F35: 0
B36: 106384 | C36: Tubos de plástico estéril para centrífuga, 15 ml | D36: 500 | E36: =ROUNDUP(kit_ordered*D28*1.05/unit_pack,0) -> 0 | F36: 48.95 | G36: 1 tubo por prueba + 5% extra
B37: 106422 | C37: Tubos para microcentrífuga, 2 ml | D37: 500 | E37: =ROUNDUP(C19*2*1.05/unit_pack,0) -> 0 | F37: 49.55 | G37: 2 tubos por lote + 5% extra
B38: 106554 | C38: Puntas de filtro estériles, 0,1-10 μl | D38: 960 | E38: =ROUNDUP((kit_ordered*D28*4*1.05)/unit_pack,0) -> 0 | F38: 115.7 | G38: 4 puntas por prueba + 5% extra
B39: 106389 | C39: Puntas de filtro estériles, 20-200 μl | D39: 960 | E39: =ROUNDUP((kit_ordered*D28*4*1.05)/unit_pack,0) -> 0 | F39: 61 | G39: 4 puntas por prueba + 5% extra
B40: 106390 | C40: Puntas de filtro estériles, 100-1000 μl | D40: 960 | E40: =ROUNDUP((kit_ordered*D28*4*1.05)/unit_pack,0) -> 0 | F40: 88.5 | G40: 4 puntas por prueba + 5% extra
B41: 106444 | C41: Bolsas de plástico de 30 litros | D41: 200 | E41: =ROUNDUP(Months*22*4/unit_pack,0) -> 0 | F41: 98.6 | G41: 4 por día laborable
B42: 106415 | C42: Papel de filtro cuadrado, 580 mm | D42: 100 | E42: =ROUNDUP(Months*22*8/unit_pack,0) -> 0 | F42: 111.4 | G42: 8 por día laborable
B43: 106755 | C43: Toallas de papel | D43: 200 | E43: =ROUNDUP(12*22*40/unit_pack,0) -> 53 | F43: 1.45 | G43: 40 por día
B44: 106333 | C44: Etanol o isopropanol, 5 litros | D44: 5 | E44: =ROUNDUP(Months*4.33*1/unit_pack,0) -> 0 | F44: 32.15 | G44: 1 litro por semana
C46: Resumen | E46: Costo (US$)
C47: Total para MTB y MTB-RIF/INH de Cobas® | E47: =SUMPRODUCT(E28:E44*F28:F44) -> 76.85
C48: Total por prueba MTB y MTB-RIF/INH de Cobas® | E48: =IF(C25=0,"-",E47/C25) -> -

Sheet RT MTB y MTB RIF-INH de Abbott
A1: Pruebas MTB y MTB RIF/INH en tiempo real de Abbott: Se proponen dos métodos para calcular el número previsto de pruebas que se realizarán durante el período.
B2: Los valores en rojo deben introducirse o ajustarse de acuerdo con los datos y las prácticas reales del país, cuando sea posible.
B3: Método 1: Proyección basada en el consumo. El número previsto de pruebas se basa en el número de pruebas realizadas el año pasado. | E3: Método 2: Proyección basada en la morbilidad. El número estimado de pruebas se basa en datos epidemiológicos (casos notificados) y algoritmos planificados. La suma calculada es el objetivo que se debe alcanzar cuando se usan algoritmos de acuerdo con la cobertura y los supuestos indicados.
B4: Número promedio de pruebas RT MTB de Abbott realizadas por mes | C4: 0 | E4: Población de pacientes | F4: Cobertura de las pruebas | G4: Número de pruebas MTB y MTB RIF/INH de Abbott requeridas para el período
B5: Número promedio de pruebas Abott RT MTB RIF/INH realizadas por mes | C5: 0 | E5: Personas con infección por el VIH que tienen signos y síntomas de TB | F5: 0 | G5: =ROUND((F5*'Características epidemiológicas'!B12*'Características epidemiológicas'!B20*'Características epidemiológicas'!E20),-2) -> 0
B6: Número de pruebas MTB y MTB-RIF/INH de Abbott realizadas durante el período | C6: =(C4+C5)*Months -> 0 | E6: Niños con signos y síntomas de TB | F6: 0 | G6: =ROUND(F6*'Características epidemiológicas'!B9*'Características epidemiológicas'!B10*'Características epidemiológicas'!B26, -2) -> 0
E7: Personas en riesgo de tuberculosis farmacorresistente | F7: 0 | G7: =ROUND(F7*('Características epidemiológicas'!E7*'Características epidemiológicas'!B17)+'Características epidemiológicas'!B8+('Características epidemiológicas'!B14*'Características epidemiológicas'!E17), -2) -> 0
E8: Adultos VIH-negativos que no habían tratados previamente y que presentan signos y síntomas de TB | F8: 0 | G8: =ROUND(F8*'Características epidemiológicas'!E11*'Características epidemiológicas'!E10*'Características epidemiológicas'!C4*'Características epidemiológicas'!B18,-2) -> 0
E9: Casos nuevos de TB con frotis positivo a quienes se les administró la prueba Xpert para detectar la resistencia a la rifampicina (excluidos aquellos a quienes se les administró esta prueba para el diagnóstico inicial) | F9: 0 | G9: =ROUND('Características epidemiológicas'!C7-(('Características epidemiológicas'!B9*'Características epidemiológicas'!B10)+('Características epidemiológicas'!E7+'Características epidemiológicas'!B8+'Características epidemiológicas'!B14)+('Características epidemiológicas'!E11*'Características epidemiológicas'!E10*'Características epidemiológicas'!C4)+('Características epidemiológicas'!C7*'Características epidemiológicas'!B10)),-2)*F9 -> 0
E10: Número total de pruebas MTB y MTB-RIF/INH de Abbot requeridas para el período | G10: =SUM(G5:G9) -> 0
B15: Número de muestras por lote | C15: 0
B16: Número de controles por lote | C16: 0
B17: Número de pruebas MTB y MTB-RIF/INH de Abbptt realizadas durante el período (con el método de previsión 1 o 2 o un valor intermedio) | C17: 0
B18: Número promedio de muestras por lote | C18: =C15+C16 -> 0
B19: Número de lotes utilizados durante el período | C19: =IF(C15=0,0,C17/C15) -> 0
B20: Número de pruebas (muestras y controles) | C20: =C19*C18 -> 0
B21: Repeticiones estimadas (%) | C21: 0
B22: Número de pruebas adicionales por lote para compensar el error de pipeteo | C22: 1 | U22: No borrar
B23: Suministro actual | C23: 0
B24: Número total de pruebas que se realizarán durante el período | C24: =ROUNDUP(C20+(C20*repet)+C22*C19,0) -> 0
B25: Número total de pruebas que se deben encargar | C25: =IF(C23=0,0,(ROUNDUP(C20+(C20*repet)+C22*C19,0))-C23) -> 0
B27: Código GDF | C27: Artículo | D27: Unidades por paquete | E27: Cantidad de paquetes | F27: Costo por unidad (US$) | G27: Detalles del cálculo
C28: Reactivo de inactivación | G28: Ponga el costo por unidad de acuerdo con el mecanismo de compras actual.
C29: Kit de ADN del sistema de preparación de muestras de Abbott | D29: 192 | E29: =ROUNDUP(C25/unit_pack,0) -> 0
C30: Kit de reactivos de Abbott para la amplificación de M. tuberculosis en tiempo real | D30: 96 | E30: =ROUNDUP(C25/unit_pack,0) -> 0
C31: Kit de controles de M. tuberculosis en tiempo real de Abbot | D31: 8 | E31: =C19/D31 -> 0
C32: Kit de reactivos de Abbott para la amplificación en tiempo real de la resistencia de M. tuberculosis a la rifampicina y la isoniazida | D32: 24 | E32: =ROUNDUP(C25/unit_pack,0) -> 0
C33: Kit de controles en tiempo real de Abbot de la resistencia de M. tuberculosis a la rifampicina y la isoniazida | D33: 4 | E33: =ROUNDUP(C19/unit_pack,0) -> 0
C34: Placas de reacción óptica de 96 pocillos de Abbott | D34: 20 | E34: =ROUNDUP(C25/unit_pack,0) -> 0
C35: Placas de 96 pocillos y soporte de placas de Abbott | D35: 32 | E35: =ROUNDUP(C25/unit_pack,0) -> 0
B36: 106384 | C36: Tubos de plástico estéril para centrífuga, 15 ml | D36: 500 | E36: =ROUNDUP(kit_ordered*D30*1.05/unit_pack,0) -> 0 | F36: 48.95 | G36: 1 tubo por prueba + 5% extra
B37: 106422 | C37: Tubos para microcentrífuga, 2 ml | D37: 500 | E37: =ROUNDUP(C19*2*1.05/unit_pack,0) -> 0 | F37: 49.55 | G37: 2 tubos por lote + 5% extra
B38: 106554 | C38: Puntas de filtro estériles, 0,1-10 μl | D38: 960 | E38: =ROUNDUP((kit_ordered*D30*4*1.05)/unit_pack,0) -> 0 | F38: 115.7 | G38: 4 puntas por prueba + 5% extra
B39: 106389 | C39: Puntas de filtro estériles, 20-200 μl | D39: 960 | E39: =ROUNDUP((kit_ordered*D30*4*1.05)/unit_pack,0) -> 0 | F39: 61 | G39: 4 puntas por prueba + 5% extra
B40: 106390 | C40: Puntas de filtro estériles, 100-1000 μl | D40: 960 | E40: =ROUNDUP((kit_ordered*D30*4*1.05)/unit_pack,0) -> 0 | F40: 88.5 | G40: 4 puntas por prueba + 5% extra
B41: 106444 | C41: Bolsas de plástico de 30 litros | D41: 200 | E41: =ROUNDUP(Months*22*4/unit_pack,0) -> 0 | F41: 98.6 | G41: 4 por día laborable
B42: 106415 | C42: Papel de filtro cuadrado, 580 mm | D42: 100 | E42: =ROUNDUP(Months*22*8/unit_pack,0) -> 0 | F42: 111.4 | G42: 8 por día laborable
B43: 106755 | C43: Toallas de papel | D43: 200 | E43: =ROUNDUP(12*22*40/unit_pack,0) -> 53 | F43: 1.45 | G43: 40 por día
B44: 106333 | C44: Etanol o isopropanol, 5 litros | D44: 5 | E44: =ROUNDUP(Months*4.33*1/unit_pack,0) -> 0 | F44: 32.15 | G44: 1 litro por semana
C46: Resumen | E46: Costo (US$)
C47: Total para las pruebas MTB y MTB-RIF/INH de Abbott | E47: =SUMPRODUCT(E30:E44*F30:F44) -> 76.85
C48: Total por prueba MTB y MTB-RIF/INH de Abbott | E48: =IF(C25=0,"-",E47/C25) -> -

Sheet Proces+cultivo (sól. y líq.)
A1: Procesamiento y cultivo en medios sólidos y líquidos: Se proponen dos métodos para calcular el número previsto de pruebas que se realizarán durante el período.
B2: Los valores en rojo deben introducirse o ajustarse de acuerdo con los datos y las prácticas reales del país, cuando sea posible.
B3: Método 1: Proyección basada en el consumo. El número previsto de pruebas se basa en el uso diario promedio de cada módulo. | E3: Método 2: Proyección basada en la morbilidad. El número estimado de pruebas se basa en datos epidemiológicos (casos notificados) y algoritmos planificados. La suma calculada es el objetivo que se debe alcanzar cuando se usan algoritmos de acuerdo con la cobertura y los supuestos indicados.
B4: Número promedio de muestras procesadas para cultivos por mes | C4: 0 | E4: Población de pacientes | F4: Cobertura de las pruebas | G4: Número de muestras procesadas para cultivos durante el período
B5: Número de muestras procesadas para cultivos durante el período | C5: =C4*Months -> 0 | E5: Número de casos de tuberculosis resistente a la rifampicina y multirresistente que se prevé que se detectarán durante el año | F5: 0 | G5: ='Características epidemiológicas'!$B$14*F5 -> 0
E6: Personas en riesgo de monorresistencia a la isoniazida | F6: 0 | G6: =('Características epidemiológicas'!$E$7+'Características epidemiológicas'!$B$8)*F6*'Características epidemiológicas'!B16 -> 0
E7: Número total de muestras procesadas para cultivos durante el período | G7: =SUM(G5:G6) -> 0
B15: Prueba de Lowenstein-Jensen (LJ), de elaboración propia o lista para usar | C15: Lista para usar | D15: <=Elija aquí | E15: Cultivo en tubo indicador del crecimiento de micobacterias (MGIT) | F15: SÍ | G15: <=Elija aquí
B16: Número de pruebas procesadas para cultivos durante el período (con el método de proyección 1 o 2 o un valor intermedio) | C16: 0 | E16: Número de pruebas procesadas para cultivos durante el período (con el método de proyección 1 o 2 o un valor intermedio) | F16: 0 | AE16: No borrar
B17: Número de cultivos inclinados por muestra | C17: 0 | E17: Tasa de repetición | F17: 0 | AF17: Petroff | AG17: NALC/NaOH
B18: Tasa de repetición | C18: 0 | E18: Tasa de contaminación | F18: 0
B19: Tasa de contaminación | C19: 0 | E19: Cultivos positivos para M. tuberculosis (%) | F19: 0
B20: Volumen promedio (ml) por muestra que se debe descontaminar | C20: 0 | E20: Suministro actual | F20: 0
E21: Número total de muestras requeridas para el período | F21: =F16*(1+F17+F18) -> 0 | AE21: No | AF21: Lista para usar | AG21: Elaboración propia
B22: Suministro actual | C22: 0 | E22: Número total de reactivos que se deben encargar | F22: =(IF(AE25=F15,(F16*(1+F17+F18)),0))-F20 -> 0
B23: Número total de muestras procesadas durante el período | C23: =C16*(1+C18+C19) -> 0 | AF23: Puntas estériles para dispensador universal, 10 ml | AG23: Puntas estériles, libres de ADNasa y ARNasa, 100-1000 μl
B24: Número total de reactivos que se deben encargar | C24: =IF(C22=0,C16*(1+C18+C19),((C16*(1+C18+C19)))-C22) -> 0
B25: Número de cultivos inclinados producidos con un lote estándar | C25: =IF(C20=0,0,ROUNDUP(1620/C20,0)) -> 0 | AE25: SÍ | AF25: NO
B26: Número de lotes utilizados durante el período | C26: =IF(C25=0,0,ROUNDUP(C24/C25,0)) -> 0
B30: Método de descontaminación | C30: Petroff | D30: <=Elija aquí
B33: Cultivo en medios sólidos
C35: Código GDF | D35: Artículo | E35: Unidades por paquete | F35: Número de paquetes | G35: Costo por unidad (US$) | H35: Detalles del cálculo
B36: Medio de Loewenstein-Jensen, listo para usar | C36: 106259 | D36: Medio de LJ para TB, 500 g | E36: 1 | F36: =IF($C$15=$AF$21,ROUNDUP(0.0375*C26/E36,0),0) -> 0 | G36: 69.55 | H36: Mezcla de LJ lista para usar: 37,5 g por lote
C37: 106268 | D37: Glicerol 99,5, 1 litro | E37: 1 | F37: =IF($C$15=$AF$21,ROUNDUP(0.0375*C26/E37,0),0) -> 0 | G37: 10.55 | H37: 12 ml por lote
B39: Medio de Lowenstein-Jensen elaborado a partir de componentes | C39: 106263 | D39: Fosfato de dihidrógeno potásico, peso medio: 136,09, 1 kg | E39: 1 | F39: =IF($C$15=$AG$21,ROUNDUP(0.0024*C26/E39,0),0) -> 0 | G39: 36.7 | H39: 2.4 g por lote
C40: 106264 | D40: Sulfato de magnesio heptahidratado • 7H2O, peso medio: 246,48. 500 g | E40: 0.5 | F40: =IF($C$15=$AG$21,ROUNDUP(0.00024*C26/E40,0),0) -> 0 | G40: 8.25 | H40: 0,24 g por lote
C41: 106265 | D41: Monihidrato de L-asparagina • H2O, peso medio 150,13, 250 g | E41: 0.1 | F41: =IF($C$15=$AG$21,ROUNDUP(0.0036*C26/E41,0),0) -> 0 | G41: 21.6 | H41: 3.6 g por lote
C42: 106266 | D42: Tricitrato de magnesio nonahidratado • 9 H2O, 500 g | E42: 0.1 | F42: =IF($C$15=$AG$21,ROUNDUP(0.0006*C26/E42,0),0) -> 0 | G42: 52.5 | H42: 0,6 g por lote
C43: 106267 | D43: Oxalato verde de malaquita, 100 g | E43: 0.1 | F43: =IF($C$15=$AG$21,ROUNDUP(0.0004*C26/E43,0),0) -> 0 | G43: 112.95 | H43: 0,4 g por lote
C44: 106268 | D44: Glicerol 99,5, 1 litro | E44: 1 | F44: =IF($C$15=$AG$21,ROUNDUP(0.012*C26/E44,0),0) -> 0 | G44: 10.55 | H44: 12 ml por lote
D45: Costo total del cultivo en medios sólidos | G45: =SUMPRODUCT(F36:F44*G36:G44) -> 0
B47: Cultivo en medios líquidos
B49: Cultivo en medios líquidos en MGIT | C49: 106026 | D49: Tubos BBL MGIT para usar en Bactec MGIT 960 (7ml), 100 tubos por paquete | E49: 100 | F49: =IF(AE25=F15,ROUNDUP(F16*(1+F17+F18)/E49,0),0) -> 0 | G49: 195 | H49: 1 tubo por prueba
C50: 106027 | D50: Kit de suplementos para BACTEC MGIT 960 (100 pruebas, PANTA y OADC combinadas) | E50: 100 | F50: =IF(AE25=F15,ROUNDUP(F16*(1+F17+F18)/E50,0),0) -> 0 | G50: 70.8 | H50: 1 tubo por prueba
C51: 106098 | D51: Tubos de cultivo de vidrio sódico-cálcido, 12 ml, tapones de rosca | E51: 100 | F51: =IF(AE25=F15,ROUNDUP(F16*(1+F17+F18)*0.1/E51,0),0) -> 0 | G51: 43.6 | H51: 10% de recambio por año
C52: 106340 | D52: Tubos de plástico estéril para centrífuga, 50 ml | E52: 500 | F52: =IF(AE25=F15,ROUNDUP(F16*(1+F17+F18)/E52,0),0) -> 0 | G52: 45 | H52: Lo mismo cuando se procesan 0 tubos o 1 por prueba
C53: 106394 | D53: Pipetas Pasteur de plástico desechables, estériles, envasadas individualmente | E53: 500 | F53: =IF(AE25=F15,ROUNDUP(F22*(1+F19+0.1)/E53,0),0) -> 0 | G53: 36.85 | H53: Para inoculación + tubo contaminado + tubo con muestra postiva + tasa de repetición + 10% extra
C54: 106714 | D54: Bucles desechables, 10 μL | E54: 500 | F54: =IF(AE25=F15,ROUNDUP(F16*F19*0.3/E54,0),0) -> 0 | G54: 16.8 | H54: 1 por muestra positiva
C55: 106344 | D55: Crioviales estériles, 2 ml | E55: 1000 | F55: =IF(AE25=F15,ROUNDUP(F16*F19*0.3/E55,0),0) -> 0 | G55: 295.9 | H55: 30% de muestras positivas
C56: 106052 | D56: Caja de cartón para crioviales estériles, 2 ml | E56: 1 | F56: =IF(AE25=F15,ROUNDUP(F16*F19*0.3/81/E56,0),0) -> 0 | G56: 2.15 | H56: 81 colocados en una caja
C57: 106823 | D57: Placas de Petri de plástico | E57: 480 | G57: 1.95 | H57: 1 placa de Petri para 4 tubos positivos + 20% contatminados
C58: 106390/106398 | D58: Puntas estériles, libres de ADNasa y ARNasa, 100-1000 μl | E58: 960 o 100 | G58: 88.5 | H58: Puntas para dispensador: 1 o 2 puntas por día laborable según la carga de trabajo P1000 : 1 punta para 5 tubos
C59: 106407 | D59: Agar de infusión de cerebro y corazón | E59: 0.5 | F59: =IF(AE25=F15,ROUNDUP(Months/12*1,0),0) -> 0 | G59: 84.65 | H59: 1 paquete por año
C60: 106362 | D60: Lámina de plástico | E60: 1 | F60: =IF(AE25=F15,ROUNDUP(Months/12*2,0),0) -> 0 | G60: 70.4 | H60: 2 rollos por año
D61: Costo total del cultivo en medios líquidos | G61: =SUMPRODUCT(F49:F60*G49:G60) -> 0
B63: Procesamiento
C64: Código GDF | D64: Artículo | E64: Unidades por paquete | F64: Número de paquetes | G64: Costo por unidad (US$) | H64: Detalles del cálculo
B65: Amortiguador de fosfato según Soerensen, 1/15 M, pH 6,8 o ajustable entre 5 y 8,2 | C65: 106278 | D65: Fosfato de hidrógeno disódico anhidro, peso medio 141,96, 1 kg | E65: 1 | F65: =ROUNDUP((IF(C23=0,F22,C23)*0.04*1.5*0.00474),0) -> 0 | G65: 27 | H65: 4.74 g para 1 litro de amortiguador final + 50% extra. Cálculo para un promedio de 40 ml de mezcla final por muestra
C66: 106263 | D66: Fosfato de dihidrógeno potásico, peso medio: 136,09, 1 kg | E66: 1 | F66: =ROUNDUP((IF(C23=0,F22,C23)*0.04*1.5*0.00454),0) -> 0 | G66: 36.7 | H66: 4.54 g/l para 1 litro de amortiguador final + 50% extra. Cálculo para un promedio de 40 ml de mezcla final por muestra
B68: Método de descontaminación de Petroff | C68: 106281 | D68: Hidróxido de sodio, peso medio: 40,00, pureza ≥ 98%, gránulos, 1 kg | E68: 1 | F68: =IF($C$30=$AF$17,ROUNDUP(IF(C23=0,F22,C23)*(C20/1000)*0.04/E68,0),0) -> 0 | G68: 13.55 | H68: 40 g/l de muestra
B70: Método de descontaminación con NALC/NaOH | C70: 106283 | D70: N-acetil-L-cisteína, peso medio: 163,19, pureza ≥ 99%, 100 g | E70: 0.1 | F70: =IF($C$30=$AG$17,ROUNDUP(IF(C23=0,F22,C23)*(C20/1000)*0.005/E70,0),0) -> 0 | G70: 180.5 | H70: 5 g/l de muestra
C71: 106284 | D71: Citrato trisódico dihidratado · 2H2O, peso medio: 294,10, 1 kg | E71: 1 | F71: =IF($C$30=$AG$17,ROUNDUP(IF(C23=0,F22,C23)*(C20/1000)*0.029/2/E71,0),0) -> 0 | G71: 55.35 | H71: 14.5 g/l de amortiguador final
C72: 106281 | D72: Hidróxido de sodio, peso medio: 40,00, pureza ≥ 98%, gránulos, 1 kg | E72: 1 | F72: =IF($C$30=$AG$17,ROUNDUP(IF(C23=0,F22,C23)*(C20/1000)*0.02/E72,0),0) -> 0 | G72: 13.55 | H72: 20 g/l de amortiguador final
B74: Material fungible | C74: 106340 | D74: Tubos de plástico estéril para centrífuga, 50 ml | E74: 500 | F74: =ROUNDUP(IF(C23=0,F22,C23)*1.1/E74,0) -> 0 | G74: 45 | H74: 1 tubo por muestra + 10% extra
B75: Material fungible | C75: 106434 | D75: Pipetas Pasteur desechables, graduadas, no estériles, 155 mm | E75: 500 | F75: =ROUNDUP(Months/12,0) -> 0 | G75: 9.9 | H75: 1 paquete por año
D76: Costo total del procesamiento de cultivos | G76: =SUMPRODUCT(F65:F75*G65:G75) -> 0
D80: Resumen | F80: Costo (US$)
D81: Costo total del cultivo en medios sólidos | F81: =G45 -> 0
D82: Costo total del cultivo en medios líquidos | F82: =G61 -> 0
D83: Costo total del procesamiento de muestras | F83: =G76 -> 0
D84: Costo de un cultivo en medio de LJ | F84: =IF(C24=0,"-",F81/C24) -> -
D85: Costo de un cultivo en MGIT | F85: =IF(F22=0,"-",F82/F22) -> -
D86: Costo del procesamiento de muestras por muestra | F86: =IF(C24=0,"-",F83/C24) -> -

Sheet Identificación rápida
A1: Identificación rápida de M. tuberculosis: Para calcular el número previsto de pruebas que se realizarán durante el período se usa el método que se indica a continuación.
A2: Los valores en rojo deben introducirse o ajustarse de acuerdo con los datos y las prácticas reales del país, cuando sea posible.
B3: Método 1: Proyección basada en el consumo. El número previsto de pruebas se basa en el uso diario promedio de cada módulo.
B4: Número promedio de muestras analizadas para la identificación rápida de M. tuberculosis por mes | C4: 0
B5: Suministro actual | C5: 0
B6: Número de muestras que deben procesarse para la identificación rápida de M. tuberculosis durante el período | C6: =(C4*Months) -> 0
B7: Número de reactivos que se deben encargar para procesar muestras | C7: =IF(C5=0,0,(C4*Months)-C5) -> 0
B13: Número de cultivos positivos analizados para la identificación rápida de M. tuberculosis | D13: =C7 -> 0 | U13: MPT64
B14: Prueba para la identificación rápida de M. tuberculosis | D14: Capilia TB Neo | E14: <=Elija aquí | U14: Capilia TB Neo
B17: Código GDF | C17: Artículo | D17: Número por paquete | E17: Número de paquetes | F17: Costo por unidad (US$)
B18: 106414 | C18: Prueba rápida SD Bioline TB Ag MPT64 para la detección del antígeno MPT 64 | D18: 25 | E18: =IF($D$14=$U$13,ROUNDUP((D13/D18),0),0) -> 0 | F18: 35
B19: 106394 | C19: Pipetas Pasteur de plástico desechables, estériles, envasadas individualmente | D19: 500 | E19: =IF($D$14=$U$13,ROUNDUP((D19/D19),0),0) -> 0 | F19: 36.85
B20: 106714 | C20: Bucles desechables, 10 μL | D20: 500 | E20: =IF($D$14=$U$13,ROUNDUP((D13/D20),0),0) -> 0 | F20: 16.8
B21: 106344 | C21: Crioviales estériles, 2 ml | D21: 1000 | E21: =IF($D$14=$U$13,ROUNDUP((D13/D21),0),0) -> 0 | F21: 295.9
C23: Resumen | E23: Costo
C24: Total para SD Bioline TB Ag MPT64 | E24: =SUMPRODUCT(E18:E21*F18:F21) -> 0
C25: Total por prueba SD Bioline TB Ag MPT64 | E25: =IF(D13=0,0,E24/D13) -> 0
B29: Código GDF | C29: Artículo | D29: Número por paquete | E29: Número de paquetes | F29: Costo por unidad (US$)
B30: 106611 | C30: Prueba rápida Capilia TB-Neo para la detección del antígeno MPT 64 | D30: 100 | E30: =IF($D$14=$U$14,ROUNDUP((D13/D30),0),0) -> 0 | F30: 100
B31: 106612 | C31: Amortiguador de extracción Capilia TB-Neo (1 x 20 ml) | D31: 20 | E31: =IF($D$14=$U$14,ROUNDUP((D13/D30),0),0) -> 0 | F31: 8
B32: 106394 | C32: Pipetas Pasteur estériles, 3 ml | D32: 500 | E32: =IF($D$14=$U$14,ROUNDUP((D13/D30),0),0) -> 0 | F32: 36.85
B33: 106714 | C33: Bucles desechables, 10 μL | D33: 500 | E33: =IF($D$14=$U$14,ROUNDUP((D13/D30),0),0) -> 0 | F33: 16.8
B34: 106344 | C34: Crioviales estériles, 2 ml | D34: 1000 | E34: =IF($D$14=$U$14,ROUNDUP((D13/D30),0),0) -> 0 | F34: 295.9
C36: Resumen | E36: Costo (US$)
C37: Total para Capilia TB-Neo | E37: =SUMPRODUCT(E30:E34*F30:F34) -> 0
C38: Total por prueba Capilia TB-Neo | E38: =IF(D13=0,"-",E37/D13) -> -

Sheet Prueba de resistencia LJ - 1.ª
A2: Cultivo en medio de LJ para medicamentos de primera línea: Se proponen dos métodos para calcular el número previsto de pruebas que se realizarán durante el período.
A3: Los valores en rojo deben introducirse o ajustarse de acuerdo con los datos y las prácticas reales del país, cuando sea posible.
B4: Método 1: Proyección basada en el consumo. El número previsto de pruebas se basa en el uso diario promedio de cada módulo. | E4: Método 2: Proyección basada en la morbilidad. El número estimado de pruebas se basa en datos epidemiológicos (casos notificados) y algoritmos planificados. La suma calculada es el objetivo que se debe alcanzar cuando se usan algoritmos de acuerdo con la cobertura y los supuestos indicados.
B5: Número promedio de pruebas de LJ para medicamentos de primera línea realizadas por mes | C5: 0 | E5: Población de pacientes | F5: Cobertura de las pruebas | G5: Número de pruebas de LJ para medicamentos de primera línea requeridas durante el período
B6: Número de pruebas de LJ para medicamentos de primera línea realizadas durante el período | C6: =C5*Months -> 0 | E6: Número de casos de tuberculosis RR/MDR que se prevé que se detectarán durante el año | F6: 0 | G6: ='Características epidemiológicas'!$B$14*F6 -> 0
E7: Personas en riesgo de monorresistencia a la isoniazida | F7: 0 | G7: =('Características epidemiológicas'!$E$7+'Características epidemiológicas'!$B$8)*F7*'Características epidemiológicas'!B16 -> 0
E8: Número total de muestras que se deben procesar para cultivos durante el período | G8: =SUM(G6:G7) -> 0
B15: Número de pruebas de LJ para medicamentos de primera línea realizadas durante el período (con el método de proyección 1 o 2 o un valor intermedio) | C15: 0
B16: Tasa de repetición prevista de las pruebas de LJ de la resistencia a medicamentos de primera línea (%) | C16: 0
B17: Suministro actual | C17: 0
B18: Número total de pruebas que se realizarán durante el período | C18: =(C15+(C15*C16)/100) -> 0
B19: Número total de pruebas que se deben encargar | C19: =IF(C17=0,0,((C15+(C15*C16)/100))-C17) -> 0
E20: Indique aquí los materiales que necesite para cada prueba de acuerdo con el POE del laboratorio (se deben modificar los valores predeterminados)
A22: Código GDF | B22: Artículo | C22: Unidad | D22: Unidades por paquete | E22: Materiales necesarios por prueba | F22: Número de paquetes | G22: Costo por unidad (US$)
A23: 106268 | B23: Glicerol 99,5 | C23: ml | D23: 1000 | E23: 0 | F23: =ROUNDUP((E23/D23)*C19,0) -> 0 | G23: 10.55
A24: 106259 | B24: Medio de LJ para TB, 500 g | C24: g | D24: 500 | E24: 0 | F24: =ROUNDUP((E24/D24)*C19,0) -> 0 | G24: 69.55
A25: 106308 | B25: Isoniazida (INH), para uso en laboratorio | C25: g | D25: 5 | E25: 0 | F25: =ROUNDUP((E25/D25)*C19,0) -> 0 | G25: 40.5
A26: 106309 | B26: Rifampicina (RMP), para uso en laboratorio | C26: g | D26: 1 | E26: 0 | F26: =ROUNDUP((E26/D26)*C19,0) -> 0 | G26: 131.6
A27: 106311 | B27: Dihidroestreptomicina (DHSM), para uso en laboratorio | C27: g | D27: 5 | E27: 0 | F27: =ROUNDUP((E27/D27)*C19,0) -> 0 | G27: 65.61
A28: 106310 | B28: Etambutol, para uso en laboratorio | C28: g | D28: 25 | E28: 0 | F28: =ROUNDUP((E28/D28)*C19,0) -> 0 | G28: 140.1
A29: 106394 | B29: Pipetas Pasteur de plástico desechables, estériles, envasadas individualmente | C29: piezas | D29: 500 | E29: 0 | F29: =ROUNDUP((E29/D29)*C19,0) -> 0 | G29: 36.85
A30: 106344 | B30: Crioviales estériles, 2 ml | C30: piezas | D30: 1000 | E30: 0 | F30: =ROUNDUP((E30/D30)*C19,0) -> 0 | G30: 295.9
B33: Resumen | C33: Costo (US$)
B34: Total para las pruebas de LJ de la resistencia a medicamentos de primera línea | C34: =SUMPRODUCT(F23:F30*G23:G30) -> 0
B35: Costo por prueba de LJ de la resistencia a medicamentos de primera línea | C35: =IF(C19=0,"-",C34/C19) -> -

Sheet Prueba de resistencia LJ - 2.ª
A1: Prueba de LJ de la resistencia a medicamentos de segunda línea: Se proponen dos métodos para calcular el número previsto de pruebas que se realizarán durante el período.
A2: Los valores en rojo deben introducirse o ajustarse de acuerdo con los datos y las prácticas reales del país, cuando sea posible.
B3: Método 1: Proyección basada en el consumo. El número previsto de pruebas se basa en el uso diario promedio de cada módulo. | E3: Método 2: Proyección basada en la morbilidad. El número estimado de pruebas se basa en datos epidemiológicos (casos notificados) y algoritmos planificados. La suma calculada es el objetivo que se debe alcanzar cuando se usan algoritmos de acuerdo con la cobertura y los supuestos indicados.
B4: Número promedio de pruebas de LJ para medicamentos de segunda línea realizadas por mes | C4: 0 | E4: Población de pacientes | F4: Cobertura de las pruebas (%) | G4: Número de pruebas de LJ para medicamentos de primera línea realizadas durante el período
B5: Número total de pruebas de LJ para medicamentos de primera línea que se deben realizar durante el período | C5: =C4*Months -> 0 | E5: Número de casos de tuberculosis RR/MDR que se prevé que se detectarán durante el año | F5: 0 | G5: ='Características epidemiológicas'!$B$14*F5 -> 0
E6: Personas con tuberculosis monorresistente a la isoniazida detectada (para detectar la resistencia a las fluoroquinolonas) | F6: 0 | G6: =('Características epidemiológicas'!$E$7+'Características epidemiológicas'!$B$8)*F6*'Características epidemiológicas'!B16 -> 0
E7: Número total de muestras que se deben procesar para cultivos durante el período | G7: =SUM(G5:G6) -> 0
B12: Número de pruebas de LJ para medicamentos de primera línea realizadas durante el período (con el método de proyección 1 o 2 o un valor intermedio) | C12: 0
B13: Tasa de repetición prevista de las pruebas de LJ de la resistencia a medicamentos de primera línea (%) | C13: 0
B14: Suministro actual | C14: 0
B15: Número total de pruebas que se realizarán durante el período | C15: =(C12+((C12*C13)/100)) -> 0
B16: Número total de pruebas que se deben encargar | C16: =IF(C14=0,0,((C12+((C12*C13)/100)))-C14) -> 0
E18: Indique aquí los materiales que necesite para cada prueba de acuerdo con el POE del laboratorio (se deben modificar los valores predeterminados)
A20: Código GDF | B20: Artículo | C20: Unidad | D20: Unidades por paquete | E20: Materiales necesarios por prueba | F20: Número de paquetes | G20: Costo por unidad (US$) | H20: Detalles del cálculo
A21: 106268 | B21: Glicerol 99,5 | C21: ml | D21: 1000 | E21: 0 | F21: =ROUNDUP((E21/D21)*C16,0) -> 0 | G21: 10.55
A22: 106259 | B22: Medio de LJ para TB, 500 g | C22: g | D22: 500 | E22: 0 | F22: =ROUNDUP((E22/D22)*C16,0) -> 0 | G22: 69.55
A23: 106560 | B23: Levofloxacina (LFX), para uso en laboratorio | C23: g | D23: 1 | E23: 0 | F23: =ROUNDUP((E23/D23)*C16,0) -> 0 | G23: 43.75
A24: 106316 | B24: Etionamida (ETH), para uso en laboratorio | C24: g | D24: 5 | E24: 0 | F24: =ROUNDUP((E24/D24)*C16,0) -> 0 | G24: 135.2
A25: 106317 | B25: Kanamicina (KAN), para uso en laboratorio | C25: g | D25: 5 | E25: 0 | F25: =ROUNDUP((E25/D25)*C16,0) -> 0 | G25: 171.4
A26: 106318 | B26: Amikacina (AMI), para uso en laboratorio | C26: g | D26: 5 | E26: 0 | F26: =ROUNDUP((E26/D26)*C16,0) -> 0 | G26: 90
A27: 106319 | B27: Capreomicina (CM), para uso en laboratorio | C27: g | D27: 1 | E27: 0 | F27: =ROUNDUP((E27/D27)*C16,0) -> 0 | G27: 274.6
A28: 106396 | B28: Puntas dispensadoras, 5 ml | C28: piezas | D28: 100 | E28: 0 | F28: =ROUNDUP((E28/D28)*C15,0) -> 0 | G28: 50
A29: 106394 | B29: Pipetas Pasteur de plástico desechables, estériles, envasadas individualmente | C29: piezas | D29: 500 | E29: 0 | F29: =ROUNDUP((E29/D29)*C16,0) -> 0 | G29: 36.85
A30: 106344 | B30: Crioviales estériles, 2 ml | C30: piezas | D30: 1000 | E30: 0 | F30: =ROUNDUP((E30/D30)*C16,0) -> 0 | G30: 295.9
B33: Resumen | C33: Costo (US$)
B34: Total para las pruebas de LJ de la resistencia a medicamentos de segunda línea | C34: =SUMPRODUCT(F21:F30,G21:G30) -> 0
B35: Costo por prueba de LJ de la resistencia a medicamentos de segunda línea | C35: =IF(C15=0,"-",C34/C16) -> -

Sheet Prueba de resistencia MGIT - 1ª
A1: Prueba de la resistencia a medicamentos de primera línea con tubo indicador del crecimiento de micobacterias (MGIT): Se proponen dos métodos para calcular el número previsto de pruebas que se realizarán durante el período.
B2: Los valores en rojo deben introducirse o ajustarse de acuerdo con los datos y las prácticas reales del país, cuando sea posible.
B3: Método 1: Proyección basada en el consumo. El número previsto de pruebas se basa en el uso diario promedio de cada módulo. | E3: Método 2: Proyección basada en la morbilidad. El número estimado de pruebas se basa en datos epidemiológicos (casos notificados) y algoritmos planificados. La suma calculada es el objetivo que se debe alcanzar cuando se usan algoritmos de acuerdo con la cobertura y los supuestos indicados.
B4: Número promedio de pruebas de farmacorresistencia con tubo indicador del crecimiento de micobacterias (MGIT) realizadas por mes | C4: 0 | E4: Población de pacientes | F4: Cobertura de las pruebas (%) | G4: Número de pruebas de farmacorresistencia con tubo indicador del crecimiento de micobacterias (MGIT) utilizadas durante el período
B5: Número de pruebas de farmacorresistencia con tubo indicador del crecimiento de micobacterias (MGIT) que se deben realizar durante el período | C5: =C4*Months -> 0 | E5: Número de casos de tuberculosis RR/MDR que se prevé que se detectarán durante el año | F5: 0 | G5: ='Características epidemiológicas'!$B$14*F5 -> 0
E6: Personas en riesgo de monorresistencia a la isoniazida | F6: 0 | G6: =('Características epidemiológicas'!$E$7+'Características epidemiológicas'!$B$8)*F6*'Características epidemiológicas'!B16 -> 0
E7: Número total de muestras procesadas para detectar la farmacorresistencia con tubo indicador del crecimiento de micobacterias (MGIT) durante el período | G7: =SUM(G5:G6) -> 0
B11: SIRE (estreptomicina, isoniazida, rifampicina, etambutol)
B12: Número de cepas que deben ser procesadas con SIRE durante el período (con el método de proyección 1 o 2 o un valor intermedio) | C12: 0
B13: Tasa de repetición prevista de las pruebas con kit SIRE (%) | C13: 0
B14: Suministro actual | C14: 0
B15: Número total de pruebas que se realizarán durante el período, incluidas las repeticiones | C15: =C12*(1+C13) -> 0
B16: Número total de pruebas que se deben encargar | C16: =(C12*(1+C13)-C14) -> 0
B17: Pirazinamida (PZA)
B18: Número de cepas analizadas para determinar la actividad de la pirazinamida durante el período (con el método de proyección 1 o 2 o un valor intermedio) | C18: 0
B19: Tasa de repetición prevista de las pruebas para determinar la actividad de la pirazinamida (%) | C19: 0
B20: Suministro actual | C20: 0
B21: Número total de pruebas que se realizarán durante el período, incluidas las repeticiones | C21: =(C18*(1+C19)) -> 0
B22: Número total de pruebas que se deben encargar | C22: =(C21)-C20 -> 0
C24: Pruebas de la resistencia a medicamentos de primera línea y a la pirazinamida en MGIT
B25: Código GDF | C25: Artículo | D25: Unidades por paquete | E25: Número de paquetes | F25: Costo por unidad (US$) | G25: Detalles del cálculo
B26: 106028 | C26: Kit BACTEC™ MGIT™ 960 SIRE. Un kit es suficiente para 40 pruebas. | D26: 40 | E26: =ROUNDUP(C16/D26,0) -> 0 | F26: 72.7
B27: 106026 | C27: Tubos BBL MGIT para usar en Bactec MGIT 960 (7ml), 100 tubos por paquete | D27: 100 | E27: =ROUNDUP(C16*5/D27,0) -> 0 | F27: 195 | G27: 5 tubos por prueba
B28: 106389 | C28: Puntas de filtro estériles, 20-200 μl | D28: 960 | E28: =IF(C16=0,0,ROUNDUP((C16+2)/D28,0)) -> 0 | F28: 61 | G28: 1 punta por prueba para agregar medicamento + 1 punta por prueba para diluir GC
B29: 106390 | C29: Puntas de filtro estériles, 100-1000 μl | D29: 960 | E29: =IF(C16=0,0,ROUNDUP((C16+2)/D29,0)) -> 0 | F29: 88.5 | G29: 1 punta por prueba para suplementación + 1 punta por prueba para bacterias
B30: 106181 | C30: Puntas estériles para dispensador, 10 ml | D30: 100 | E30: =ROUNDUP(IF(C16>1000,2,1.2)*Months*22/D30,0) -> 0 | F30: 196.65 | G30: 1 o 2 puntas por día laborable según la carga de trabajo
C31: Total para el kit SIRE para pruebas de sensibilidad a fármacos | F31: =SUMPRODUCT(E26:E30*F26:F30) -> 0
B34: 106033 | C34: Kit BACTEC™ MGIT™ PZA | D34: 50 | E34: =ROUNDUP(C22/D34,0) -> 0 | F34: 90.6
B35: 106036 | C35: Tubos para BACTEC™ MGIT™ PZA, 25 | D35: 25 | E35: =ROUNDUP((C18*(1+C19)*2)/D35,0) -> 0 | F35: 53.55 | G35: 2 tubos por PZA
B36: 106389 | C36: Puntas de filtro para pipeta estériles, 1-200 μL | D36: 960 | E36: =ROUNDUP(C18*(1+C19)/D36,0) -> 0 | F36: 61 | G36: 1 punta por prueba
B37: 106390 | C37: Puntas de filtro estériles, 100-1000 μl | D37: 960 | E37: =ROUNDUP(C18*(1+C19)/D37,0) -> 0 | F37: 88.5 | G37: 1 punta por prueba
C38: Total para el kit SIRE para pruebas de sensibilidad a fármacos | F38: =SUMPRODUCT(E34:E37*F34:F37) -> 0
C43: Resumen | D43: Costo (US$)
C44: Monto total para el kit SIRE para pruebas de sensibilidad a fármacos | D44: =F31 -> 0
C45: Monto total para pruebas de la resistencia a la pirazinamida | D45: =F38 -> 0
C46: Costo total de las pruebas en medios líquidos de la resistencia a medicamentos de primera línea | D46: =SUM(D44:D45) -> 0

Sheet Prueba de resistencia MGIT - 2ª
A1: Prueba de la resistencia a medicamentos de segunda línea con tubo indicador del crecimiento de micobacterias (MGIT): Se proponen dos métodos para calcular el número previsto de pruebas que se realizarán durante el período.
B2: Los valores en rojo deben introducirse o ajustarse de acuerdo con los datos y las prácticas reales del país, cuando sea posible.
B3: Método 1: Proyección basada en el consumo. El número previsto de pruebas se basa en el uso diario promedio de cada módulo. | E3: Método 2: Proyección basada en la morbilidad. El número estimado de pruebas se basa en datos epidemiológicos (casos notificados) y algoritmos planificados. La suma calculada es el objetivo que se debe alcanzar cuando se usan algoritmos de acuerdo con la cobertura y los supuestos indicados.
B4: Número promedio de pruebas de farmacorresistencia con tubo indicador del crecimiento de micobacterias (MGIT) realizadas por mes | C4: 0 | E4: Población de pacientes | F4: Cobertura de las pruebas (%) | G4: Número de pruebas de farmacorresistencia con tubo indicador del crecimiento de micobacterias (MGIT) que se deben realizar durante el período
B5: Número de pruebas de farmacorresistencia con tubo indicador del crecimiento de micobacterias (MGIT) que se deben realizar durante el período | C5: =C4*Months -> 0 | E5: Número de casos de tuberculosis RR/MDR que se prevé que se detectarán durante el año | F5: 1 | G5: ='Características epidemiológicas'!$B$14*F5 -> 0
E6: Personas con tuberculosis monorresistente a la isoniazida detectada (para detectar la resistencia a las fluoroquinolonas) | F6: 1 | G6: =('Características epidemiológicas'!$E$7+'Características epidemiológicas'!$B$8)*F6*'Características epidemiológicas'!B16 -> 0
E7: Número total de muestras procesadas que deben procesarse para detectar la farmacorresistencia con tubo indicador del crecimiento de micobacterias (MGIT) durante el período | G7: =SUM(G5:G6) -> 0
B13: Fórmulas de medicamentos | C13: Viales liofilizados
B14: Número de cepas analizadas para detectar la resistencia a medicamentos de segunda línea durante el período (con el método de proyección 1 o 2 o un valor intermedio) | C14: 0
B15: Tasa de repetición prevista de las pruebas de la resistencia a medicamentos de segunda línea con MGIT | C15: 0
B16: Suministro actual | C16: 0
B17: Número total de pruebas que se realizarán durante el período | C17: =(ROUNDUP(C14*(1+C15),0)) -> 0
B18: Número total de pruebas que se deben encargar | C18: =(ROUNDUP(C14*(1+C15),0))-C16 -> 0
T20: Viales liofilizados | U20: Sustancias farmacéuticas puras
E21: Indique aquí los materiales que necesite para cada prueba de acuerdo con el POE del laboratorio (se deben modificar los valores predeterminados)
A22: Código GDF | B22: Artículo | C22: Unidad | D22: Número por paquete | E22: Materiales necesarios por prueba | F22: Número de paquetes | G22: Costo por unidad (US$) | H22: Detalles del cálculo
A23: 106585 | B23: Moxifloxacina, medicamento liofilizado para uso en laboratorio, paquete de 6 viales | C23: paquete | D23: 1 | E23: 0 | F23: =IF(C13=T20,ROUNDUP((E23/D23)*$C$18,0),0) -> 0 | G23: 90
A24: 106586 | B24: Amikacina, medicamento liofilizado para uso en laboratorio, paquete de 6 viales | C24: paquete | D24: 1 | E24: 0 | F24: =IF(C13=T20,ROUNDUP((E24/D24)*$C$18,0),0) -> 0 | G24: 90
A25: 106584 | B25: Kanamicina, medicamento liofilizado para uso en laboratorio, paquete de 6 viales | C25: paquete | D25: 1 | E25: 0 | F25: =IF(C13=T20,ROUNDUP((E25/D25)*$C$18,0),0) -> 0 | G25: 90
A26: 106587 | B26: Capreomicina, medicamento liofilizado para uso en laboratorio, paquete de 6 viales | C26: paquete | D26: 1 | E26: 0 | F26: =IF(C13=T20,ROUNDUP((E26/D26)*$C$18,0),0) -> 0 | G26: 90
A27: 106582 | B27: Suplemento enriquecedor de albúmina oleica dextrosa catalasa BD BBL Middlebrook OADC, 20 ml por tubo, tubo tamaño ''A'', suplemento enriquecedor BD BBL™ Middlebrook OADC, 20 ml por tubo, tubo tamaño ''A'' (10 muestras) | C27: paquete/ml | D27: 200 | E27: 0 | F27: =IF(C13=T20,ROUNDUP((E27/D27)*$C$18,0),0) -> 0 | G27: 65.8
A28: 106026 | B28: Tubos BBL MGIT para usar en Bactec MGIT 960 (7ml), 100 tubos por paquete | C28: tubos por caja | D28: 100 | E28: 0 | F28: =IF(C13=T20,ROUNDUP((E28/D28)*$C$18,0),0) -> 0 | G28: 195
A29: 106412 | B29: Puntas largas de 1 ml con filtro | C29: piezas por caja | D29: 800 | E29: 0 | F29: =IF(C13=T20,ROUNDUP((E29/D29)*$C$18,0),0) -> 0 | G29: 90
D30: Número total de pruebas de la resistencia a medicamentos de segunda línea requeridas | G30: =SUMPRODUCT(F23:F29,G23:G29) -> 0
E33: Indique aquí los materiales que necesite para cada prueba de acuerdo con el POE del laboratorio (se deben modificar los valores predeterminados)
A34: Código GDF | B34: Artículo | C34: Unidad | D34: Número por paquete | E34: Materiales necesarios por prueba | F34: Número de paquetes | G34: Costo por unidad (US$) | H34: Detalles del cálculo
A35: 106315 | B35: Protionamida (PTH), para uso en laboratorio | C35: g | D35: 2 | E35: 0 | F35: =IF($C$13=$U$20,ROUNDUP((E35/D35)*$C$18,0),0) -> 0 | G35: 165.9
A36: 106319 | B36: Capreomicina (CM), para uso en laboratorio | C36: g | D36: 1 | E36: 0 | F36: 0 | G36: 274.6
A37: 106560 | B37: Levofloxacina (LFX), para uso en laboratorio | C37: g | D37: 1 | E37: 0 | F37: 0 | G37: 43.75
A38: 106653 | B38: Linezolida, para uso en laboratorio | C38: mg | D38: 0 | E38: 0 | F38: 0 | G38: 516.95
A39: 106654 | B39: Clofazimina, para uso en laboratorio | C39: g | D39: 0 | E39: 0 | F39: 0 | G39: 111.3
B40: Bedaquilina, para uso en laboratorio | C40: g | D40: 0 | E40: 0 | F40: 0 | G40: 0
B41: Delamanida, para uso en laboratorio | C41: g | D41: 0 | E41: 0 | F41: 0 | G41: 0
A42: 106623 | B42: Suplemento enriquecedor BBL MGIT OADC, 6 viales de 15 ml (90 ml) | C42: paquete/ml | D42: 90 | E42: 0 | F42: 0 | G42: 55
A43: 106026 | B43: Tubos BBL MGIT para usar en Bactec MGIT 960 (7ml), 100 tubos por paquete | C43: tubos por caja | D43: 100 | E43: 0 | F43: 0 | G43: 195
A44: 106209 | B44: Pipeta serológica, 5 ml | C44: piezas por paquete | D44: 200 | E44: 0 | F44: 0 | G44: 60.95
A45: 106550 | B45: Pipeta serológica, 10 ml | C45: piezas por paquete | D45: 200 | E45: 0 | F45: 0 | G45: 62.1
A46: 106344 | B46: Crioviales estériles, 2 ml | C46: piezas por paquete | D46: 1000 | E46: 0 | F46: 0 | G46: 295.9
A47: 106388 | B47: Puntas de filtro para pipeta estériles, 5-100 μL | C47: piezas por paquete | D47: 960 | E47: 0 | F47: 0 | G47: 61
A48: 106352 | B48: Jeringas desechables estériles | C48: piezas por paquete | D48: 80 | E48: 0 | F48: 0 | G48: 86.05
D49: Número total de pruebas de la resistencia a medicamentos de segunda línea requeridas | G49: =SUMPRODUCT(F35:F48,G35:G48) -> 0
B56: Capacidad del instrumento BACTEC MGIT 960 que se necesita para hacer cultivos para pruebas de la resistencia a medicamentos de primera y segunda línea
B58: Número de pruebas realizadas | D58: Total de pruebas | E58: Número máximo de días para la detección según el protocolo | F58: Número de tubos por prueba según el protocolo | G58: Período (en días) | H58: Observaciones
B59: Total de cultivos para pruebas (+ % de repeticiones + % de controles) | D59: ='Proces+cultivo (sól. y líq.)'!F21 -> 0 | E59: 42 | F59: 1 | G59: =365*(period/12) -> 
B60: Total de pruebas con SIRE (+ % de repeticiones) | D60: ='Prueba de resistencia MGIT - 1ª'!C15 -> 0 | E60: 13 | F60: 5 | G60: =365*(period/12) ->  | H60: Portatubos AST Carrier para 5 tubos
B61: Total de pruebas de PZA (+ % de repeticiones) | D61: ='Prueba de resistencia MGIT - 1ª'!C21 -> 0 | E61: 21 | F61: 2 | G61: =365*(period/12) ->  | H61: Portatubos AST Carrier para 2 tubos
B62: Total de pruebas de medicamentos de segunda línea (+ % de repeticiones) con reactivos listos para usar | D62: =IF(C13=T20,C17,0) -> 0 | E62: 13 | F62: 8 | G62: =365*(period/12) ->  | H62: Portatubos AST Carrier para 8 tubos
B63: Total de pruebas de medicamentos de segunda línea (+ % de repeticiones) con reactivos en polvo | D63: =IF($C$13=$U$20,C17,0) -> 0 | E63: 13 | F63: 8 | G63: =365*(period/12) ->  | H63: Portatubos AST Carrier para 8 tubos
B65: Capacidad utilizada (número de tubos) | D65: Número de tubos
B66: Capacidad utilizada por los tubos para cultivos | D66: =((D59*F59)/G59)*E59 -> 
B67: Capacidad utilizada por los tubos SIRE | D67: =((D60*F60)/G60)*E60 -> 
B68: Capacidad utilizada por los tubos de pirazinamida | D68: =((D61*F61)/G61)*E61 -> 
B69: Capacidad utilizada por los tubos de medicamentos de segunda línea | D69: =(((D62*F62)/G62)*E62) + (((D63*F63)/G63)*E63) -> 
B70: Capacidad total utilizada por las pruebas en el período | D70: =SUM(D66:D69) -> 
B72: Número de sistemas BACTEC 960 necesarios para la capacidad requerida: | D72: =D70*1/960 -> 

Sheet Limpieza y bioseguridad
A1: Limpieza y bioseguridad
B3: Número de empleados del laboratorio | C3: 1
B4: Número de empleados en el laboratorio de bioseguridad de nivel 3 | C4: 1
B5: Número de cámaras de bioseguridad | C5: 1
B7: Limpieza
B9: Código GDF | C9: Familia | D9: Artículo | E9: Número por paquete | F9: Cantidad | G9: Precio (US$) | H9: Observaciones
B10: 106376 | C10: Material fungible | D10: Algodón | E10: 1 | F10: =ROUNDUP(Months/2/E10,0) -> 0 | G10: 8.55 | H10: 1 rollo cada 2 meses
B11: 106444 | C11: Material fungible | D11: Bolsas de plástico para residuos de riesgo biológico, 30 litros | E11: 200 | F11: =ROUNDUP(Months*110/E11,0) -> 0 | G11: 98.6 | H11: 3 por día para vestuario + 1 por cámara de bioseguridad
B12: 106348 | C12: Material fungible | D12: Bolsa de polipropileno transparente para residuos, 420 x 600 mm | E12: 1000 | F12: =ROUNDUP(Months*22*3/E12,0) -> 0 | G12: 107.05 | H12: 3 por día
B13: 106755 | C13: Material fungible | D13: Toallas de papel, 200 | E13: 1 | F13: =ROUNDUP(Months/2/E13,0) -> 0 | G13: 1.45 | H13: 1 por cada 2 meses
B14: 106359 | C14: Material fungible | D14: Cinta indicadora estéril, autoclave | E14: 1 | F14: =ROUNDUP(Months/3*2/E14,0) -> 0 | G14: 2.15 | H14: 2 por trimestre
B15: 106358 | C15: Material fungible | D15: Cinta indicadora estéril, horno de aire caliente | E15: 1 | F15: =ROUNDUP(Months/3*2/E15,0) -> 0 | G15: 14.25 | H15: 2 por trimestre
B16: 106377 | C16: Material fungible | D16: Papel de laboratorio absorbente | E16: 50 | F16: =ROUNDUP(Months*22*BSC/E16,0) -> 0 | G16: 30.8 | H16: 2 por cámara de bioseguridad por día | L16: =Months -> 0
B17: 106363 | C17: Material fungible | D17: Cepillo para tubos | E17: 5 | F17: =ROUNDUP('Proces+cultivo (sól. y líq.)'!F21/500/E17,0) -> 0 | G17: 8.95 | H17: Para cultivos, 1 por cada 500 cultivos
B18: 106371 | C18: Material fungible | D18: Desinfectante para superficies de cámaras de bioseguridad | E18: 1 | F18: =ROUNDUP(Months/3*BSC/E18,0) -> 0 | G18: 35.2 | H18: 1 botella por trimestre por cámara de bioseguridad
B19: 106294 | C19: Material fungible | D19: Desinfectante para instrumentos de limpieza | E19: 1 | F19: =ROUNDUP(Months/3*BSC/E19,0) -> 0 | G19: 46.55 | H19: 1 botella por trimestre por cámara de bioseguridad
B20: 106370 | C20: Material fungible | D20: Desinfectante para suelos | E20: 1 | F20: =ROUNDUP(Months/3/E20,0) -> 0 | G20: 17 | H20: 1 por cada 2 meses
B21: 106374 | C21: Material fungible | D21: Desinfectante para manos, 1 litro | E21: 1 | F21: =ROUNDUP(Months/0.5/E21,0) -> 0 | G21: 8.2 | H21: 2 por mes
B22: 106333 | C22: Sustancias químicas | D22: Etanol o isopropanol, 5 litros | E22: 1 | F22: =ROUNDUP(Months/1.5/E22,0) -> 0 | G22: 32.15 | H22: 2 botellas por trimestre por cámara de seguridad
B23: 106331 | C23: Sustancias químicas | D23: Fenol, 1 kg | E23: 1 | F23: =ROUNDUP(Months*22*0.025/E23,0) -> 0 | G23: 63.2 | H23: 25 g por día
B24: 106373 | C24: Material fungible | D24: Jabón líquido | E24: 1 | F24: =ROUNDUP(Months/0.33/E24,0) -> 0 | G24: 3.9 | H24: 3 por mes
B26: Bioseguridad | D26: Solo para el personal que trabaja en el laboratorio de bioseguridad de nivel 3
B27: 106727 | C27: Material fungible | D27: Gorros | E27: 1000 | F27: =ROUNDUP(staff3*Months*22/E27,0) -> 0 | G27: 61.45 | H27: 1 por día por empleado
B28: 106726 | C28: Material fungible | D28: Cubiertas para zapatos | E28: 2000 | F28: =ROUNDUP(staff3*Months*22*4/E28,0) -> 0 | G28: 213.25 | H28: 4 por día por empleado
B29: 106725 | C29: Material fungible | D29: Bata de laboratorio, talla grande, desechable, estéril | E29: 60 | F29: =ROUNDUP(staff3*Months*4.33*0.66/E29,0) -> 0 | G29: 501.25 | H29: 0,66 por semana por empleado
B30: 106724 | C30: Material fungible | D30: Bata de laboratorio, talla mediana, desechable, estéril | E30: 60 | F30: =ROUNDUP(staff3*Months*4.33*1.32/E30,0) -> 0 | G30: 501.25 | H30: 1.32 por empleado por semana
B31: 106723 | C31: Material fungible | D31: Bata de laboratorio, talla pequeña, desechable, estéril | E31: 60 | F31: =ROUNDUP(staff3*Months*4.33*0.33/E31,0) -> 0 | G31: 501.25 | H31: 0,66 por semana por empleado
B32: 106820 | C32: Material fungible | D32: Guantes de látex, grandes | E32: 100 | F32: =ROUNDUP(staff3*Months*22*10*0.33/E32,0) -> 0 | G32: 19.65 | H32: 10 por empleado por día
B33: 106819 | C33: Material fungible | D33: Guantes de látex, medianos | E33: 100 | F33: =ROUNDUP(staff3*Months*22*10*0.66/E33,0) -> 0 | G33: 19.65 | H33: 10 por empleado por día
B34: 106818 | C34: Material fungible | D34: Guantes de látex, pequeños | E34: 100 | F34: =ROUNDUP(staff3*Months*22*10*0.33/E34,0) -> 0 | G34: 19.65 | H34: 10 por empleado por día
B35: 106829 | C35: Material fungible | D35: Mascarillas desechables de protección respiratoria FFP2 | E35: 20 | F35: =ROUNDUP(staff3*Months*4.33/E35,0) -> 0 | G35: 40.1 | H35: 2 por empleado por semana
B36: 106502 | C36: Material fungible | D36: Bata quirúrgica de algodón, grande | E36: 1 | F36: =ROUNDUP(Months*4.33*BSC/E36,0) -> 0 | G36: 18.9 | H36: 1 por cámara de bioseguridad por semana
B37: 106501 | C37: Material fungible | D37: Bata quirúrgica de algodón, mediana | E37: 1 | F37: =ROUNDUP(Months*4.33*BSC/E37,0) -> 0 | G37: 18.9 | H37: 1 por cámara de bioseguridad por semana
B38: 106500 | C38: Material fungible | D38: Bata quirúrgica de algodón, pequeñas | E38: 1 | F38: =ROUNDUP(Months*4.33*BSC/E38,0) -> 0 | G38: 18.9 | H38: 1 por cámara de bioseguridad por semana
B39: 106094 | C39: Material fungible | D39: Botiquín de primeros auxilios para laboratorios científicos | E39: 1 | F39: 0 | G39: 248.85 | H39: 1 por cada 3 años
D42: Resumen | G42: Costo (US$)
D43: Costo de la limpieza | G43: =SUMPRODUCT(F10:F24,G10:G24) -> 0
D44: Costo de la bioseguridad | G44: =SUMPRODUCT(F27:F39,G27:G39) -> 0
D45: Costo total | G45: =G43+G44 -> 0

Sheet Mantenimiento y reparaciones
A1: Mantenimiento y reparaciones
C2: Tipo de cambio | D2: 1 | E2: 0
B4: Costos de los contratos de servicio y mantenimiento de equipos
B5: Equipo | C5: Número de unidades | D5: Costo por unidad (US$) | E5: Costos de servicio para 1 año (US$) | F5: Observaciones y detalles
B6: Cámaras de bioseguridad | C6: 0
B7: Contrato de servicio para 1 año | C7: 0 | D7: 0 | E7: =D7*C7 -> 0
B8: Piezas de repuesto | C8: 0 | D8: 0 | E8: =D8*C8 -> 0
B9: Viajes y alojamiento para técnicos | C9: 0 | D9: 0 | E9: =D9*C9 -> 0
B10: Subtotal | E10: =SUM(E7:E9) -> 0
B11: TwinCubator (LPA) | C11: 0
B12: Contrato de servicio para 1 año | C12: 0 | D12: 0 | E12: 0
B13: Piezas de repuesto | C13: 0 | D13: 0 | E13: =D13*C13 -> 0
B14: Viajes y alojamiento para técnicos | C14: 0 | D14: 0 | E14: =D14*C14 -> 0
B15: Subtotal | E15: =SUM(E12:E14) -> 0
B17: Termociclador | C17: 0
B18: Contrato de servicio para 1 año | C18: 0 | D18: 0 | E18: =D18*C18 -> 0
B19: Piezas de repuesto | C19: 0 | D19: 0 | E19: =D19*C19 -> 0
B20: Viajes y alojamiento para técnicos | C20: 0 | D20: 0 | E20: =D20*C20 -> 0
B21: Subtotal | E21: =SUM(E18:E20) -> 0
B23: Flujo laminar (estación de trabajo de PCR) | C23: 0
B24: Contrato de servicio para 1 año | C24: 0 | D24: 0 | E24: =D24*C24 -> 0
B25: Piezas de repuesto | C25: 0 | D25: 0 | E25: =D25*C25 -> 0
B26: Viajes y alojamiento para técnicos | C26: 0 | D26: 0 | E26: =D26*C26 -> 0
B27: Subtotal | E27: =SUM(E24:E26) -> 0
B29: Autoclave | C29: 0
B30: Contrato de servicio para 1 año | C30: 0 | D30: 0 | E30: =D30*C30 -> 0
B31: Piezas de repuesto | C31: 0 | D31: 0 | E31: =D31*C31 -> 0
B32: Viajes y alojamiento para técnicos | C32: 0 | D32: 0 | E32: =D32*C32 -> 0
B33: Subtotal | E33: =SUM(E30:E32) -> 0
B35: Sistema BD BACTEC™ MGIT™ 960 | C35: 0
B36: Contrato de servicio para 1 año | C36: 0 | D36: 0 | E36: =D36*C36 -> 0 | F36: 1 visita por año calendario, 2 llamadas de emergencia
B37: Viajes y alojamiento para técnicos | C37: 0 | D37: 0 | E37: =D37*C37 -> 0 | F37: Solo para visitas de emergencia (1 al año)
B38: Filtros de aire BD BBL™, rectangulares, 2 paquetes (1 por año) | C38: 0 | D38: 0 | E38: =D38*C38 -> 0
B39: Kit calibrador BD BBL™ (para 1 cajón) | C39: 0 | D39: 0 | E39: =D39*C39 -> 0
B40: Subtotal | E40: =SUM(E36:E39) -> 0
B43: BD MAX MDR-TB | C43: 0
C44: 0 | D44: 0 | E44: =D44*C44 -> 0
C45: 0 | D45: 0 | E45: =D45*C45 -> 0
B46: Subtotal | E46: =SUM(E44:E45) -> 0
B48: FluoroType MTBDR Ver 2.0 | C48: 0
C49: 0 | D49: 0 | E49: =D49*C49 -> 0
C50: 0 | D50: 0 | E50: =D50*C50 -> 0
B51: Subtotal | E51: =SUM(E49:E50) -> 0
B53: MTB y MTB-RIF/INH de Cobas® | C53: 0
C54: 0 | D54: 0 | E54: =D54*C54 -> 0
C55: 0 | D55: 0 | E55: =D55*C55 -> 0
B56: Subtotal | E56: =SUM(E54:E55) -> 0
B58: RT MTB y MTB RIF/INH de Abbott | C58: 0
C59: 0 | D59: 0 | E59: =D59*C59 -> 0
C60: 0 | D60: 0 | E60: =D60*C60 -> 0
B61: Subtotal | E61: =SUM(E59:E60) -> 0
A63: Código GDF | B63: GeneXpert de 4 módulos | C63: 0 | D63: Costo por unidad (US$)*: precios del catálogo GDF
A64: WX04RG12 | B64: Prórroga de un año de la garantía | C64: 0 | D64: 2898 | E64: =D64*C64 -> 0 | F64: La garantía incluye 1 kit Xpert Check para el año 1; por lo tanto, se debe encargar otro kit por separado para el año 2.
A65: WX04RG36 | B65: Prórroga de tres años de la garantía | C65: 0 | D65: 7902 | E65: =D65*C65 -> 0 | F65: Esta garantía incluye kits Xpert Check para los años 1, 2, 3 y 4; por lo tanto, se debe encargar otro kit por separado para el año 5.
A66: WX04UP36 | B66: Prórroga de tres años de la garantía, encargada con el sistema | C66: 0 | D66: 6840 | E66: =D66*C66 -> 0 | F66: Esta garantía incluye kits Xpert Check para los años 1, 2, 3 y 4; por lo tanto, se debe encargar otro kit por separado para el año 5.
A67: XPERTCHECK-CE-5 | B67: Paquete de calibración XpertCheck para el sistema GeneXpert GX-IV de 4 módulos | C67: 0 | D67: 450 | E67: 0 | F67: Se debe encargar un paquete de XpertCheck al encargar un nuevo sistema GeneXpert sin una prórroga de tres años de la garantía (WX04UP36). Los paquetes se habrán agotado al cabo del año 1, durante la garantía inicial gratuita de dos años.
A68: 700-4510 | B68: Filtro de polvo para el sistema GeneXpert | C68: 0 | D68: 350 | E68: 0 | F68: Se necesita un filtro adicional para ambientes con mucho polvo. Producto vinculado a todos los sistemas Xpert.
A69: Módulo GX-IV | B69: Módulo GeneXpert adicional o de reemplazo | C69: 0 | D69: 3360 | E69: 0
A70: GX-SWAP-1 | B70: 1 módulo de reemplazo | C70: 0 | D70: 900 | E70: 0
B71: Actualización a un instrumento de 10 colores | C71: 0 | D71: 0 | E71: =D71*C71 -> 0
B72: Viajes y alojamiento del técnico | C72: 0 | D72: 0 | E72: =D72*C72 -> 0
B73: Subtotal | E73: =SUM(E64:E72) -> 0
A75: Código GDF | B75: GeneXpert de 2 módulos | C75: 0 | D75: Costo por unidad (US$)*: precios del catálogo GDF
A76: WX02RG12 | B76: Prórroga de un año de la garantía | C76: 0 | D76: 1896 | E76: =D76*C76 -> 0 | F76: La garantía incluye 1 kit Xpert Check para el año 1; por lo tanto, se debe encargar otro kit por separado para el año 2.
A77: WX02RG36 | B77: Prórroga de tres años de la garantía | C77: 0 | D77: 5184 | E77: =D77*C77 -> 0 | F77: Esta garantía incluye kits Xpert Check para los años 1, 2, 3 y 4; por lo tanto, se debe encargar otro kit por separado para el año 5.
A78: WX02UP36 | B78: prórroga de tres años de la garantía, encargada con el sistema | C78: 0 | D78: 4500 | E78: =D78*C78 -> 0 | F78: Esta garantía incluye kits Xpert Check para los años 1, 2, 3 y 4; por lo tanto, se debe encargar otro kit por separado para el año 5.
A79: XPERTCHECK-CE-5 | B79: Paquete de calibración XpertCheck para el sistema GeneXpert GX-IV de 4 módulos | C79: 0 | D79: 450 | E79: 0 | F79: Se debe encargar un paquete de XpertCheck al encargar un nuevo sistema GeneXpert sin una prórroga de tres años de la garantía (WX04UP36). Los paquetes se habrán agotado al cabo del año 1, durante la garantía inicial gratuita de dos años.
A80: 700-4510 | B80: Filtro de polvo para el sistema GeneXpert | C80: 0 | D80: 350 | E80: 0 | F80: Se necesita un filtro adicional para ambientes con mucho polvo. Producto vinculado a todos los sistemas Xpert.
A81: Módulo GX-IV | B81: Módulo GeneXpert adicional o de reemplazo | C81: 0 | D81: 3360 | E81: 0
A82: GX-SWAP-1 | B82: 1 módulo de reemplazo | C82: 0 | D82: 900 | E82: 0
B83: Actualización a un instrumento de 10 colores | C83: 0 | D83: 0 | E83: =D83*C83 -> 0
B84: Viajes y alojamiento del técnico | C84: 0 | D84: 0 | E84: =D84*C84 -> 0
B85: Subtotal | E85: =SUM(E76:E84) -> 0
A87: Código GDF | B87: GeneXpert de 16 módulos | C87: 0 | D87: Costo por unidad (US$)*: precios del catálogo GDF | F87: La garantía incluye 1 kit Xpert Check para el año 1; por lo tanto, se debe encargar otro kit por separado para el año 2.
A88: WV16RG12 | B88: Prórroga de un año de la garantía | C88: 0 | D88: 7800 | E88: =D88*C88 -> 0 | F88: Esta garantía incluye kits Xpert Check para los años 1, 2, 3 y 4; por lo tanto, se debe encargar otro kit por separado para el año 5.
A89: WX16RG36 | B89: Prórroga de tres años de la garantía | C89: 0 | D89: 20898 | E89: =D89*C89 -> 0 | F89: Esta garantía incluye kits Xpert Check para los años 1, 2, 3 y 4; por lo tanto, se debe encargar otro kit por separado para el año 5.
A90: WX16UP36 | B90: Prórroga de tres años de la garantía, encargada con el sistema | C90: 0 | D90: 18504 | E90: =D90*C90 -> 0 | F90: Se debe encargar un paquete de XpertCheck al encargar un nuevo sistema GeneXpert sin una prórroga de tres años de la garantía (WX04UP36). Los paquetes se habrán agotado al cabo del año 1, durante la garantía inicial gratuita de dos años.
A91: XPERTCHECK-CE-5 | B91: Paquete de calibración XpertCheck para el sistema GeneXpert GX-IV de 4 módulos | C91: 0 | D91: 450 | E91: 0 | F91: Se necesita un filtro adicional para ambientes con mucho polvo. Producto vinculado a todos los sistemas Xpert.
A92: 700-4510 | B92: Filtro de polvo para el sistema GeneXpert | C92: 0 | D92: 350 | E92: 0
A93: Módulo GX-IV | B93: Módulo GeneXpert adicional o de reemplazo | C93: 0 | D93: 3360 | E93: 0
A94: GX-SWAP-1 | B94: 1 módulo de reemplazo | C94: 0 | D94: 900 | E94: 0
B95: Actualización a un instrumento de 10 colores | C95: 0 | D95: 0 | E95: 0
B96: Viajes y alojamiento del técnico | C96: 0 | D96: 0 | E96: =D96*C96 -> 0
B97: Subtotal | E97: =SUM(E88:E96) -> 0
A99: Código GDF | B99: Prueba Truenat | C99: 0 | D99: Costo por unidad (US$)*: precios del catálogo GDF | F99: El contrato de mantenimiento integral incluye 1) asistencia a distancia y visita del técnico si es necesario; 2) reparación y reemplazo de piezas. Si una máquina no se puede reparar in situ, se provee una máquina de reserva. Si hay que reemplazar la máquina, se proveerá una máquina de reemplazo gratis por cuenta de Molbio; 3) viajes en el país y mano de obra del agente local de la empresa.
A100: 106702 | B100: Prórroga de un año de la garantía de Truelab y Trueprep | C100: 0 | D100: 1220 | E100: =D100*C100 -> 0 | F100: El contrato de mantenimiento integral incluye 1) asistencia a distancia y visita del técnico si es necesario; 2) reparación y reemplazo de piezas. Si una máquina no se puede reparar in situ, se provee una máquina de reserva. Si hay que reemplazar la máquina, se proveerá una máquina de reemplazo gratis por cuenta de Molbio; 3) viajes en el país y mano de obra del agente local de la empresa; 4) chips de calibración y materiales utilizados para el servicio y mantenimiento.
A101: 106703 | B101: Prórroga de dos años de la garantía de Truelab y Trueprep | C101: 0 | D101: 2240 | E101: =D101*C101 -> 0 | F101: El contrato de mantenimiento integral incluye 1) asistencia a distancia y visita del técnico si es necesario; 2) reparación y reemplazo de piezas. Si una máquina no se puede reparar in situ, se provee una máquina de reserva. Si hay que reemplazar la máquina, se proveerá una máquina de reemplazo gratis por cuenta de Molbio; 3) viajes en el país y mano de obra del agente local de la empresa.
A102: 106704 | B102: Prórroga de tres años de la garantía de Truelab y Trueprep | C102: 0 | D102: 3360 | E102: 0 | F102: El contrato de mantenimiento integral incluye 1) asistencia a distancia y visita del técnico si es necesario; 2) reparación y reemplazo de piezas. Si una máquina no se puede reparar in situ, se provee una máquina de reserva. Si hay que reemplazar la máquina, se proveerá una máquina de reemplazo gratis por cuenta de Molbio; 3) viajes en el país y mano de obra del agente local de la empresa.
A103: 106705 | B103: Prórroga de cuatro años de la garantía de Truelab y Trueprep | C103: 0 | D103: 4480 | E103: 0 | F103: El contrato de mantenimiento integral incluye 1) asistencia a distancia y visita del técnico si es necesario; 2) reparación y reemplazo de piezas. Si una máquina no se puede reparar in situ, se provee una máquina de reserva. Si hay que reemplazar la máquina, se proveerá una máquina de reemplazo gratis por cuenta de Molbio; 3) viajes en el país y mano de obra del agente local de la empresa.
A104: 106706 | B104: Prórroga de cinco años de la garantía de Truelab y Trueprep | C104: 0 | D104: 5600 | E104: 0
B105: Subtotal | E105: =SUM(E100:E104) -> 0
A107: Código GDF | B107: TB-LAMP | C107: 0 | D107: Costo por unidad (US$)*: precios del catálogo GDF | F107: • Comprobación de las condiciones in situ durante 1 año • Limpieza exhaustiva del área de trabajo, la superficie del instrumento, los bloques de calefacción y la unidad de lectura de fluorescencia de acuerdo con la lista de verificación de mantenimiento • Inspección y validación del sistema de alimentación ininterrumpida y las tomas de corriente • Control de la temperatura y verificación de que el bloque de incubación y reacción alcance la temperatura objetivo de acuerdo con la lista de verificación de mantenimiento • Kit de pruebas de mantenimiento para asegurar que el instrumento funcione correctamente de acuerdo con la calificación de operación (OQ) • Equipo necesario y kit de pruebas para la calificación de operación • Emisión de certificado de calificación de operación
A108: 106639 | B108: Mantenimiento de TB-LAMP durante 1 año | C108: 0 | D108: 1358.5 | E108: =D108*C108 -> 0 | F108: • Prórroga de un año de la garantía (in situ) si el mantenimiento se realiza antes de la conclusión del primer período de garantía y se entrega a HUMAN una copia de la lista de verificación de mantenimiento completada. • Limpieza exhaustiva del área de trabajo, la superficie del instrumento, los bloques de calefacción y la unidad de lectura de fluorescencia de acuerdo con la lista de verificación de mantenimiento • Inspección y validación del sistema de alimentación ininterrumpida y las tomas de corriente • Control de la temperatura y verificación de que el bloque de incubación y reacción alcance la temperatura objetivo de acuerdo con la lista de verificación de mantenimiento • Kit de pruebas de mantenimiento para asegurar que el instrumento funcione correctamente de acuerdo con la calificación de operación (OQ) • Equipo necesario y kit de pruebas para la calificación de operación • Emisión de certificado de calificación de operación
A109: 106640 | B109: Mantenimiento con prórroga de la garantía para TB-LAMP | C109: 0 | D109: 1842.5 | E109: =D109*C109 -> 0
B110: Subtotal | E110: =SUM(E108:E109) -> 0
B113: LIS | C113: 0
B114: Contrato de servicio para 1 año | C114: 0 | D114: 0 | E114: =D114*C114 -> 0
B115: Viajes y alojamiento del técnico | C115: 0 | D115: 0 | E115: =D115*C115 -> 0
B116: Subtotal | E116: =SUM(E93:E115) -> 0
B119: Sistema de ventilación del laboratorio de cultivos y pruebas de sensibilidad a fármacos | C119: 0
B120: Contrato de servicio para 1 año | C120: 0 | D120: 0 | E120: =D120*C120 -> 0
B121: Piezas de repuesto | C121: 0 | D121: 0 | E121: =D121*C121 -> 0
B122: Viajes y alojamiento del técnico | C122: 0 | D122: 0 | E122: =D122*C122 -> 0
B123: Subtotal | E123: =SUM(E120:E122) -> 0
B125: Costo total del mantenimiento (US$) | E125: =E10+E27+E33+E40+E46+E51+E56+E61+E73+E85+E97+E105+E110+E116+E123+E15+E21 -> 0
B129: Costos de reparación de equipos (con y sin contratos de servicio) | F129: Costos de reparación (10% del valor)
A130: Código GDF | B130: Equipo | C130: Número de unidades | D130: Costo por unidad (US$)*: precios del catálogo GDF | E130: Valor del equipo (US$) | F130: =E131*10% -> 0
A131: 106535 | B131: Microscopio binocular de campo iluminado, ZN | C131: 0 | D131: 921.09 | E131: =C131*D131 -> 0 | F131: 0
A132: 106629 | B132: Espejo reflectante para microscopio de campo iluminado, ZN | C132: 0 | D132: 12.82 | E132: 0 | F132: 0
A133: 106533 | B133: Microscopio, unidad de suministro de batería | C133: 0 | D133: 94.11 | E133: 0 | F133: 0
A134: 106531 | B134: Microscopio LED (configuración básica) | C134: 0 | D134: 1503.8 | E134: 0 | F134: 0
A135: 106532 | B135: Microscopio LED, espejo de luz | C135: 0 | D135: 24 | E135: 0 | F135: 0
A136: 106475 | B136: Calentador de portaobjetos | C136: 0 | D136: 1056.75 | E136: 0 | F136: 0
A137: 106709 | B137: Sistema de alimentación ininterrumpida: 3000 VA - 2100 W con bloque de baterías | C137: 0 | D137: 1933.5 | E137: 0 | F137: 0
A138: 106710 | B138: Bloque de baterías para sistema de alimentación ininterrumpida de 3000 VA | C138: 0 | D138: 2364.8 | E138: 0 | F138: 0
A139: 106016 | B139: Impresora para BACTEC | C139: 0 | D139: 532 | F139: 0
A140: 106248 | B140: Estante perforado de acero inoxidable | C140: 0 | D140: 183 | F140: 0
A141: 106451 | B141: Densitómetro | C141: 0 | D141: 699.05 | E141: 0 | F141: 0
A142: 106729 | B142: Agitador orbital compacto (para cámara de bioseguridad) | C142: 0 | D142: 853.6 | E142: 0 | F142: 0
A143: 106220 | B143: Agitador superior con adaptador universal | C143: 0 | D143: 1891.55 | E143: 0 | F143: 0
A144: 106048 | B144: Centrífuga de microlitros | C144: 0 | D144: 2034.75 | E144: 0 | F144: 0
A145: 106729 | B145: Agitador orbital digital | C145: 0 | D145: 853.6 | E145: 0 | F145: 0
A146: 106257 | B146: Horno universal, 32 litros | C146: 0 | D146: 1306.55 | E146: 0 | F146: 0
A147: 106224 | B147: Centrífuga de sobremesa refrigerada | C147: 0 | D147: 6060.3 | E147: 0 | F147: 0
A148: 106225 | B148: Rotor oscilante de 4 plazas | C148: 0 | D148: 948.7 | E148: 0 | F148: 0
A149: 106226 | B149: Cucharones de rotor | C149: 0 | D149: 589.25 | E149: 0 | F149: 0
A150: 106227 | B150: Tapas herméticas para aerosoles, para cucharones de rotor | C150: 0 | D150: 174.2 | E150: 0 | F150: 0
A151: 106228 | B151: Adaptador reductor para tubos de 50 ml | C151: 0 | D151: 327.15 | E151: 0 | F151: 0
A152: 106229 | B152: Adaptador reductor para tubos de 15 o 12 ml | C152: 0 | D152: 327.15 | E152: 0 | F152: 0
A153: 106732 | B153: Termobloqueo y termocalentador | C153: 0 | D153: 1489.45 | E153: 0 | F153: =E154*10% -> 0
A154: 106064 | B154: GT-Blot 48 | C154: 0 | D154: =14352*E2 -> 0 | E154: =C154*D154 -> 0 | F154: 0
A155: 106438 | B155: Bandeja GT-Blot 48 para 96 tiras (negra) | C155: 0 | D155: =2.9*E2 -> 0 | E155: 0 | F155: 0
A156: 106613 | B156: GTQ-Cycler 96 | C156: 0 | D156: =4595*E2 -> 0 | E156: 0 | F156: 0
A157: 106707 | B157: Sistema de alimentación ininterrumpida: 700 VA - 500 W con bloque de baterías | C157: 0 | D157: 761.15 | E157: 0 | F157: 0
A158: 106708 | B158: Bloque de baterías para sistema de alimentación ininterrumpida de 700 VA | C158: 0 | D158: 1749.3 | E158: 0 | F158: 0
A159: 106595 | B159: Estabilizador de tensión de 2000 W | C159: 0 | D159: 255.95 | E159: 0 | F159: 0
A160: 106099 | B160: Horno de laboratorio, 256 litros | C160: 0 | D160: 3530.65 | E160: 0 | F160: 0
A161: 106100 | B161: Estantes para horno de laboratorio, 256 litros | C161: 0 | D161: 111 | E161: 0 | F161: 0
A162: 106101 | B162: Lavadora-desinfectadora de laboratorio | C162: 0 | D162: 7984.9 | E162: 0 | F162: 0
A163: 106102 | B163: Lavadora-desinfectadora de medio inserto | C163: 0 | D163: 2014.25 | E163: 0 | F163: 0
A164: 106103 | B164: Medio inserto para cestas | C164: 0 | D164: 432 | E164: 0 | F164: 0
A165: 106104 | B165: Cesta superior e inyector para boquillas | C165: 0 | D165: 1537 | E165: 0 | F165: 0
A166: 106105 | B166: Inserto de un cuarto para tubos de ensayo, 160 x 16 | C166: 0 | D166: 393 | E166: 0 | F166: 0
A167: 106138 | B167: Inspissator para la coagulación de medios de cultivo a base de huevo | C167: 0 | D167: 4663.15 | E167: 0 | F167: 0
A168: 106127 | B168: Destilador de agua totalmente automático | C168: 0 | D168: 1914.45 | E168: 0 | F168: 0
A169: 106137 | B169: Soporte de cristalería | C169: 0 | D169: 48.35 | E169: 0 | F169: 0
A170: 106140 | B170: Refrigerador de pie de laboratorio, 141 litros | C170: 0 | D170: 1539.4 | E170: 0 | F170: 0
A171: 106424 | B171: Congelador de laboratorio, 143 litros | C171: 0 | D171: 1483.1 | E171: 0 | F171: 0
A172: 106142 | B172: Cámara de ultracongelación de 70 litros, –50 °C a –85 °C | C172: 0 | D172: 9940.1 | E172: 0 | F172: 0
A173: 106130 | B173: Medidor de pH de sobremesa | C173: 0 | D173: 458.25 | E173: 0 | F173: 0
A174: 106132 | B174: Agitador magnético con placa calefactora | C174: 0 | D174: 1224.55 | E174: 0 | F174: 0
A175: 106720 | B175: Barras magnéticas, juego de 18 | C175: 0 | D175: 86.35 | E175: 0 | F175: 0
A176: 106733 | B176: Licuadora de laboratorio | C176: 0 | D176: 1270.95 | E176: 0 | F176: 0
A177: 106734 | B177: Jarra para licuadora de laboratorio | C177: 0 | D177: 189.95 | E177: 0 | F177: 0
A178: 106128 | B178: Balanza analítica electrónica para pruebas de sensibilidad a fármacos | C178: 0 | D178: 2007.8 | E178: 0 | F178: 0
A179: 106129 | B179: Balanza electrónica de precisión | C179: 0 | D179: 285.6 | E179: 0 | F179: 0
A180: 106142 | B180: Cámara de ultracongelación de 70 litros, –40 °C a –86 °C | C180: 0 | D180: 15422.4 | E180: 0 | F180: 0
A181: 106719 | B181: Estante de acero inoxidable para cámara de ultracongelación | C181: 0 | D181: 3764.25 | E181: 0 | F181: 0
A182: 106594 | B182: Guantes criogénicos | C182: 0 | D182: 143.4 | E182: 0 | F182: 0
A183: 106053 | B183: Pipeta de 1 canal; varía de 1 a 10 μL | C183: 0 | D183: 204.25 | E183: 0 | F183: 0
A184: 106054 | B184: Pipeta de 1 canal, varía de 20 a 20 μL | C184: 0 | D184: 204.25 | E184: 0 | F184: 0
A185: 106055 | B185: Pipeta de 1 canal; varía de 10 a 100 μL | C185: 0 | D185: 204.25 | E185: 0 | F185: 0
A186: 106056 | B186: Pipeta de 1 canal, varía de 20 a 200 μL | C186: 0 | D186: 204.25 | E186: 0
F194: =SUM(F130:F193) -> 0
B195: Costo total del mantenimiento (US$) | E195: =SUM(E131:E194) -> 0

Sheet Human resources (hidden)
C1: Human Resources
C4: Salary and Incentives
D5: No. of staff | E5: Annual contract amount per staff /year (USD) | F5: % contract | G5: Annual incentives per staff (USD) | H5: Total annual costs (USD)
C6: Head of laboratory | D6: 0 | E6: 0 | F6: 0 | G6: 0 | H6: =(D6*E6*F6)+(G6*D6) -> 0
C7: Laboratory doctors NRL | D7: 0 | E7: 0 | F7: 0 | G7: 0 | H7: =(D7*E7*F7)+(G7*D7) -> 0
C8: Laboratory technicians NRL | D8: 0 | E8: 0 | F8: 0 | G8: 0 | H8: 0
C9: Laboratory Clerk | D9: 0 | E9: 0 | F9: 0 | G9: 0 | H9: 0
C10: Nurse assistant/Cleaner | D10: 0 | E10: 0 | F10: 0 | G10: 0 | H10: 0
C11: Microscopy supervisor | D11: 0 | E11: 0 | F11: 0 | G11: 0 | H11: 0
C12: **Program officer (liason btw program & lab) | D12: 0 | E12: 0 | F12: 0 | G12: 0 | H12: 0
C13: Total Salary & Incentives | H13: =SUM(H6:H12) -> 0
C16: Training 1: Refresher traning microscopy for ZN and LED
C17: Number of sessions (per year) | D17: 0
C18: Length of session (average number of days per session) | D18: 0
C19: Number of participants (per session) | D19: 0
C20: Number of participants requiring per diems (per session) | D20: 0
C21: Number of national facilitators (average per course) | D21: 0
C22: Number of international facilitators (average per course) | D22: 0
C24: Costs for participants | E24: If no budget required for any of the mentioned activities, e.g. per diem for national facilitators, manualley enter "0"
C25: Total per diem | D25: =D17*D18*D20*#REF! -> 
C26: Total cost of transportation | D26: =D19*D17*#REF! -> 
C27: Total cost of hotel | D27: =D20*D18*D17*#REF! -> 
C28: Costs for national experts/facilitators
C29: Total per diem | D29: =D21*D17*D18*#REF! -> 
C30: Total cost of transportation | D30: =D17*D21*#REF! -> 
C31: Total cost of hotel | D31: =D21*D18*D17*#REF! -> 
C32: Costs for international experts/facilitators
C33: Total per diems | D33: =D22*D17*D18*#REF! -> 
C34: Total daily fee | D34: =D22*D18*D17*#REF! -> 
C35: Total travel costs | D35: =D22*D17*#REF! -> 
C36: Total transportation costs | D36: =D22*D17*#REF! -> 
C37: Additional costs
C38: Total cost of refresher and lunch | D38: =(D19+D21+D22)*D18*D17*#REF! -> 
C39: Total cost of room rental | D39: 0
C40: Total cost of stationary & training material (per sesssion) | D40: =D17*D19*#REF! -> 
C41: Other costs <specify> (typical per session) | D41: 0
C42: Total Training 1 | D42: =SUM(D25:D41) -> 
C44: Training 2: Training for GX user (refresher and for new people)
C45: Number of sessions (per year) | D45: 0
C46: Length of session (average number of days per session) | D46: 0
C47: Number of participants (per session) | D47: 0
C48: Number of participants requiring per diems (per session) | D48: 0
C49: Number of national facilitators (average per course) | D49: 0
C50: Number of international facilitators (average per course) | D50: 0
C52: Costs for participants | E52: If no budget required for any of the mentioned activities, e.g. per diem for national facilitators, manualley enter "0"
C53: Total per diem | D53: =D48*D46*D45*#REF! -> 
C54: Total cost of transportation | D54: =D47*D45*#REF! -> 
C55: Total cost of hotel | D55: =D48*D46*D45*#REF! -> 
C56: Costs for national experts/facilitators
C57: Total per diem | D57: =D49*D45*D46*#REF! -> 
C58: Total cost of transportation | D58: =D49*D45*#REF! -> 
C59: Total cost of hotel | D59: =D49*D46*D45*#REF! -> 
C60: Costs for international experts/facilitators
C61: Total per diems | D61: =D50*D45*D46*#REF! -> 
C62: Total daily fee | D62: =D50*D46*D45*#REF! -> 
C63: Total travel costs | D63: =D50*D45*#REF! -> 
C64: Total transportation costs | D64: =D50*D45*#REF! -> 
C65: Additional costs
C66: Total cost of refresher and lunch | D66: =(D47+D49+D50)*D46*D45*#REF! -> 
C67: Total cost of room rental | D67: 0
C68: Total cost of stationary & training material (per sesssion) | D68: =D45*D47*#REF! -> 
C69: Other costs <specify> (typical per session) | D69: 0
C70: Total Training 2 | D70: =SUM(D53:D69) -> 
C73: Training 3: TB-LAMP Training (refresher and for new people)
C74: Number of sessions (per year) | D74: 0
C75: Length of session (average number of days per session) | D75: 0
C76: Number of participants (per session) | D76: 0
C77: Number of participants requiring per diems (per session) | D77: 0
C78: Number of national facilitators (average per course) | D78: 0
C79: Number of international facilitators (average per course) | D79: 0
C81: Costs for participants | E81: If no budget required for any of the mentioned activities, e.g. per diem for national facilitators, manualley enter "0"
C82: Total per diem | D82: =D77*D75*D74*#REF! -> 
C83: Total cost of transportation | D83: =D76*D74*#REF! -> 
C84: Total cost of hotel | D84: =D77*D75*D74*#REF! -> 
C85: Costs for national experts/facilitators
C86: Total per diem | D86: =D78*D74*D75*#REF! -> 
C87: Total cost of transportation | D87: =D78*D74*#REF! -> 
C88: Total cost of hotel | D88: =D78*D75*D74*#REF! -> 
C89: Costs for international experts/facilitators
C90: Total per diems | D90: =D79*D74*D75*#REF! -> 
C91: Total daily fee | D91: =D79*D75*D74*#REF! -> 
C92: Total travel costs | D92: =D79*D74*#REF! -> 
C93: Total transportation costs | D93: =D79*D74*#REF! -> 
C94: Additional costs
C95: Total cost of refresher and lunch | D95: =(D76+D78+D79)*D75*D74*#REF! -> 
C96: Total cost of room rental | D96: 0
C97: Total cost of stationary & training material (per sesssion) | D97: =D74*D76*#REF! -> 
C98: Other costs <specify> (typical per session) | D98: 0
C99: Total Training 3 | D99: =SUM(D82:D98) -> 
C102: Training 4: LAM Training (refresher and for new people)
C103: Number of sessions (per year) | D103: 0
C104: Length of session (average number of days per session) | D104: 0
C105: Number of participants (per session) | D105: 0
C106: Number of participants requiring per diems (per session) | D106: 0
C107: Number of national facilitators (average per course) | D107: 0
C108: Number of international facilitators (average per course) | D108: 0
C110: Costs for participants | E110: If no budget required for any of the mentioned activities, e.g. per diem for national facilitators, manualley enter "0"
C111: Total per diem | D111: =D106*D104*D103*#REF! -> 
C112: Total cost of transportation | D112: =D105*D103*#REF! -> 
C113: Total cost of hotel | D113: =D106*D104*D103*#REF! -> 
C114: Costs for national experts/facilitators
C115: Total per diem | D115: =D107*D103*D104*#REF! -> 
C116: Total cost of transportation | D116: =D107*D103*#REF! -> 
C117: Total cost of hotel | D117: =D107*D104*D103*#REF! -> 
C118: Costs for international experts/facilitators
C119: Total per diems | D119: =D108*D103*D104*#REF! -> 
C120: Total daily fee | D120: =D108*D104*D103*#REF! -> 
C121: Total travel costs | D121: =D108*D103*#REF! -> 
C122: Total transportation costs | D122: =D108*D103*#REF! -> 
C123: Additional costs
C124: Total cost of refresher and lunch | D124: =(D105+D107+D108)*D104*D103*#REF! -> 
C125: Total cost of room rental | D125: 0
C126: Total cost of stationary & training material (per sesssion) | D126: =D103*D105*#REF! -> 
C127: Other costs <specify> (typical per session) | D127: 0
C128: Total Training 4 | D128: =SUM(D111:D127) -> 
C131: Training 5: LPA (1st and 2nd line drugs) Training (refresher and for new people)
C132: Number of sessions (per year) | D132: 0
C133: Length of session (average number of days per session) | D133: 0
C134: Number of participants (per session) | D134: 0
C135: Number of participants requiring per diems (per session) | D135: 0
C136: Number of national facilitators (average per course) | D136: 0
C137: Number of international facilitators (average per course) | D137: 0
C139: Costs for participants | E139: If no budget required for any of the mentioned activities, e.g. per diem for national facilitators, manualley enter "0"
C140: Total per diem | D140: =D135*D133*D132*#REF! -> 
C141: Total cost of transportation | D141: =D134*D132*#REF! -> 
C142: Total cost of hotel | D142: =D135*D133*D132*#REF! -> 
C143: Costs for national experts/facilitators
C144: Total per diem | D144: =D136*D132*D133*#REF! -> 
C145: Total cost of transportation | D145: =D136*D132*#REF! -> 
C146: Total cost of hotel | D146: =D136*D133*D132*#REF! -> 
C147: Costs for international experts/facilitators
C148: Total per diems | D148: =D137*D132*D133*#REF! -> 
C149: Total daily fee | D149: =D137*D133*D132*#REF! -> 
C150: Total travel costs | D150: =D137*D132*#REF! -> 
C151: Total transportation costs | D151: =D137*D132*#REF! -> 
C152: Additional costs
C153: Total cost of refresher and lunch | D153: =(D134+D136+D137)*D133*D132*#REF! -> 
C154: Total cost of room rental | D154: 0
C155: Total cost of stationary & training material (per sesssion) | D155: =D132*D134*#REF! -> 
C156: Other costs <specify> (typical per session) | D156: 0
C157: Total Training 5 | D157: =SUM(D140:D156) -> 
C160: Training 6: Culture/DST Training (refresher and for new people)
C161: Number of sessions (per year) | D161: 0
C162: Length of session (average number of days per session) | D162: 0
C163: Number of participants (per session) | D163: 0
C164: Number of participants requiring per diems (per session) | D164: 0
C165: Number of national facilitators (average per course) | D165: 0
C166: Number of international facilitators (average per course) | D166: 0
C168: Costs for participants | E168: If no budget required for any of the mentioned activities, e.g. per diem for national facilitators, manualley enter "0"
C169: Total per diem | D169: =D164*D162*D161*#REF! -> 
C170: Total cost of transportation | D170: =D163*D161*#REF! -> 
C171: Total cost of hotel | D171: =D164*D162*D161*#REF! -> 
C172: Costs for national experts/facilitators
C173: Total per diem | D173: =D165*D161*D162*#REF! -> 
C174: Total cost of transportation | D174: =D165*D161*#REF! -> 
C175: Total cost of hotel | D175: =D165*D162*D161*#REF! -> 
C176: Costs for international experts/facilitators
C177: Total per diems | D177: =D166*D161*D162*#REF! -> 
C178: Total daily fee | D178: =D166*D162*D161*#REF! -> 
C179: Total travel costs | D179: =D166*D161*#REF! -> 
C180: Total transportation costs | D180: =D166*D161*#REF! -> 
C181: Additional costs
C182: Total cost of refresher and lunch | D182: =(D163+D165+D166)*D162*D161*#REF! -> 
C183: Total cost of room rental | D183: 0
C184: Total cost of stationary & training material (per sesssion) | D184: =D161*D163*#REF! -> 
C185: Other costs <specify> (typical per session) | D185: 0
C186: Total Training 6 | D186: =SUM(D169:D185) -> 
C191: International Training <specify>
C192: Number of sessions (per year) | D192: 0
C193: Length of session (average number of days per session) | D193: 0
C194: Number of staff travelling for this training | D194: 0
C196: Costs for participants
C197: Total per diem | D197: =D194*D193*D192 -> 0
C198: Total cost of travel | D198: =D194*D192 -> 0
C199: Other costs <specify> registration costs | D199: 0
C200: Total costs international trainings | D200: =SUM(D197:D199) -> 0
C205: Resumen | D205: Costs (USD)
C206: =C13 -> Total Salary & Incentives | D206: =H13 -> 0
C207: =C16 -> Training 1: Refresher traning microscopy for ZN and LED | D207: =D42 -> 
C208: =C44 -> Training 2: Training for GX user (refresher and for new people) | D208: =D186 -> 
C209: Training 3: TB-LAMP Training (refresher and for new people) | D209: =D99 -> 
C210: Training 4: LAM Training (refresher and for new people) | D210: =D128 -> 
C211: Training 5: LPA (1st and 2nd line drugs) Training (refresher and for new people) | D211: =D157 -> 
C212: =C160 -> Training 6: Culture/DST Training (refresher and for new people) | D212: =D186 -> 
C213: =C191 -> International Training <specify> | D213: =D200 -> 0
C214: Total HR Costs | D214: =SUM(D206:D213) -> 

Sheet QA (hidden)
C2: Quality Assurance: Supervision, rechecking & panel testing
C6: Supervision visits for AFB laboratories periphery
C7: Number of supervision visits in one year per facility | D7: 0
C8: Number of facilities to be supervised | D8: 0
C9: Length of supervision visit (average number of days) | D9: 0
C10: Number of national expert/facilitators (per supervision visit) | D10: 0
C11: Number of support staff (e.g., driver) (per supervision visit) | D11: 0
C12: Cost for fuel and lubricants (typical per visit) | D12: 0
C13: Costs for Supervision
C14: Total Cost for fuel and lubricants | D14: =D8*D7*D12 -> 0
C15: Total per diem national expert/facilitators | D15: =D7*D8*D9*D10*#REF! -> 
C16: Total per diem for support staff | D16: =D7*D8*D9*D11*#REF! -> 
C17: Total cost of hotel charges for staff | D17: =(D11+D10)*D8*D7*D9*#REF! -> 
C18: Other costs <specify> | D18: 0
C19: Total costs for Supervision | D19: =SUM(D14:D18) -> 
C21: Supervision visits for AFB laboratories regional
C22: Number of supervision visits in one year per facility | D22: 0
C23: Number of facilities to be supervised | D23: 0
C24: Length of supervision visit (average number of days) | D24: 0
C25: Number of national expert/facilitators (per supervision visit) | D25: 0
C26: Number of support staff (e.g., driver) (per supervision visit) | D26: 0
C27: Cost for fuel and lubricants (typical per visit) | D27: 0
C28: Costs for Supervision
C29: Total Cost for fuel and lubricants | D29: =D23*D22*D27 -> 0
C30: Total per diem national expert/facilitators | D30: =D23*D22*D24*#REF! -> 
C31: Total per diem for support staff | D31: =D22*D23*D26*D24*#REF! -> 
C32: Total cost of hotel charges for staff | D32: =(D26+D25)*D23*D22*D24*#REF! -> 
C33: Other costs <specify> | D33: 0
C34: Total costs for Supervision | D34: =SUM(D29:D33) -> 
C37: Supervision visits for culture/DST laboratories by NRL
C38: Number of supervision visits in one year per facility | D38: 0
C39: Number of facilities to be supervised | D39: 0
C40: Length of supervision visit (average number of days) | D40: 0
C41: Number of national expert/facilitators (per supervision visit) | D41: 0
C42: Number of support staff (e.g., driver) (per supervision visit) | D42: 0
C43: Cost for fuel and lubricants (typical per visit) | D43: 0
C45: Costs for Supervision
C46: Total Cost for fuel and lubricants | D46: =D39*D38*D43 -> 0
C47: Total per diem national expert/facilitators | D47: =D42*D40*D39*D41*#REF! -> 
C48: Total per diem for support staff | D48: =D43*D40*D39*D41*#REF! -> 
C49: Total cost of hotel charges for staff | D49: =(D43+D42)*D40*D39*D41*#REF! -> 
C50: Other costs <specify> | D50: 0
C51: Total costs for supervision by NRL | D51: =SUM(D46:D50) -> 
C54: Supervision visits for NRL(s) by SRL
C55: Number of supervision visits in one year per facility | D55: 0
C56: Number of facilities to be supervised | D56: 0
C57: Length of supervision visit (average number of days of travel) | D57: 0
C58: Number of days for visit and preparation | D58: 0
C59: Number of national expert/facilitators (per supervision visit) | D59: 0
C60: Number of international experts/facilitators (per supervision visit) | D60: 0
C62: Costs for national experts/facilitators
C63: Total per diem | D63: 0
C64: Total cost of transportation | D64: 0
C65: Total cost of hotel | D65: 0
C66: Costs for international experts/facilitators
C67: Total per diems | D67: =D60*D57*D56*D55*#REF! -> 
C68: Total daily fee | D68: =D60*D58*D56*D55*#REF! -> 
C69: Total travel costs | D69: =D60*D55*#REF! -> 
C70: Total transportation costs | D70: =D60*D55*D56*#REF! -> 
C71: Additional costs
C72: Other costs: Visa | D72: 0
C73: Total costs for supervision by SRL | D73: =SUM(D63:D70) -> 
C76: Re-checking samples (NRL --> SRL)
C77: Costs of sending slides | D77: 0
C78: Cost of sending samples of sputum | D78: 0
C79: Cost of sending samples of culture | D79: 0
C80: Cost of sending isolates from NRL to SRL (shipment costs) | D80: 0
C81: Transport containers/triple packaging | D81: 0
C82: Other costs <specify> | D82: 0
C83: Total costs for rechecking | D83: =SUM(D77:D82) -> 0
C86: Panel testing for GX test (NRL --> GX laboratories)
C87: Costs of sending PT panel | D87: 0
C88: Cost of sending samples of sputum | D88: 0
C89: Cost of sending samples of culture | D89: 0
C90: Cost of sending isolates from NRL to SRL (shipment costs) | D90: 0
C91: Transport containers/triple packaging | D91: 0
C92: Other costs <specify> | D92: 0
C93: Total costs for rechecking | D93: =SUM(D87:D92) -> 0
C96: Panel testing culture/DST laboratories (NRL --> Regional culture/DST laboratory)
C97: Costs of sending PT panel | D97: 0
C98: Cost of sending samples of sputum | D98: 0
C99: Cost of sending samples of culture | D99: 0
C100: Cost of sending isolates from NRL to SRL (shipment costs) | D100: 0
C101: Transport containers/triple packaging | D101: 0
C102: Other costs <specify> | D102: 0
C103: Total costs for rechecking | D103: 0
C105: Panel testing (SRL --> NRL)
C106: Costs of sending PT panel | D106: 0
C107: Cost of sending samples of sputum | D107: 0
C108: Cost of sending samples of culture | D108: 0
C109: Cost of sending isolates from SRL to NRL (shipment costs) | D109: 0
C110: Transport containers/triple packaging | D110: 0
C111: Other costs <specify> | D111: 0
C112: Total costs for panel testing | D112: =SUM(D106:D111) -> 0
C117: Resumen | D117: Costs (USD)
C118: =C6 -> Supervision visits for AFB laboratories periphery | D118: =D19 -> 
C119: =C21 -> Supervision visits for AFB laboratories regional | D119: =D34 -> 
C120: =C37 -> Supervision visits for culture/DST laboratories by NRL | D120: =D51 -> 
C121: =C54 -> Supervision visits for NRL(s) by SRL | D121: =D73 -> 
C122: =C76 -> Re-checking samples (NRL --> SRL) | D122: =D83 -> 0
C123: =C86 -> Panel testing for GX test (NRL --> GX laboratories) | D123: =D93 -> 0
C124: =C96 -> Panel testing culture/DST laboratories (NRL --> Regional culture/DST laboratory) | D124: =D103 -> 0
C125: =C105 -> Panel testing (SRL --> NRL) | D125: =D112 -> 0
C126: Total Quality Assurance Costs | D126: =SUM(D118:D125) -> 

Sheet OPERATION (hidden)
B2: OPERATIONAL COSTS
B4: Sample transportation for diagnosis
B6: Sample transportation for diagnosis (lower level lab --> superior lab)
B7: Cost of sending samples of sputum to lower level lab --> superior lab | C7: 0
B8: Cost of sending isolates from NRL to SRL for testing (shipment) | C8: 0
B9: Transport containers/triple packaging | C9: 0
B10: Other costs <specify> | C10: 0
B11: Total costs for sample transportation | C11: =SUM(C7:C10) -> 0
B14: Shipment costs & import tax for international orders
B16: Import tax | C16: 0
B17: Custom clearance per order | C17: 0
B18: Number of orders / year | C18: 0
B20: Import tax for international orders | C20: Value of order (USD) | D20: Import tax amount (USD)
B21: Microscopy (LED, ZN) | C21: 0 | D21: =C21*C16 -> 0
B22: TB-LAMP | C22: 0 | D22: =C22*C16 -> 0
B23: LAM | C23: 0 | D23: =C23*C16 -> 0
B24: Procesamiento | C24: 0 | D24: =C24*C16 -> 0
B25: Solid culture and DST | C25: 0 | D25: =C25*C16 -> 0
B26: LPA FL&SL | C26: 0 | D26: =C26*C16 -> 0
B27: Xpert MTB/RIF | C27: 0 | D27: =C27*C16 -> 0
B28: ID | C28: 0 | D28: =C28*C16 -> 0
B29: Liquid culture and DST | C29: 0 | D29: =C29*C16 -> 0
B30: Biosaftey and cleaning | C30: 0 | D30: =C30*C16 -> 0
B31: Maintenance (calibrators and spare parts) | C31: 0 | D31: =C31*C16 -> 0
B32: Total (import tax) | D32: =SUM(D24:D31) -> 0
B33: Total (custom clearance) | C33: =C17*C18 -> 0
B35: Shipment costs for international orders | C35: Costs USD
B36: Microscopy (LED, ZN) | C36: 0
B37: TB-LAMP | C37: 0
B38: LAM | C38: 0
B39: Procesamiento | C39: 0
B40: Solid culture and DST | C40: 0
B41: LPA FL&SL | C41: 0
B42: Xpert MTB/RIF | C42: 0
B43: ID | C43: 0
B44: Liquid culture and DST | C44: 0
B45: Biosaftey and cleaning | C45: 0
B46: Maintenance (calibrators and spare parts) | C46: 0
B47: Total | C47: =SUM(C36:C46) -> 0
B50: Other costs per 12 months
B52: Other operational costs | C52: Costs USD
B53: Fuel generator | C53: 0
B54: Electricity | C54: 0
B55: Request forms | C55: 0
B56: Registers | C56: 0
B57: Telephone & Internet | C57: 0
B58: Water | C58: 0
B59: Other | C59: 0
B60: Total | C60: =SUM(C53:C59) -> 0
B63: Sub total | C63: =C11+D32+C33+C47+C60 -> 0

Sheet RESUMEN DE PRESUPUESTO
A1: Resumen del presupuesto anual
C4: Área | H4: Fuente del presupuesto
C5: Reactivos y material fungible | D5: Costo (US$) | F5: Número total de pruebas | G5: Costo por prueba | H5: anterior
C6: Microscopía de Ziehl-Neelsen si el material fungible se compra en kit | D6: =IF('Introducción e instrucciones'!B10="Yes",'Microscopía ZN'!C26,0) -> 0 | F6: ='Microscopía ZN'!C8 -> 0 | G6: =IF(F6=0,0,D6/F6) -> 0 | H6: CUIDADO DE LA TUBERCULOSIS I
C7: Microscopía de Ziehl-Neelsen si el material fungible se compra por separado | D7: =IF('Introducción e instrucciones'!B10="Yes",'Microscopía ZN'!C56,0) -> 0 | F7: ='Microscopía ZN'!C8 -> 0 | G7: =IF(F7=0,0,D7/F7) -> 0
C8: Microscopía LED si el material fungible se compra en kit | D8: =IF('Introducción e instrucciones'!B11="Yes",'Baciloscopia LED'!C26,0) -> 0 | F8: ='Baciloscopia LED'!C8 -> 0 | G8: 0
C9: Microscopía LED si el material fungible se compra por separado | D9: =IF('Introducción e instrucciones'!B11="Yes",'Baciloscopia LED'!C55,0) -> 0 | F9: ='Baciloscopia LED'!C8 -> 0 | G9: 0
C10: TB-LAMP | D10: =IF('Introducción e instrucciones'!B8="Yes",'TB-LAMP'!C28,0) -> 0 | F10: ='TB-LAMP'!C19 -> 0 | G10: 0
C11: Prueba Truenat | D11: =IF('Introducción e instrucciones'!B7="Yes",Truenat!C31,0) -> 0 | F11: =Truenat!C21 -> 0 | G11: 0
C12: Prueba Xpert MTB/RIF Ultra | D12: =IF('Introducción e instrucciones'!B9="Yes",'Xpert MTB RIF Ultra'!C30,0) -> 0 | F12: ='Xpert MTB RIF Ultra'!C21 -> 0 | G12: 0
C13: LAM | D13: =IF('Introducción e instrucciones'!B6="Yes",LAM!C26,0) -> 0 | F13: =LAM!C15 -> 0 | G13: 0
C14: LPA para medicamentos de primera línea | D14: =IF('Introducción e instrucciones'!B13="Yes",'LPA 1.ª línea'!E56,0) -> 0 | F14: ='LPA 1.ª línea'!C27 -> 0 | G14: 0
C15: LPA para medicamentos de segunda línea | D15: =IF('Introducción e instrucciones'!B14="Yes",'LPA 2.ª línea'!E55,0) -> 0 | F15: ='LPA 2.ª línea'!C27 -> 0 | G15: 0
C16: Prueba MAX MDR-TB | D16: =IF('Introducción e instrucciones'!B15="Yes",'Prueba MAX MDR-TB'!E42,0) -> 0 | F16: ='FluoroType MTBDR Ver 2.0'!total_test -> 0 | G16: 0
C17: FluoroType MTBDR Ver 2.0 | D17: =IF('Introducción e instrucciones'!B16="Yes",'FluoroType MTBDR Ver 2.0'!E44,0) -> 0 | F17: ='FluoroType MTBDR Ver 2.0'!total_test -> 0 | G17: 0
C18: MTB y MTB-RIF/INH de Cobas® | D18: =IF('Introducción e instrucciones'!B17="Yes",'MTB y MTB-RIF-INH de Cobas®'!E47,0) -> 0 | F18: ='MTB y MTB-RIF-INH de Cobas®'!total_test -> 0 | G18: 0
C19: RT MTB y MTB RIF/INH de Abbott | D19: =IF('Introducción e instrucciones'!B18="Yes",'RT MTB y MTB RIF-INH de Abbott'!E47,0) -> 0 | F19: ='RT MTB y MTB RIF-INH de Abbott'!total_test -> 0 | G19: 0
C20: Procesamiento de muestras | D20: =IF('Introducción e instrucciones'!B19="Yes",'Proces+cultivo (sól. y líq.)'!F83,0) -> 0 | F20: =IF('Proces+cultivo (sól. y líq.)'!C23=0,'Proces+cultivo (sól. y líq.)'!F21,'Proces+cultivo (sól. y líq.)'!C23) -> 0 | G20: 0
C21: Cultivo en medios sólidos | D21: =IF('Introducción e instrucciones'!B19="Yes",'Proces+cultivo (sól. y líq.)'!F81,0) -> 0 | F21: ='Proces+cultivo (sól. y líq.)'!C23 -> 0 | G21: 0
C22: Cultivo en medios líquidos | D22: =IF('Introducción e instrucciones'!B19="Yes",'Proces+cultivo (sól. y líq.)'!F21,0) -> 0 | F22: ='Proces+cultivo (sól. y líq.)'!F82 -> 0 | G22: 0 | H22: FIND
C23: Identificación de cultivos | D23: =IF('Introducción e instrucciones'!B20="Yes",SUM('Identificación rápida'!E37,'Identificación rápida'!E24),0) -> 0 | F23: ='Identificación rápida'!D13 -> 0 | G23: 0
C24: Prueba de LJ de la resistencia a medicamentos de primera línea | D24: =IF('Introducción e instrucciones'!B21="Yes",'Prueba de resistencia LJ - 1.ª'!C34,0) -> 0 | F24: ='Prueba de resistencia LJ - 1.ª'!C18 -> 0 | G24: 0 | H24: FIND
C25: Prueba de LJ de la resistencia a medicamentos de segunda línea | D25: =IF('Introducción e instrucciones'!B22="Yes",'Prueba de resistencia LJ - 2.ª'!C34,0) -> 0 | F25: ='Prueba de resistencia LJ - 2.ª'!C15 -> 0 | G25: 0 | H25: FIND
C26: Prueba de la resistencia a medicamentos de primera línea con tubo indicador del crecimiento de micobacterias (MGIT) | D26: =IF('Introducción e instrucciones'!B23="Yes",'Prueba de resistencia MGIT - 1ª'!D44,0) -> 0 | F26: ='Prueba de resistencia MGIT - 1ª'!C15 -> 0 | G26: 0 | H26: CUIDADO DE LA TUBERCULOSIS I
C27: Prueba de la resistencia a la pirazinamida con tubo indicador del crecimiento de micobacterias (MGIT) | D27: =IF('Introducción e instrucciones'!B23="Yes",'Prueba de resistencia MGIT - 1ª'!D45,0) -> 0 | F27: ='Prueba de resistencia MGIT - 1ª'!C21 -> 0 | G27: 0
C28: Prueba de la resistencia a medicamentos de segunda línea en medios líquidos con MGIT y reactivos liofilizados listos para usar | D28: =IF('Introducción e instrucciones'!B24="Yes",'Prueba de resistencia MGIT - 2ª'!G30,0) -> 0 | F28: ='Prueba de resistencia MGIT - 2ª'!C17 -> 0 | G28: 0
C29: Prueba de la resistencia a medicamentos de segunda línea en medios líquidos con MGIT y reactivos puros en polvo | D29: =IF('Introducción e instrucciones'!B24="Yes",'Prueba de resistencia MGIT - 2ª'!G49,0) -> 0 | F29: ='Prueba de resistencia MGIT - 2ª'!C17 -> 0 | G29: 0
C30: Subtotal | D30: =SUM(D6:D28) -> 0
C32: Limpieza y bioseguridad | D32: Costo (US$) | H32: anterior
C33: Bioseguridad | D33: =IF('Introducción e instrucciones'!B25="Yes",'Limpieza y bioseguridad'!G44,0) -> 0 | H33: FIND
C34: Limpieza | D34: =IF('Introducción e instrucciones'!B25="Yes",'Limpieza y bioseguridad'!G43,0) -> 0 | H34: FIND
C35: Subtotal | D35: =D33+D34 -> 0
C37: Mantenimiento y reparaciones | D37: Costo (US$) | H37: anterior
C38: ='Mantenimiento y reparaciones'!B6 -> Cámaras de bioseguridad | D38: =IF('Introducción e instrucciones'!B26="Yes",'Mantenimiento y reparaciones'!E10,0) -> 0
C39: ='Mantenimiento y reparaciones'!B11 -> TwinCubator (LPA) | D39: =IF('Introducción e instrucciones'!B26="Yes",'Mantenimiento y reparaciones'!E15,0) -> 0
C40: ='Mantenimiento y reparaciones'!B17 -> Termociclador | D40: =IF('Introducción e instrucciones'!B26="Yes",'Mantenimiento y reparaciones'!E21,0) -> 0
C41: ='Mantenimiento y reparaciones'!B23 -> Flujo laminar (estación de trabajo de PCR) | D41: =IF('Introducción e instrucciones'!B26="Yes",'Mantenimiento y reparaciones'!E27,0) -> 0
C42: ='Mantenimiento y reparaciones'!B29 -> Autoclave | D42: =IF('Introducción e instrucciones'!B26="Yes",'Mantenimiento y reparaciones'!E33,0) -> 0
C43: ='Mantenimiento y reparaciones'!B35 -> Sistema BD BACTEC™ MGIT™ 960 | D43: =IF('Introducción e instrucciones'!B26="Yes",'Mantenimiento y reparaciones'!E40,0) -> 0
C44: Prueba MAX MDR-TB | D44: =IF('Introducción e instrucciones'!B26="Yes",'Mantenimiento y reparaciones'!E46,0) -> 0
C45: FluoroType MTBDR Ver 2.0 | D45: =IF('Introducción e instrucciones'!B26="Yes",'Mantenimiento y reparaciones'!E51,0) -> 0
C46: MTB y MTB-RIF/INH de Cobas® | D46: =IF('Introducción e instrucciones'!B26="Yes",'Mantenimiento y reparaciones'!E56,0) -> 0
C47: RT MTB y MTB RIF/INH de Abbott | D47: =IF('Introducción e instrucciones'!B26="Yes",'Mantenimiento y reparaciones'!E61,0) -> 0
C48: ='Mantenimiento y reparaciones'!B63 -> GeneXpert de 4 módulos | D48: =IF('Introducción e instrucciones'!B26="Yes",'Mantenimiento y reparaciones'!E73,0) -> 0
C49: ='Mantenimiento y reparaciones'!B75 -> GeneXpert de 2 módulos | D49: =IF('Introducción e instrucciones'!B26="Yes",'Mantenimiento y reparaciones'!E85,0) -> 0
C50: ='Mantenimiento y reparaciones'!B87 -> GeneXpert de 16 módulos | D50: =IF('Introducción e instrucciones'!B26="Yes",'Mantenimiento y reparaciones'!E97,0) -> 0
C51: Prueba Truenat | D51: =IF('Introducción e instrucciones'!B26="Yes",'Mantenimiento y reparaciones'!E105,0) -> 0
C52: ='Mantenimiento y reparaciones'!B107 -> TB-LAMP | D52: =IF('Introducción e instrucciones'!B26="Yes",'Mantenimiento y reparaciones'!E110,0) -> 0
C53: ='Mantenimiento y reparaciones'!B113 -> LIS | D53: =IF('Introducción e instrucciones'!B26="Yes",'Mantenimiento y reparaciones'!E116,0) -> 0
C54: ='Mantenimiento y reparaciones'!B119 -> Sistema de ventilación del laboratorio de cultivos y pruebas de sensibilidad a fármacos | D54: =IF('Introducción e instrucciones'!B26="Yes",'Mantenimiento y reparaciones'!E123,0) -> 0
C55: Reparaciones y otros equipos | D55: =IF('Introducción e instrucciones'!B26="Yes",'Mantenimiento y reparaciones'!F194,0) -> 0 | H55: PFH
C56: Subtotal | D56: =SUM(D38:D55) -> 0
C59: Presupuesto anual total | D59: =SUM(D30,D35,D56) -> 0

Sheet RESUMEN DE ARTÍCULOS
A1: Resumen de los artículos de laboratorio
C4: Área | F4: Fuente del presupuesto
B5: Código GDF | C5: Reactivos y material fungible | D5: Cantidad | F5: anterior
B6: Microscopía ZN | F6: CUIDADO DE LA TUBERCULOSIS I
B7: ='Microscopía ZN'!A22 -> 106522 | C7: Kit para microscopía ZN | D7: ='Microscopía ZN'!F22 -> 0
B8: ='Microscopía ZN'!A32 -> 106601 | C8: ='Microscopía ZN'!B32 -> Fucsina básica, 100 g (frasco) | D8: ='Microscopía ZN'!D32 -> 0
B9: ='Microscopía ZN'!A33 -> 106602 | C9: ='Microscopía ZN'!B33 -> Azul de metileno, 10 x 10 g (frascos) | D9: ='Microscopía ZN'!D33 -> 0
B10: ='Microscopía ZN'!A34 -> 106599 | C10: ='Microscopía ZN'!B34 -> Cristales de fenol, incoloros, 500 g | D10: ='Microscopía ZN'!D34 -> 0
B11: ='Microscopía ZN'!A35 -> 106597 | C11: ='Microscopía ZN'!B35 -> Etanol, 99%, 1 litro (botella), para soluciones para tinción | D11: ='Microscopía ZN'!D35 -> 0
B12: ='Microscopía ZN'!A36 -> 106597 | C12: ='Microscopía ZN'!B36 -> Etanol, 99%, 1 litro (botella), para decolorante | D12: ='Microscopía ZN'!D36 -> 0
B13: ='Microscopía ZN'!A37 -> 106603 | C13: ='Microscopía ZN'!B37 -> Ácido clorhídrico, 1 litro (botella) | D13: ='Microscopía ZN'!D37 -> 0
B14: ='Microscopía ZN'!A43 -> 106655 | C14: ='Microscopía ZN'!B43 -> Aplicadores de madera, 150 mm | D14: ='Microscopía ZN'!D43 -> 0
B15: ='Microscopía ZN'!A44 -> 106609 | C15: ='Microscopía ZN'!B44 -> Portaobjetos para microscopio, vidrio sódico-cálcico, paquete de 1000 | D15: ='Microscopía ZN'!D44 -> 0
B16: ='Microscopía ZN'!A45 -> 106627 | C16: ='Microscopía ZN'!B45 -> Aceite de inmersión, 100 ml | D16: ='Microscopía ZN'!D45 -> 0
B17: ='Microscopía ZN'!A46 -> 106656 | C17: ='Microscopía ZN'!B46 -> Papel para limpiar lentes | D17: ='Microscopía ZN'!D46 -> 0
B18: ='Microscopía ZN'!A47 -> 106354 | C18: ='Microscopía ZN'!B47 -> Papel de filtro redondo, 150 mm | D18: ='Microscopía ZN'!D47 -> 0
B19: ='Microscopía ZN'!A48 -> 106597 | C19: ='Microscopía ZN'!B48 -> Etanol, 99%, 1 litro (botella), para quemadores de alcohol | D19: ='Microscopía ZN'!D48 -> 0
B20: ='Microscopía ZN'!A49 -> 106355 | C20: ='Microscopía ZN'!B49 -> Rotulador (resistente al agua) | D20: ='Microscopía ZN'!D49 -> 0
B21: ='Microscopía ZN'!A50 -> 106525 | C21: ='Microscopía ZN'!B50 -> Recipientes de esputo, paquete de 1000 | D21: ='Microscopía ZN'!D50 -> 0
B22: Microscopía LED si el material fungible se compra en kit
B23: ='Baciloscopia LED'!A22 -> 106523 | C23: Kit para microscopía LED | D23: ='Baciloscopia LED'!F22 -> 0
B24: ='Baciloscopia LED'!A32 -> 106602 | C24: ='Baciloscopia LED'!B32 -> Azul de metileno, 10 x 10 g (frascos) | D24: ='Baciloscopia LED'!D32 -> 0
B25: ='Baciloscopia LED'!A33 -> 106599 | C25: ='Baciloscopia LED'!B33 -> Cristales de fenol, incoloros, 500 g | D25: ='Baciloscopia LED'!D33 -> 0
B26: ='Baciloscopia LED'!A34 -> 106276 | C26: ='Baciloscopia LED'!B34 -> Auramine O, polvo, 25 g | D26: ='Baciloscopia LED'!D34 -> 0
B27: ='Baciloscopia LED'!A35 -> 106597 | C27: ='Baciloscopia LED'!B35 -> Etanol, 99%, 1 litro (botella), para decolorante | D27: ='Baciloscopia LED'!D35 -> 0
B28: ='Baciloscopia LED'!A36 -> 106603 | C28: ='Baciloscopia LED'!B36 -> Ácido clorhídrico, 1 litro (botella) | D28: ='Baciloscopia LED'!D36 -> 0
B29: ='Baciloscopia LED'!A42 -> 106655 | C29: ='Baciloscopia LED'!B42 -> Aplicadores de madera, 150 mm | D29: ='Baciloscopia LED'!D42 -> 0
B30: ='Baciloscopia LED'!A43 -> 106609 | C30: ='Baciloscopia LED'!B43 -> Portaobjetos para microscopio, vidrio sódico-cálcico, paquete de 1000 | D30: ='Baciloscopia LED'!D43 -> 0
B31: ='Baciloscopia LED'!A44 -> 106627 | C31: ='Baciloscopia LED'!B44 -> Aceite de inmersión, 100 ml | D31: ='Baciloscopia LED'!D44 -> 0
B32: ='Baciloscopia LED'!A45 -> 106656 | C32: ='Baciloscopia LED'!B45 -> Papel para limpiar lentes | D32: ='Baciloscopia LED'!D45 -> 0
B33: ='Baciloscopia LED'!A46 -> 106354 | C33: ='Baciloscopia LED'!B46 -> Papel de filtro redondo, 150 mm | D33: ='Baciloscopia LED'!D46 -> 0
B34: ='Baciloscopia LED'!A47 -> 106597 | C34: ='Baciloscopia LED'!B47 -> Etanol, 99%, 1 litro (botella), para quemadores de alcohol | D34: ='Baciloscopia LED'!D47 -> 0
B35: ='Baciloscopia LED'!A48 -> 106355 | C35: ='Baciloscopia LED'!B48 -> Rotulador (resistente al agua) | D35: ='Baciloscopia LED'!D48 -> 0
B36: ='Baciloscopia LED'!A49 -> 106525 | C36: ='Baciloscopia LED'!B49 -> Recipientes de esputo, paquete de 1000 | D36: ='Baciloscopia LED'!D49 -> 0
B37: TB-LAMP
B38: ='TB-LAMP'!A23 -> 106634 | C38: ='TB-LAMP'!B23 -> Kits de detección Loopamp MTBC (2 x 48 pruebas) | D38: ='TB-LAMP'!E23 -> 0
B39: ='TB-LAMP'!A24 -> 106635 | C39: ='TB-LAMP'!B24 -> Kit de extracción de ADN Loopamp PURE (90 pruebas) | D39: ='TB-LAMP'!E24 -> 0
B40: ='TB-LAMP'!A25 -> 106643 | C40: ='TB-LAMP'!B25 -> Pipette-60 Set para TB-LAMP (4 x 96 pruebas) | D40: ='TB-LAMP'!E25 -> 0
B41: Prueba Truenat
B42: =Truenat!A27 -> 106697 | C42: =Truenat!B27 -> Truenat MTB Plus | D42: =Truenat!D27 -> 0
B43: =Truenat!A28 -> 106700 | C43: =Truenat!B28 -> Truenat MTB Rif | D43: =Truenat!D28 -> 0
B44: Prueba Xpert MTB/RIF Ultra
B45: ='Xpert MTB RIF Ultra'!A25 -> CGXMTB-RIF-50 | C45: ='Xpert MTB RIF Ultra'!B25 -> Cartuchos Xpert MTB/RIF | D45: ='Xpert MTB RIF Ultra'!D25 -> 0
B46: ='Xpert MTB RIF Ultra'!A26 -> 106340 | C46: ='Xpert MTB RIF Ultra'!B26 -> Tubos de plástico estéril para centrífuga, 50 ml | D46: ='Xpert MTB RIF Ultra'!D26 -> 0
B47: ='Xpert MTB RIF Ultra'!A27 -> 106525 | C47: ='Xpert MTB RIF Ultra'!B27 -> Recipientes de esputo, paquete de 1000 | D47: ='Xpert MTB RIF Ultra'!D27 -> 0
B48: LAM
B49: =LAM!A21 -> 106749 | C49: =LAM!B21 -> Pruebas de determinación del antígeno LAM | D49: =LAM!E21 -> 0
B50: =LAM!A22 -> 106525 | C50: =LAM!B22 -> Recipientes de esputo | D50: =LAM!E22 -> 0
B51: =LAM!A23 -> 106388 | C51: =LAM!B23 -> Puntas de filtro para pipeta estériles, 5-100 μL | D51: =LAM!E23 -> 0
B52: LPA para medicamentos de primera línea
B53: ='LPA 1.ª línea'!B30 -> 106682 | C53: ='LPA 1.ª línea'!C30 -> Genoscholar NTM+MDRTB II | D53: ='LPA 1.ª línea'!E30 -> 0
B54: ='LPA 1.ª línea'!B31 -> 106512 | C54: ='LPA 1.ª línea'!C31 -> GenoType MTBDRplus (kit para 96 pruebas), Versión 2.0 (30496A) | D54: ='LPA 1.ª línea'!E31 -> 0
B55: ='LPA 1.ª línea'!B32 -> 106477 | C55: ='LPA 1.ª línea'!C32 -> GenoLyse (96 pruebas), Versión 1.0 (51610) | D55: ='LPA 1.ª línea'!E32 -> 0
B56: ='LPA 1.ª línea'!B33 -> 106254 | C56: ='LPA 1.ª línea'!C33 -> Agua de grado molecular, 10 x 1,7 ml | D56: ='LPA 1.ª línea'!E33 -> 0
B57: ='LPA 1.ª línea'!B34 -> 106385 | C57: ='LPA 1.ª línea'!C34 -> Tubos para PCR, 0,2 ml, con tapa fija, estériles, libres de ADNasa y ARNasa, 1000 por paquete | D57: ='LPA 1.ª línea'!E34 -> 0
B58: ='LPA 1.ª línea'!B35 -> 106422 | C58: ='LPA 1.ª línea'!C35 -> Tubos para microcentrífuga, 2 ml | D58: ='LPA 1.ª línea'!E35 -> 0
B59: ='LPA 1.ª línea'!B36 -> 106421 | C59: ='LPA 1.ª línea'!C36 -> Tubos para microcentrífuga, 1,5 ml | D59: ='LPA 1.ª línea'!E36 -> 0
B60: ='LPA 1.ª línea'!B37 -> 106383 | C60: ='LPA 1.ª línea'!C37 -> Crioviales estériles, 2 ml; se pueden abrir y cerrar con una sola mano | D60: ='LPA 1.ª línea'!E37 -> 0
B61: ='LPA 1.ª línea'!B38 -> 106554 | C61: ='LPA 1.ª línea'!C38 -> Puntas de filtro estériles, 0,1-10 μl | D61: ='LPA 1.ª línea'!E38 -> 0
B62: ='LPA 1.ª línea'!B39 -> 106389 | C62: ='LPA 1.ª línea'!C39 -> Puntas de filtro estériles, 20-200 μl | D62: ='LPA 1.ª línea'!E39 -> 0
B63: ='LPA 1.ª línea'!B40 -> 106390 | C63: ='LPA 1.ª línea'!C40 -> Puntas de filtro estériles, 100-1000 μl | D63: ='LPA 1.ª línea'!E40 -> 0
B64: ='LPA 1.ª línea'!B41 -> 106412 | C64: ='LPA 1.ª línea'!C41 -> Puntas largas de 1 ml con filtro | D64: ='LPA 1.ª línea'!E41 -> 0
B65: ='LPA 1.ª línea'!B42 -> 106398 | C65: ='LPA 1.ª línea'!C42 -> Puntas dispensadoras, 12,5 ml | D65: ='LPA 1.ª línea'!E42 -> 0
B66: ='LPA 1.ª línea'!B43 -> 106434 | C66: ='LPA 1.ª línea'!C43 -> Pipetas Pasteur no estériles, 3 ml | D66: ='LPA 1.ª línea'!E43 -> 0
B67: ='LPA 1.ª línea'!B44 -> 106556 | C67: ='LPA 1.ª línea'!C44 -> Pinzas de plástico estéril para laboratorio | D67: ='LPA 1.ª línea'!E44 -> 0
B68: ='LPA 1.ª línea'!B45 -> 106355 | C68: ='LPA 1.ª línea'!C45 -> Rotulador indeleble | D68: ='LPA 1.ª línea'!E45 -> 0
B69: ='LPA 1.ª línea'!B46 -> 106384 | C69: ='LPA 1.ª línea'!C46 -> Tubos de plástico estéril para centrífuga, 15 ml | D69: ='LPA 1.ª línea'!E46 -> 0
B70: ='LPA 1.ª línea'!B47 -> 106340 | C70: ='LPA 1.ª línea'!C47 -> Tubos de plástico estéril para centrífuga, 50 ml | D70: ='LPA 1.ª línea'!E47 -> 0
B71: ='LPA 1.ª línea'!B48 -> 106444 | C71: ='LPA 1.ª línea'!C48 -> Bolsas de plástico de 30 litros | D71: ='LPA 1.ª línea'!E48 -> 0
B72: ='LPA 1.ª línea'!B49 -> 106415 | C72: ='LPA 1.ª línea'!C49 -> Papel de filtro cuadrado, 580 mm | D72: ='LPA 1.ª línea'!E49 -> 0
B73: ='LPA 1.ª línea'!B50 -> 106439 | C73: ='LPA 1.ª línea'!C50 -> Juego de reactivos GT-Blot 48 | D73: ='LPA 1.ª línea'!E50 -> 0
B74: ='LPA 1.ª línea'!B51 -> 106438 | C74: ='LPA 1.ª línea'!C51 -> Bandeja GT-Blot 48 para 96 tiras (negra) | D74: ='LPA 1.ª línea'!E51 -> 0
B75: ='LPA 1.ª línea'!B52 -> 106755 | C75: ='LPA 1.ª línea'!C52 -> Toallas de papel | D75: ='LPA 1.ª línea'!E52 -> 53
B76: ='LPA 1.ª línea'!B53 -> 106333 | C76: ='LPA 1.ª línea'!C53 -> Etanol o isopropanol, 5 litros | D76: ='LPA 1.ª línea'!E53 -> 0
B77: LPA para medicamentos de segunda línea
B78: ='LPA 2.ª línea'!B30 -> 106513 | C78: ='LPA 2.ª línea'!C30 -> GenoType MTBDRsl (kit para 96 pruebas), Versión 2.0 (30496A) | D78: ='LPA 2.ª línea'!kit_ordered -> 0
B79: ='LPA 2.ª línea'!B31 -> 106477 | C79: ='LPA 2.ª línea'!C31 -> GenoLyse (96 pruebas), Versión 1.0 (51610) | D79: ='LPA 2.ª línea'!kit_ordered -> 0
B80: ='LPA 2.ª línea'!B32 -> 106254 | C80: ='LPA 2.ª línea'!C32 -> Agua de grado molecular, 10 x 1,7 ml | D80: ='LPA 2.ª línea'!kit_ordered -> 0
B81: ='LPA 2.ª línea'!B33 -> 106385 | C81: ='LPA 2.ª línea'!C33 -> Tubos para PCR, 0,2 ml, con tapa fija, estériles, libres de ADNasa y ARNasa, 1000 por paquete | D81: ='LPA 2.ª línea'!kit_ordered -> 0
B82: ='LPA 2.ª línea'!B34 -> 106422 | C82: ='LPA 2.ª línea'!C34 -> Tubos para microcentrífuga, 2 ml | D82: ='LPA 2.ª línea'!kit_ordered -> 0
B83: ='LPA 2.ª línea'!B35 -> 106421 | C83: ='LPA 2.ª línea'!C35 -> Tubos para microcentrífuga, 1,5 ml | D83: ='LPA 2.ª línea'!kit_ordered -> 0
B84: ='LPA 2.ª línea'!B36 -> 106383 | C84: ='LPA 2.ª línea'!C36 -> Crioviales estériles, 2 ml; se pueden abrir y cerrar con una sola mano | D84: ='LPA 2.ª línea'!kit_ordered -> 0
B85: ='LPA 2.ª línea'!B37 -> 106554 | C85: ='LPA 2.ª línea'!C37 -> Puntas de filtro estériles, 0,1-10 μl | D85: ='LPA 2.ª línea'!kit_ordered -> 0
B86: ='LPA 2.ª línea'!B38 -> 106389 | C86: ='LPA 2.ª línea'!C38 -> Puntas de filtro estériles, 20-200 μl | D86: ='LPA 2.ª línea'!kit_ordered -> 0
B87: ='LPA 2.ª línea'!B39 -> 106390 | C87: ='LPA 2.ª línea'!C39 -> Puntas de filtro estériles, 100-1000 μl | D87: ='LPA 2.ª línea'!kit_ordered -> 0
B88: ='LPA 2.ª línea'!B40 -> 106412 | C88: ='LPA 2.ª línea'!C40 -> Puntas largas de 1 ml con filtro | D88: ='LPA 2.ª línea'!kit_ordered -> 0
B89: ='LPA 2.ª línea'!B41 -> 106398 | C89: ='LPA 2.ª línea'!C41 -> Puntas dispensadoras, 12,5 ml | D89: ='LPA 2.ª línea'!kit_ordered -> 0
B90: ='LPA 2.ª línea'!B42 -> 106434 | C90: ='LPA 2.ª línea'!C42 -> Pipetas Pasteur no estériles, 3 ml | D90: ='LPA 2.ª línea'!kit_ordered -> 0
B91: ='LPA 2.ª línea'!B43 -> 106556 | C91: ='LPA 2.ª línea'!C43 -> Pinzas de plástico estéril para laboratorio | D91: ='LPA 2.ª línea'!kit_ordered -> 0
B92: ='LPA 2.ª línea'!B44 -> 106355 | C92: ='LPA 2.ª línea'!C44 -> Rotulador indeleble | D92: ='LPA 2.ª línea'!kit_ordered -> 0
B93: ='LPA 2.ª línea'!B45 -> 106384 | C93: ='LPA 2.ª línea'!C45 -> Tubos de plástico estéril para centrífuga, 15 ml | D93: ='LPA 2.ª línea'!kit_ordered -> 0
B94: ='LPA 2.ª línea'!B46 -> 106340 | C94: ='LPA 2.ª línea'!C46 -> Tubos de plástico estéril para centrífuga, 50 ml | D94: ='LPA 2.ª línea'!kit_ordered -> 0
B95: ='LPA 2.ª línea'!B47 -> 106444 | C95: ='LPA 2.ª línea'!C47 -> Bolsas de plástico de 30 litros | D95: ='LPA 2.ª línea'!kit_ordered -> 0
B96: ='LPA 2.ª línea'!B48 -> 106415 | C96: ='LPA 2.ª línea'!C48 -> Papel de filtro cuadrado, 580 mm | D96: ='LPA 2.ª línea'!kit_ordered -> 0
B97: ='LPA 2.ª línea'!B49 -> 106439 | C97: ='LPA 2.ª línea'!C49 -> Juego de reactivos GT-Blot 48 | D97: ='LPA 2.ª línea'!kit_ordered -> 0
B98: ='LPA 2.ª línea'!B50 -> 106438 | C98: ='LPA 2.ª línea'!C50 -> Bandeja GT-Blot 48 para 96 tiras (negra) | D98: ='LPA 2.ª línea'!kit_ordered -> 0
B99: ='LPA 2.ª línea'!B51 -> 106755 | C99: ='LPA 2.ª línea'!C51 -> Toallas de papel | D99: ='LPA 2.ª línea'!kit_ordered -> 0
B100: ='LPA 2.ª línea'!B52 -> 106333 | C100: ='LPA 2.ª línea'!C52 -> Etanol o isopropanol, 5 litros | D100: ='LPA 2.ª línea'!kit_ordered -> 0
B101: Prueba MAX MDR-TB
B102: ='Prueba MAX MDR-TB'!B28 -> 0 | C102: ='Prueba MAX MDR-TB'!C28 -> Kit BD MAX MDR-TB | D102: ='Prueba MAX MDR-TB'!kit_ordered -> 0
B103: ='Prueba MAX MDR-TB'!B29 -> 0 | C103: ='Prueba MAX MDR-TB'!C29 -> Kit BD MAX STR | D103: ='Prueba MAX MDR-TB'!kit_ordered -> 0
B104: ='Prueba MAX MDR-TB'!B30 -> 106384 | C104: ='Prueba MAX MDR-TB'!C30 -> Tubos de plástico estéril para centrífuga, 15 ml | D104: ='Prueba MAX MDR-TB'!kit_ordered -> 0
B105: ='Prueba MAX MDR-TB'!B31 -> 106422 | C105: ='Prueba MAX MDR-TB'!C31 -> Tubos para microcentrífuga, 2 ml | D105: ='Prueba MAX MDR-TB'!kit_ordered -> 0
B106: ='Prueba MAX MDR-TB'!B32 -> 106554 | C106: ='Prueba MAX MDR-TB'!C32 -> Puntas de filtro estériles, 0,1-10 μl | D106: ='Prueba MAX MDR-TB'!kit_ordered -> 0
B107: ='Prueba MAX MDR-TB'!B33 -> 106389 | C107: ='Prueba MAX MDR-TB'!C33 -> Puntas de filtro estériles, 20-200 μl | D107: ='Prueba MAX MDR-TB'!kit_ordered -> 0
B108: ='Prueba MAX MDR-TB'!B34 -> 106390 | C108: ='Prueba MAX MDR-TB'!C34 -> Puntas de filtro estériles, 100-1000 μl | D108: ='Prueba MAX MDR-TB'!kit_ordered -> 0
B109: ='Prueba MAX MDR-TB'!B35 -> 106444 | C109: ='Prueba MAX MDR-TB'!C35 -> Bolsas de plástico de 30 litros | D109: ='Prueba MAX MDR-TB'!kit_ordered -> 0
B110: ='Prueba MAX MDR-TB'!B36 -> 106415 | C110: ='Prueba MAX MDR-TB'!C36 -> Papel de filtro cuadrado, 580 mm | D110: ='Prueba MAX MDR-TB'!kit_ordered -> 0
B111: ='Prueba MAX MDR-TB'!B37 -> 106755 | C111: ='Prueba MAX MDR-TB'!C37 -> Toallas de papel | D111: ='Prueba MAX MDR-TB'!kit_ordered -> 0
B112: ='Prueba MAX MDR-TB'!B38 -> 106333 | C112: ='Prueba MAX MDR-TB'!C38 -> Etanol o isopropanol, 5 litros | D112: ='Prueba MAX MDR-TB'!kit_ordered -> 0
B113: FluoroType MTBDR Ver 2.0
B114: ='FluoroType MTBDR Ver 2.0'!B30 -> 0 | C114: ='FluoroType MTBDR Ver 2.0'!C30 -> Prueba FluoroType MTBDR | D114: ='FluoroType MTBDR Ver 2.0'!kit_ordered -> 0
B115: ='FluoroType MTBDR Ver 2.0'!B31 -> 0 | C115: ='FluoroType MTBDR Ver 2.0'!C31 -> Kit GXT para la extracción de ADN y ARN | D115: ='FluoroType MTBDR Ver 2.0'!kit_ordered -> 0
B116: ='FluoroType MTBDR Ver 2.0'!B32 -> 0 | C116: ='FluoroType MTBDR Ver 2.0'!C32 -> Kit de extracción FluoroLyse | D116: ='FluoroType MTBDR Ver 2.0'!kit_ordered -> 0
B117: ='FluoroType MTBDR Ver 2.0'!B33 -> 106384 | C117: ='FluoroType MTBDR Ver 2.0'!C33 -> Tubos de plástico estéril para centrífuga, 15 ml | D117: ='FluoroType MTBDR Ver 2.0'!kit_ordered -> 0
B118: ='FluoroType MTBDR Ver 2.0'!B34 -> 106422 | C118: ='FluoroType MTBDR Ver 2.0'!C34 -> Tubos para microcentrífuga, 2 ml | D118: ='FluoroType MTBDR Ver 2.0'!kit_ordered -> 0
B119: ='FluoroType MTBDR Ver 2.0'!B35 -> 106554 | C119: ='FluoroType MTBDR Ver 2.0'!C35 -> Puntas de filtro estériles, 0,1-10 μl | D119: ='FluoroType MTBDR Ver 2.0'!kit_ordered -> 0
B120: ='FluoroType MTBDR Ver 2.0'!B36 -> 106389 | C120: ='FluoroType MTBDR Ver 2.0'!C36 -> Puntas de filtro estériles, 20-200 μl | D120: ='FluoroType MTBDR Ver 2.0'!kit_ordered -> 0
B121: ='FluoroType MTBDR Ver 2.0'!B37 -> 106390 | C121: ='FluoroType MTBDR Ver 2.0'!C37 -> Puntas de filtro estériles, 100-1000 μl | D121: ='FluoroType MTBDR Ver 2.0'!kit_ordered -> 0
B122: ='FluoroType MTBDR Ver 2.0'!B38 -> 106444 | C122: ='FluoroType MTBDR Ver 2.0'!C38 -> Bolsas de plástico de 30 litros | D122: ='FluoroType MTBDR Ver 2.0'!kit_ordered -> 0
B123: ='FluoroType MTBDR Ver 2.0'!B39 -> 106415 | C123: ='FluoroType MTBDR Ver 2.0'!C39 -> Papel de filtro cuadrado, 580 mm | D123: ='FluoroType MTBDR Ver 2.0'!kit_ordered -> 0
B124: ='FluoroType MTBDR Ver 2.0'!B40 -> 106755 | C124: ='FluoroType MTBDR Ver 2.0'!C40 -> Toallas de papel | D124: ='FluoroType MTBDR Ver 2.0'!kit_ordered -> 0
B125: ='FluoroType MTBDR Ver 2.0'!B41 -> 106333 | C125: ='FluoroType MTBDR Ver 2.0'!C41 -> Etanol o isopropanol, 5 litros | D125: ='FluoroType MTBDR Ver 2.0'!kit_ordered -> 0
B126: MTB y MTB-RIF/INH de Cobas®
B127: ='MTB y MTB-RIF-INH de Cobas®'!B28 -> 0 | C127: ='MTB y MTB-RIF-INH de Cobas®'!C28 -> MTB de Cobas® | D127: ='MTB y MTB-RIF-INH de Cobas®'!kit_ordered -> 0
B128: ='MTB y MTB-RIF-INH de Cobas®'!B29 -> 0 | C128: ='MTB y MTB-RIF-INH de Cobas®'!C29 -> Kit de controles positivos de MTB de Cobas® | D128: ='MTB y MTB-RIF-INH de Cobas®'!kit_ordered -> 0
B129: ='MTB y MTB-RIF-INH de Cobas®'!B30 -> 0 | C129: ='MTB y MTB-RIF-INH de Cobas®'!C30 -> Kit de amortiguador para controles negativos 6800/8800 de Cobas® | D129: ='MTB y MTB-RIF-INH de Cobas®'!kit_ordered -> 0
B130: ='MTB y MTB-RIF-INH de Cobas®'!B31 -> 0 | C130: ='MTB y MTB-RIF-INH de Cobas®'!C31 -> Solución de inactivación microbiana de Cobas® | D130: ='MTB y MTB-RIF-INH de Cobas®'!kit_ordered -> 0
B131: ='MTB y MTB-RIF-INH de Cobas®'!B32 -> 0 | C131: ='MTB y MTB-RIF-INH de Cobas®'!C32 -> MTB-RIF/INH de Cobas® | D131: ='MTB y MTB-RIF-INH de Cobas®'!kit_ordered -> 0
B132: ='MTB y MTB-RIF-INH de Cobas®'!B33 -> 0 | C132: ='MTB y MTB-RIF-INH de Cobas®'!C33 -> Kit de controles positivos de MTB-RIF/INH de Cobas® | D132: ='MTB y MTB-RIF-INH de Cobas®'!kit_ordered -> 0
B133: ='MTB y MTB-RIF-INH de Cobas®'!B34 -> 0 | C133: ='MTB y MTB-RIF-INH de Cobas®'!C34 -> Kit de amortiguador para controles negativos 6800/8800 de Cobas® | D133: ='MTB y MTB-RIF-INH de Cobas®'!kit_ordered -> 0
B134: ='MTB y MTB-RIF-INH de Cobas®'!B35 -> 0 | C134: ='MTB y MTB-RIF-INH de Cobas®'!C35 -> Solución de inactivación microbiana de Cobas® | D134: ='MTB y MTB-RIF-INH de Cobas®'!kit_ordered -> 0
B135: ='MTB y MTB-RIF-INH de Cobas®'!B36 -> 106384 | C135: ='MTB y MTB-RIF-INH de Cobas®'!C36 -> Tubos de plástico estéril para centrífuga, 15 ml | D135: ='MTB y MTB-RIF-INH de Cobas®'!kit_ordered -> 0
B136: ='MTB y MTB-RIF-INH de Cobas®'!B37 -> 106422 | C136: ='MTB y MTB-RIF-INH de Cobas®'!C37 -> Tubos para microcentrífuga, 2 ml | D136: ='MTB y MTB-RIF-INH de Cobas®'!kit_ordered -> 0
B137: ='MTB y MTB-RIF-INH de Cobas®'!B38 -> 106554 | C137: ='MTB y MTB-RIF-INH de Cobas®'!C38 -> Puntas de filtro estériles, 0,1-10 μl | D137: ='MTB y MTB-RIF-INH de Cobas®'!kit_ordered -> 0
B138: ='MTB y MTB-RIF-INH de Cobas®'!B39 -> 106389 | C138: ='MTB y MTB-RIF-INH de Cobas®'!C39 -> Puntas de filtro estériles, 20-200 μl | D138: ='MTB y MTB-RIF-INH de Cobas®'!kit_ordered -> 0
B139: ='MTB y MTB-RIF-INH de Cobas®'!B40 -> 106390 | C139: ='MTB y MTB-RIF-INH de Cobas®'!C40 -> Puntas de filtro estériles, 100-1000 μl | D139: ='MTB y MTB-RIF-INH de Cobas®'!kit_ordered -> 0
B140: ='MTB y MTB-RIF-INH de Cobas®'!B41 -> 106444 | C140: ='MTB y MTB-RIF-INH de Cobas®'!C41 -> Bolsas de plástico de 30 litros | D140: ='MTB y MTB-RIF-INH de Cobas®'!kit_ordered -> 0
B141: ='MTB y MTB-RIF-INH de Cobas®'!B42 -> 106415 | C141: ='MTB y MTB-RIF-INH de Cobas®'!C42 -> Papel de filtro cuadrado, 580 mm | D141: ='MTB y MTB-RIF-INH de Cobas®'!kit_ordered -> 0
B142: ='MTB y MTB-RIF-INH de Cobas®'!B43 -> 106755 | C142: ='MTB y MTB-RIF-INH de Cobas®'!C43 -> Toallas de papel | D142: ='MTB y MTB-RIF-INH de Cobas®'!kit_ordered -> 0
B143: ='MTB y MTB-RIF-INH de Cobas®'!B44 -> 106333 | C143: ='MTB y MTB-RIF-INH de Cobas®'!C44 -> Etanol o isopropanol, 5 litros | D143: ='MTB y MTB-RIF-INH de Cobas®'!kit_ordered -> 0
B144: RT MTB y MTB RIF/INH de Abbott
B145: ='RT MTB y MTB RIF-INH de Abbott'!B28 -> 0 | C145: ='RT MTB y MTB RIF-INH de Abbott'!C28 -> Reactivo de inactivación | D145: ='RT MTB y MTB RIF-INH de Abbott'!E28 -> 0
B146: ='RT MTB y MTB RIF-INH de Abbott'!B29 -> 0 | C146: ='RT MTB y MTB RIF-INH de Abbott'!C29 -> Kit de ADN del sistema de preparación de muestras de Abbott | D146: ='RT MTB y MTB RIF-INH de Abbott'!E29 -> 0
B147: ='RT MTB y MTB RIF-INH de Abbott'!B30 -> 0 | C147: ='RT MTB y MTB RIF-INH de Abbott'!C30 -> Kit de reactivos de Abbott para la amplificación de M. tuberculosis en tiempo real | D147: ='RT MTB y MTB RIF-INH de Abbott'!E30 -> 0
B148: ='RT MTB y MTB RIF-INH de Abbott'!B31 -> 0 | C148: ='RT MTB y MTB RIF-INH de Abbott'!C31 -> Kit de controles de M. tuberculosis en tiempo real de Abbot | D148: ='RT MTB y MTB RIF-INH de Abbott'!E31 -> 0
B149: ='RT MTB y MTB RIF-INH de Abbott'!B32 -> 0 | C149: ='RT MTB y MTB RIF-INH de Abbott'!C32 -> Kit de reactivos de Abbott para la amplificación en tiempo real de la resistencia de M. tuberculosis a la rifampicina y la isoniazida | D149: ='RT MTB y MTB RIF-INH de Abbott'!E32 -> 0
B150: ='RT MTB y MTB RIF-INH de Abbott'!B33 -> 0 | C150: ='RT MTB y MTB RIF-INH de Abbott'!C33 -> Kit de controles en tiempo real de Abbot de la resistencia de M. tuberculosis a la rifampicina y la isoniazida | D150: ='RT MTB y MTB RIF-INH de Abbott'!E33 -> 0
B151: ='RT MTB y MTB RIF-INH de Abbott'!B34 -> 0 | C151: ='RT MTB y MTB RIF-INH de Abbott'!C34 -> Placas de reacción óptica de 96 pocillos de Abbott | D151: ='RT MTB y MTB RIF-INH de Abbott'!E34 -> 0
B152: ='RT MTB y MTB RIF-INH de Abbott'!B35 -> 0 | C152: ='RT MTB y MTB RIF-INH de Abbott'!C35 -> Placas de 96 pocillos y soporte de placas de Abbott | D152: ='RT MTB y MTB RIF-INH de Abbott'!E35 -> 0
B153: ='RT MTB y MTB RIF-INH de Abbott'!B36 -> 106384 | C153: ='RT MTB y MTB RIF-INH de Abbott'!C36 -> Tubos de plástico estéril para centrífuga, 15 ml | D153: ='RT MTB y MTB RIF-INH de Abbott'!E36 -> 0
B154: ='RT MTB y MTB RIF-INH de Abbott'!B37 -> 106422 | C154: ='RT MTB y MTB RIF-INH de Abbott'!C37 -> Tubos para microcentrífuga, 2 ml | D154: ='RT MTB y MTB RIF-INH de Abbott'!E37 -> 0
B155: ='RT MTB y MTB RIF-INH de Abbott'!B38 -> 106554 | C155: ='RT MTB y MTB RIF-INH de Abbott'!C38 -> Puntas de filtro estériles, 0,1-10 μl | D155: ='RT MTB y MTB RIF-INH de Abbott'!E38 -> 0
B156: ='RT MTB y MTB RIF-INH de Abbott'!B39 -> 106389 | C156: ='RT MTB y MTB RIF-INH de Abbott'!C39 -> Puntas de filtro estériles, 20-200 μl | D156: ='RT MTB y MTB RIF-INH de Abbott'!E39 -> 0
B157: ='RT MTB y MTB RIF-INH de Abbott'!B40 -> 106390 | C157: ='RT MTB y MTB RIF-INH de Abbott'!C40 -> Puntas de filtro estériles, 100-1000 μl | D157: ='RT MTB y MTB RIF-INH de Abbott'!E40 -> 0
B158: ='RT MTB y MTB RIF-INH de Abbott'!B41 -> 106444 | C158: ='RT MTB y MTB RIF-INH de Abbott'!C41 -> Bolsas de plástico de 30 litros | D158: ='RT MTB y MTB RIF-INH de Abbott'!E41 -> 0
B159: ='RT MTB y MTB RIF-INH de Abbott'!B42 -> 106415 | C159: ='RT MTB y MTB RIF-INH de Abbott'!C42 -> Papel de filtro cuadrado, 580 mm | D159: ='RT MTB y MTB RIF-INH de Abbott'!E42 -> 0
B160: ='RT MTB y MTB RIF-INH de Abbott'!B43 -> 106755 | C160: ='RT MTB y MTB RIF-INH de Abbott'!C43 -> Toallas de papel | D160: ='RT MTB y MTB RIF-INH de Abbott'!E43 -> 53
B161: ='RT MTB y MTB RIF-INH de Abbott'!B44 -> 106333 | C161: ='RT MTB y MTB RIF-INH de Abbott'!C44 -> Etanol o isopropanol, 5 litros | D161: ='RT MTB y MTB RIF-INH de Abbott'!E44 -> 0
B162: Cultivo en medios sólidos
B163: ='Proces+cultivo (sól. y líq.)'!C36 -> 106259 | C163: ='Proces+cultivo (sól. y líq.)'!D36 -> Medio de LJ para TB, 500 g | D163: ='Proces+cultivo (sól. y líq.)'!E36 -> 1
B164: ='Proces+cultivo (sól. y líq.)'!C37 -> 106268 | C164: ='Proces+cultivo (sól. y líq.)'!D37 -> Glicerol 99,5, 1 litro | D164: ='Proces+cultivo (sól. y líq.)'!E37 -> 1
B165: ='Proces+cultivo (sól. y líq.)'!C39 -> 106263 | C165: ='Proces+cultivo (sól. y líq.)'!D39 -> Fosfato de dihidrógeno potásico, peso medio: 136,09, 1 kg | D165: ='Proces+cultivo (sól. y líq.)'!E39 -> 1
B166: ='Proces+cultivo (sól. y líq.)'!C40 -> 106264 | C166: ='Proces+cultivo (sól. y líq.)'!D40 -> Sulfato de magnesio heptahidratado • 7H2O, peso medio: 246,48. 500 g | D166: ='Proces+cultivo (sól. y líq.)'!E40 -> 0.5
B167: ='Proces+cultivo (sól. y líq.)'!C41 -> 106265 | C167: ='Proces+cultivo (sól. y líq.)'!D41 -> Monihidrato de L-asparagina • H2O, peso medio 150,13, 250 g | D167: ='Proces+cultivo (sól. y líq.)'!E41 -> 0.1
B168: ='Proces+cultivo (sól. y líq.)'!C42 -> 106266 | C168: ='Proces+cultivo (sól. y líq.)'!D42 -> Tricitrato de magnesio nonahidratado • 9 H2O, 500 g | D168: ='Proces+cultivo (sól. y líq.)'!E42 -> 0.1
B169: ='Proces+cultivo (sól. y líq.)'!C43 -> 106267 | C169: ='Proces+cultivo (sól. y líq.)'!D43 -> Oxalato verde de malaquita, 100 g | D169: ='Proces+cultivo (sól. y líq.)'!E43 -> 0.1
B170: ='Proces+cultivo (sól. y líq.)'!C44 -> 106268 | C170: ='Proces+cultivo (sól. y líq.)'!D44 -> Glicerol 99,5, 1 litro | D170: ='Proces+cultivo (sól. y líq.)'!E44 -> 1
B171: Cultivo en medios líquidos
B172: ='Proces+cultivo (sól. y líq.)'!C49 -> 106026 | C172: ='Proces+cultivo (sól. y líq.)'!D49 -> Tubos BBL MGIT para usar en Bactec MGIT 960 (7ml), 100 tubos por paquete | D172: ='Proces+cultivo (sól. y líq.)'!F49 -> 0
B173: ='Proces+cultivo (sól. y líq.)'!C50 -> 106027 | C173: ='Proces+cultivo (sól. y líq.)'!D50 -> Kit de suplementos para BACTEC MGIT 960 (100 pruebas, PANTA y OADC combinadas) | D173: ='Proces+cultivo (sól. y líq.)'!F50 -> 0
B174: ='Proces+cultivo (sól. y líq.)'!C51 -> 106098 | C174: ='Proces+cultivo (sól. y líq.)'!D51 -> Tubos de cultivo de vidrio sódico-cálcido, 12 ml, tapones de rosca | D174: ='Proces+cultivo (sól. y líq.)'!F51 -> 0
B175: ='Proces+cultivo (sól. y líq.)'!C52 -> 106340 | C175: ='Proces+cultivo (sól. y líq.)'!D52 -> Tubos de plástico estéril para centrífuga, 50 ml | D175: ='Proces+cultivo (sól. y líq.)'!F52 -> 0
B176: ='Proces+cultivo (sól. y líq.)'!C53 -> 106394 | C176: ='Proces+cultivo (sól. y líq.)'!D53 -> Pipetas Pasteur de plástico desechables, estériles, envasadas individualmente | D176: ='Proces+cultivo (sól. y líq.)'!F53 -> 0
B177: ='Proces+cultivo (sól. y líq.)'!C54 -> 106714 | C177: ='Proces+cultivo (sól. y líq.)'!D54 -> Bucles desechables, 10 μL | D177: ='Proces+cultivo (sól. y líq.)'!F54 -> 0
B178: ='Proces+cultivo (sól. y líq.)'!C55 -> 106344 | C178: ='Proces+cultivo (sól. y líq.)'!D55 -> Crioviales estériles, 2 ml | D178: ='Proces+cultivo (sól. y líq.)'!F55 -> 0
B179: ='Proces+cultivo (sól. y líq.)'!C56 -> 106052 | C179: ='Proces+cultivo (sól. y líq.)'!D56 -> Caja de cartón para crioviales estériles, 2 ml | D179: ='Proces+cultivo (sól. y líq.)'!F56 -> 0
B180: ='Proces+cultivo (sól. y líq.)'!C57 -> 106823 | C180: ='Proces+cultivo (sól. y líq.)'!D57 -> Placas de Petri de plástico | D180: ='Proces+cultivo (sól. y líq.)'!F57 -> 0
B181: ='Proces+cultivo (sól. y líq.)'!C58 -> 106390/106398 | C181: ='Proces+cultivo (sól. y líq.)'!D58 -> Puntas estériles, libres de ADNasa y ARNasa, 100-1000 μl | D181: ='Proces+cultivo (sól. y líq.)'!F58 -> 0
B182: ='Proces+cultivo (sól. y líq.)'!C59 -> 106407 | C182: ='Proces+cultivo (sól. y líq.)'!D59 -> Agar de infusión de cerebro y corazón | D182: ='Proces+cultivo (sól. y líq.)'!F59 -> 0
B183: ='Proces+cultivo (sól. y líq.)'!C60 -> 106362 | C183: ='Proces+cultivo (sól. y líq.)'!D60 -> Lámina de plástico | D183: ='Proces+cultivo (sól. y líq.)'!F60 -> 0
B184: Procesamiento de muestras
B185: ='Proces+cultivo (sól. y líq.)'!C65 -> 106278 | C185: ='Proces+cultivo (sól. y líq.)'!D65 -> Fosfato de hidrógeno disódico anhidro, peso medio 141,96, 1 kg | D185: ='Proces+cultivo (sól. y líq.)'!F65 -> 0
B186: ='Proces+cultivo (sól. y líq.)'!C66 -> 106263 | C186: ='Proces+cultivo (sól. y líq.)'!D66 -> Fosfato de dihidrógeno potásico, peso medio: 136,09, 1 kg | D186: ='Proces+cultivo (sól. y líq.)'!F66 -> 0
B187: ='Proces+cultivo (sól. y líq.)'!C68 -> 106281 | C187: ='Proces+cultivo (sól. y líq.)'!D68 -> Hidróxido de sodio, peso medio: 40,00, pureza ≥ 98%, gránulos, 1 kg | D187: ='Proces+cultivo (sól. y líq.)'!F68 -> 0
B188: ='Proces+cultivo (sól. y líq.)'!C70 -> 106283 | C188: ='Proces+cultivo (sól. y líq.)'!D70 -> N-acetil-L-cisteína, peso medio: 163,19, pureza ≥ 99%, 100 g | D188: ='Proces+cultivo (sól. y líq.)'!F70 -> 0
B189: ='Proces+cultivo (sól. y líq.)'!C71 -> 106284 | C189: ='Proces+cultivo (sól. y líq.)'!D71 -> Citrato trisódico dihidratado · 2H2O, peso medio: 294,10, 1 kg | D189: ='Proces+cultivo (sól. y líq.)'!F71 -> 0
B190: ='Proces+cultivo (sól. y líq.)'!C72 -> 106281 | C190: ='Proces+cultivo (sól. y líq.)'!D72 -> Hidróxido de sodio, peso medio: 40,00, pureza ≥ 98%, gránulos, 1 kg | D190: ='Proces+cultivo (sól. y líq.)'!F72 -> 0
B191: ='Proces+cultivo (sól. y líq.)'!C74 -> 106340 | C191: ='Proces+cultivo (sól. y líq.)'!D74 -> Tubos de plástico estéril para centrífuga, 50 ml | D191: ='Proces+cultivo (sól. y líq.)'!F74 -> 0
B192: ='Proces+cultivo (sól. y líq.)'!C75 -> 106434 | C192: ='Proces+cultivo (sól. y líq.)'!D75 -> Pipetas Pasteur desechables, graduadas, no estériles, 155 mm | D192: ='Proces+cultivo (sól. y líq.)'!F75 -> 0
B193: Prueba de LJ de sensibilidad a los fármacos
B194: ='Prueba de resistencia LJ - 1.ª'!A23 -> 106268 | C194: ='Prueba de resistencia LJ - 1.ª'!B23 -> Glicerol 99,5 | D194: ='Prueba de resistencia LJ - 1.ª'!F23 -> 0
B195: ='Prueba de resistencia LJ - 1.ª'!A24 -> 106259 | C195: ='Prueba de resistencia LJ - 1.ª'!B24 -> Medio de LJ para TB, 500 g | D195: ='Prueba de resistencia LJ - 1.ª'!F24 -> 0
B196: ='Prueba de resistencia LJ - 1.ª'!A25 -> 106308 | C196: ='Prueba de resistencia LJ - 1.ª'!B25 -> Isoniazida (INH), para uso en laboratorio | D196: ='Prueba de resistencia LJ - 1.ª'!F25 -> 0
B197: ='Prueba de resistencia LJ - 1.ª'!A26 -> 106309 | C197: ='Prueba de resistencia LJ - 1.ª'!B26 -> Rifampicina (RMP), para uso en laboratorio | D197: ='Prueba de resistencia LJ - 1.ª'!F26 -> 0
B198: ='Prueba de resistencia LJ - 1.ª'!A27 -> 106311 | C198: ='Prueba de resistencia LJ - 1.ª'!B27 -> Dihidroestreptomicina (DHSM), para uso en laboratorio | D198: ='Prueba de resistencia LJ - 1.ª'!F27 -> 0
B199: ='Prueba de resistencia LJ - 1.ª'!A28 -> 106310 | C199: ='Prueba de resistencia LJ - 1.ª'!B28 -> Etambutol, para uso en laboratorio | D199: ='Prueba de resistencia LJ - 1.ª'!F28 -> 0
B200: ='Prueba de resistencia LJ - 1.ª'!A29 -> 106394 | C200: ='Prueba de resistencia LJ - 1.ª'!B29 -> Pipetas Pasteur de plástico desechables, estériles, envasadas individualmente | D200: ='Prueba de resistencia LJ - 1.ª'!F29 -> 0
B201: ='Prueba de resistencia LJ - 1.ª'!A30 -> 106344 | C201: ='Prueba de resistencia LJ - 1.ª'!B30 -> Crioviales estériles, 2 ml | D201: ='Prueba de resistencia LJ - 1.ª'!F30 -> 0
B202: ='Prueba de resistencia LJ - 2.ª'!A21 -> 106268 | C202: ='Prueba de resistencia LJ - 2.ª'!B21 -> Glicerol 99,5 | D202: ='Prueba de resistencia LJ - 2.ª'!F21 -> 0
... 81 more rows

Sheet Contraportada

Sheet LPA and Tips (hidden)
E3: P10 | F3: P20 | G3: P200 | H3: P1000 | I3: P1000 Long | J3: Pasteur pipette
D4: DNA Extraction
C5: A1 | D5: 500μl decontaminated specimen | I5: 1 per sample for adding and one per sample for discard supernatent
C6: A2 | D6: A-LYS - 100μl lysis buffer | G6: 1 per sample
C7: A4 | D7: Add A-NB - 100μl neutralisation buffer | G7: 1 per sample
C8: A5 | D8: 5μl Supernatent for PCR tube | E8: 1 per sample
D9: AMPLIFICATION
D10: Master mix - Reagent A (AM-A) | G10: 1 per batch
D11: Mastemix - Reagent AM-B | H11: 1 per batch
D12: To aliquote into PCR tubes | G12: 1 per batch
C13: PCR ROOM | D13: n x 5 μl DNA | E13: 1 per sample
D14: HYBRIDISATION
C15: To add | D15: DEN | G15: 1 per batch
D16: DNA/amplicon | G16: 1 per sample
D17: HYBRIDISATION | I17: 1 per sample | K17: Not needed for GT Blot 48 ?
D18: STR | I18: 1 per sample
D19: RINS | I19: 3 per batch
D20: WATER | I20: 3 per batch
D21: SUB (dilution / Fill) | G21: 1 per batch | I21: 1 per batch
D22: CONJ (Dilution / Fill) | G22: 1 per batch | I22: 1 per batch
C23: to remove | D23: HYBRIDISATION | J23: 1 per sample
D24: STR | J24: 1 per batch
D25: RINS | J25: 2 por lote
D26: WATER | J26: 1 per batch
D27: SUB | J27: 1 per batch
D28: CONJ | J28: 1 per batch
D30: Sample | E30: 2 | G30: 3 | I30: 4 | J30: 1
D31: Batch | G31: 5 | H31: 1 | I31: 8 | J31: 6
D39: Injectible water for LPA DST from specimen coming from liquid culture 0.1 ml / solid culture 0.3 ml

Sheet Lab items list (hidden)
A1: List of laboratories items | C1: Back to Lab
A3: Equipo | C3: Sustancias químicas | E3: Material fungible
B4: Microscopy laboratory | C4: Microscopy laboratory | E4: MIcroscopy laboratory
B5: Culture laboratory | C5: Culture laboratory | E5: Culture laboratory
B6: DST laboratory | C6: DST laboratory | E6: DST laboratory
B7: Molecular tests | C7: Molecular tests | E7: Molecular tests
C9: Number | D9: Costo por unidad (US$) | E9: Possible alternatives
B10: All prices indicated below are "free on board" (FOB) i.e. do not include shipping, insurance, import duties, local distributor margin for service and support, installation and maintenance. | E10: This column provides alternatives of equipment. If you wish to include them in your cost please copy the cells into the previous columns (B to D), so that the inputs (quantities and prices) are taken into account in the cost of the lab package.
A11: EQUIPMENT
A13: Ù Home
A16: Culture laboratory
B17: Indicated quantities are based on experience and estimated for a laboratory performing approximately 12,000 cultures. Quantities should be adjusted according to the actual workload and methods used.
B19: ITEMS (solid media) | C19: Number | D19: Costo por unidad (US$) | E19: Possible alternatives | F19: Number | G19: Costo por unidad (US$)
B20: Base Support for Laminar Air Flow Cabinet | C20: 2 | D20: 1024.725
B21: BSC, class I or II | C21: 2 | D21: 17761.9
B22: UPS for BSC | C22: 2 | D22: 1639.56
B23: Minishaker or Vortex | C23: 3 | D23: 478.205
B24: Optional : overhead stirrer, for at least 10 tubes (50 ml) | C24: 2 | D24: 1639.56
B25: Test tube rack 18/8 stainless steel, diameter 16 mm | C25: 5 | D25: 38.2564
B26: Test tube rack 18/8 stainless steel, diameter 35 mm | C26: 5 | D26: 31.4249
B27: Safety gas burner with glass chimney, footswitch for temporary ignition | C27: 2 | D27: 573.846 | E27: Electric micro incinerator for loops | F27: 1 | G27: 245.934
B28: Safety gas tubing with safety clamps on both ends, inner diameter 9mm | C28: 2 | D28: 40.989
B29: Inoculation loops, Platinum/Iridium wire, closed, 10 µl | C29: 6 | D29: 122.967 | E29: Disposable loops,100 x 10 pieces per pack | F29: 15 | G29: 81.978
B30: Loop holder | C30: 12 | D30: 9.5641
B31: Racks for loop holder | C31: 4 | D31: 16.3956
B32: Stainless steel bucket with lid, capacity 10L | C32: 5 | D32: 150.293
B33: Discard bottle, stainless steel or thick walled glass with screw cap | C33: 5 | D33: 4.0989
B34: Funnel, stainless steel 18/8, top diameter 120 mm | C34: 3 | D34: 18.44505
B35: Safety box, PP, approx 3 L, for all sharps | C35: 25 | D35: 4.23553
B36: Laboratory chair, disinfectable, 5 wheels, no arm rests | C36: 2 | D36: 245.934
B37: Incubator | C37: 2 | D37: 9290.84
B38: Centrifuge | C38: 1 | D38: 8880.95
B39: Centrifuge rotor | C39: 1 | D39: 1229.67
B40: Centrifuge rotor buckets | C40: 4 | D40: 409.89
B41: Tapas herméticas para aerosoles, para cucharones de rotor | C41: 4 | D41: 136.63
B42: Reducing adapter for 50 ml centrifuge tubes | C42: 4 | D42: 109.304
B43: Reducing adapter for 15 ml/12 ml centrifuge tubes | C43: 4 | D43: 109.304
B44: Autoclave | C44: 2 | D44: 15029.3
B45: Autoclave control unit for fully automated process control | C45: 2 | D45: 3005.86
B46: Exhaust air filtration system for autoclave | C46: 1 | D46: 3552.38
B47: Autoclave control unit for sterilization of liquids, including temperature probe | C47: 1 | D47: 3361.098
B48: Autoclave recooling system to shorten the time of liquid sterilization | C48: 1 | D48: 3415.75
B49: Wire baskets or stainless steel buckets for autoclave | C49: 2 | D49: 245.934
B50: Wire baskets with drip tray for autoclave | C50: 2 | D50: 478.205
B51: Hot-air oven | C51: 1 | D51: 3825.64
B52: Optional Ion exchanger cartridge, flow rate approx. 950 L/h | C52: 2 | D52: 1093.04
B53: Conductivity measuring device for laboratory grade water, digital | C53: 2 | D53: 437.216
B54: Ion exchanger resin for laboratory grade water, pack of 5x10 L resin | C54: 5 | D54: 81.978
B55: Water distiller | C55: 1 | D55: 1776.19
B56: Balloon high-density poyethylene (HDPE) with discharge cock, 30 liters | C56: 1 | D56: 81.978
B57: Balloon high-density poyethylene (HDPE) with discharge cock, 10 liters | C57: 4 | D57: 54.652
B58: Stop cock, winding for HDPE balloon | C58: 10 | D58: 4.440475
B59: Racks for test tubes, PP, autoclavable, 60 positions | C59: 12 | D59: 10.9304 | E59: Racks for 28 ml universal vials, PP, autoclavable, 48 positions | F59: 150 | G59: 10.9304
B60: Alarm clock / digital timer, 4 digits | C60: 1 | D60: 27.326
B61: Safety-Pipetting Ball, standard | C61: 10 | D61: 3.41575
B62: Automated pipetting aid, battery capacity for 8 h work, 200 g weight | C62: 2 | D62: 478.205 | E62: Set of mechanical pipetting aids: up to 0.2 ml; up to 2 ml and up to 10 ml | F62: 2 | G62: 68.315
B63: Pipette washer | C63: 1 | D63: 170.7875
B64: Transport boxes for specimens meeting WHO requirements of P650 package | C64: 10 | D64: 20.4945
B65: Electronic maxima-minima-thermometers, two channels, thin cable with sensor, battery, measuring range -50°C/+60°C | C65: 10 | D65: 27.326
B66: Electronic maxima-minima-thermometers, two channels, battery, measuring range -10°C/+50°C | C66: 10 | D66: 27.326
B67: Dispenser for 1000 ml bottle for liquid soap, for wall mounting, 1 per sink | C67: 2 | D67: 68.315
B68: Dispenser for hand towels, for wall mounting, 1 per sink | C68: 2 | D68: 47.8205
B69: Goggles, according to EN 166 and EN 170, frame adjustable, integrated side and top protection, total weight <40 g | C69: 5 | D69: 8.1978
B70: Emergency spill-kit | C70: 1 | D70: 34.1575
B71: First aid kit | C71: 1 | D71: 327.912
B72: Anemometer | C72: 1 | D72: 2049.45
B73: Analytical balance | C73: 1 | D73: 4782.05
B74: pH meter | C74: 1 | D74: 819.78
B75: Bunsen burner with fine tuning | C75: 1 | D75: 143.4615
B76: Tripod stand | C76: 1 | D76: 16.3956
B77: Water bath, capacity approximately 20 L | C77: 1 | D77: 1502.93
B78: Magnetic stirrer | C78: 1 | D78: 580.6775
B79: Magnetic stirring bars, round-shaped, polytetrafluorethylen (PTFE) coated. Set of 10: 1x 15 mm, 2X 20 mm, 2x 25 mm, 1x 30 mm, 2x 40 mm, 2x 50 mm length. | C79: 1 | D79: 68.315
B80: Sterile filling station of culture media, consisting of 1000 ml Squibb sedimentation funnels or cylindric dropping funnels, with tube for pressure exchange, stopcocks made of glass and Teflon stopper, outlet diameter 4 mm | C80: 3 | D80: 68.315
B81: Stative for Squibb sedimentation funnels consisting of plate, rod and clamp | C81: 3 | D81: 136.63
B82: Inspissator para la coagulación de medios de cultivo a base de huevo | C82: 1 | D82: 8197.8
B83: Refrigerator with freezing department | C83: 1 | D83: 819.78
B84: Refrigerator | C84: 2 | D84: 409.89
B85: Stainless steel funnel, short wide stem with air drain, diameter 150 mm on top | C85: 5 | D85: 13.663
B86: Swan neck bottles (PE flask, narrow neck with screw cap and water dispenser) set of one each 250, 500, 1000ml | C86: 5 | D86: 16.3956
B87: Bowl, plastic, 500 x 350 mm | C87: 5 | D87: 2.7326
B88: Erlenmeyer flasks, borosilicate 3.3, wide neck, graduated, autoclavable, 2000 ml | C88: 2 | D88: 34.1575
B89: Erlenmeyer flasks, borosilicate 3.3, wide neck, graduated, autoclavable, 1000 ml | C89: 10 | D89: 163.956
B90: Erlenmeyer flasks, borosilicate 3.3, wide neck, autoclavable, 500 ml | C90: 10 | D90: 81.978
B91: Erlenmeyer flasks, borosilicate 3.3, wide neck, graduated, autoclavable, 250 ml | C91: 10 | D91: 61.4835
B92: Erlenmeyer flasks, borosilicate 3.3, wide neck, graduated, 100 ml, pack. unit 10 | C92: 20 | D92: 54.652
B93: Erlenmeyer flasks, borosilicate 3.3, wide neck, graduated, autoclavable, 50 ml | C93: 20 | D93: 54.652
B94: Measuring cylinder, class A; TPX, autoclavable, 1000 ml, graduated 10.0 ml | C94: 5 | D94: 22.27069
B95: Measuring cylinder, class A; TPX, autoclavable, 500 ml, graduated 5.0 ml | C95: 5 | D95: 14.34615
B96: Measuring cylinder, class A; TPX, autoclavable, 250 ml, graduated 2.0 ml | C96: 5 | D96: 9.495785
B97: Measuring cylinder, class A; TPX, autoclavable, 100 ml, graduated 1.0 ml | C97: 5 | D97: 6.14835
B98: Measuring cylinder, class A; TPX, autoclavable, 50 ml, graduated 1.0 ml | C98: 5 | D98: 4.64542
B99: Thick-walled glass flask for preparation of culture medium; with flanged rim; 2500 ml | C99: 6 | D99: 58.7509
B100: Thick walled bottles, borosilicate 3.3, graduated, transparent, PP ring and cap, 2000 ml | C100: 3 | D100: 24.5934
B101: Thick walled bottles, borosilicate 3.3, graduated, transparent, PP ring and cap, 1000 ml | C101: 10 | D101: 14.34615
B102: Thick walled bottles, borosilicate 3.3, graduated, transparent, PP ring and cap, 500 ml; | C102: 5 | D102: 9.29084
B103: Thick walled bottles, borosilicate 3.3, graduated, amber, PP ring and cap, 11000 ml | C103: 3 | D103: 16.3956
B104: Thick walled bottles, borosilicate 3.3, graduated, amber, PP ring and cap, 1, 2000 ml | C104: 2 | D104: 27.326
B105: Screw caps with weld in PFTE membrane, 0.2 µm pore size, autoclavable to 140 °C | C105: 10 | D105: 3.00586
B106: Laboratory beaker, EFTE, low form with graduation and spout, 2000 ml | C106: 3 | D106: 136.63
B107: Laboratory beaker, EFTE, low form with graduation and spout, 1000 ml | C107: 3 | D107: 68.315
B108: Laboratory beaker, EFTE, low form with graduation and spout, 600 ml | C108: 10 | D108: 54.652
B109: Laboratory beaker, EFTE, low form with graduation and spout, 250 ml | C109: 10 | D109: 24.5934
B110: Laboratory beaker, EFTE, low form with graduation and spout, 100 ml | C110: 10 | D110: 15.0293
B111: Laboratory glassware drying rack, wall mounted; polystyrene; minimum 24 pegs | C111: 1 | D111: 184.4505
B112: Funnel, soda lime glass, plain, short stem, d = 75 mm | C112: 5 | D112: 6.8315
B113: Funnel, soda lime glass, plain, short stem, d = 125 mm | C113: 5 | D113: 10.9304
B114: Powder funnel , diameter 100mm | C114: 5 | D114: 10.9304
B115: Glass beads, massive glass, 5 mm diameter | C115: 2 | D115: 34.1575
B116: Glass beads, massive glass, 3 mm diameter | C116: 1 | D116: 34.1575
B117: Thick walled Pyrex tubes with ISO winding and autoclavable screw cap with tight gasket, 16x100 mm; package of 100 | C117: 10 | D117: 109.304
B118: Strainer, stainless steel, 1 grip, 2 eyes, diameter 20 cm | C118: 1 | D118: 21.8608
B119: Forceps; pointed; straight; 18/8 stainless steel, polished | C119: 5 | D119: 9.386481
B120: Optional: Laboratory washer-disinfector for laboratory glass, 2 baskets | C120: 1 | D120: 5055.31
B121: Separate water supply for deionised water with conductivity measure R 3/4" with digital display and hose-set for in-and outflow | C121: 1 | D121: 929.084
B122: Aqua purificator cabinet for two de-mineralising cartridges | C122: 1 | D122: 409.89
B123: Cost of equipment for culture laboratories (solid media) | D123: =SUMPRODUCT(C20:C122,D20:D122) -> 177698.382
B125: Additional equipment for liquid culture and/or DST
B126: ARTÍCULOS | C126: Number | D126: Costo por unidad (US$) | E126: Possible alternatives | F126: Number | G126: Costo por unidad (US$) | H126: Notes
B127: Automated analyser for liquid culture media with growth detection based on a fluorescent signal, 960 vials | C127: 2 | D127: 79655.29 | E127: Automated analyser for liquid culture media with growth detection based on a fluorescent signal, 120 vials | F127: 12 | G127: 36535
B128: Automated analyser for liquid culture media with growth detection based on a fluorescent signal, 960 vials | C128: 2 | D128: 38950 | H128: This is a FIND negotiated price for, please find the countries that can access to this special price in: http://www.finddiagnostics.org/about/what_we_do/successes/find-negotiated-prices/bactec-mgit.html
B129: Cost of additional equipment for culture and DST laboratories (liquid media) | D129: =SUMPRODUCT(D127:D128) -> 118605.29
A132: Drug-susceptibility testing (DST)
B133: Indicated quantities are based on experience and estimated for a laboratory performing 1000 first-line DST (and possibly 100 second-line DST) in addition to cultures. Quantities should be adjusted according to the actual workload and strategy used.
B135: ITEMS (solid media) | C135: Number | D135: Costo por unidad (US$)
B136: Desiccator, borosilicate glass, inner diameter 150-200 mm, lid with thread GL 32 | C136: 2 | D136: 273.26
B137: Membrane vacuum pump for desiccator, pressure endpoint < 20 mbar | C137: 1 | D137: 1093.04
B138: Woulff flask consisting of borosilicate glass, 1000 ml with thread GL 45 screw cap | C138: 1 | D138: 47.8205
B139: Vacuum tube, 3m | C139: 1 | D139: 27.326
B140: Precision balance | C140: 1 | D140: 1366.3
B141: Sterile filling station of culture media, consisting of 250 ml Squibb sedimentation funnels or cylindric dropping funnels, with tube for pressure exchange, stopcocks made of glass and Teflon stopper, outlet diameter 4 mm | C141: 7 | D141: 40.989
B142: Refrigerator with freezing department | C142: 1 | D142: 819.78
B143: Refrigerator | C143: 1 | D143: 409.89
B144: Optional: Chest freezer, 70 litres, temperature range: -18 °C to - 28 °C, complete with cassettes and racks | C144: 1 | D144: 1366.3
B145: Pipettes 1 ml, glass, graduated 0,01 ml, conformity certified, pack of 10 pieces | C145: 3 | D145: 27.326
B146: Pipettes 2 ml, glass, graduated 0,02 ml, conformity certified, pack of 10 pieces | C146: 3 | D146: 28.6923
B147: Pipettes 10 ml, glass, graduated 0,05 ml, conformity certified, pack of 10 pieces | C147: 3 | D147: 30.0586
B148: Pipettes 5 ml, glass, graduated 0,1 ml, conformity certified, pack of 10 pieces | C148: 3 | D148: 31.4249
B149: Pipette box aluminium with lid, autoclavable, suitable for 35 cm long pipettes | C149: 10 | D149: 136.63
B150: Cost of equipment for DST (solid media) | D150: =SUMPRODUCT(C136:C149,D136:D149) -> 7682.7049
A153: Molecular laboratory
A154: Line-Probe Assays
B155: Indicated quantities are based on experience and estimated for a laboratory performing approximately 1000 line-probe assays. Quantities should be adjusted according to the actual workload and strategy used.
B157: ARTÍCULOS | C157: Number | D157: Costo por unidad (US$) | E157: Possible alternatives | F157: Number | G157: Costo por unidad (US$)
B158: PCR-Workstation UV | C158: 1 | D158: 3142.49
B159: Termociclador | C159: 1 | D159: 4782.05
B160: Ultrasonic bath | C160: 1 | D160: 1639.56
B161: Thermoshaker for hybridization | C161: 1 | D161: 3005.86 | E161: Automate for hybridization, for 48 strips | F161: 1 | G161: 19674.72
B162: Optional 8-channel pipette, 5 - 50 µl | C162: 1 | D162: 587.509
B163: Optional 8-channel pipette, 50 - 300 µl | C163: 1 | D163: 587.509
B164: Optional Electrophoresis, horizontal mini gel system | C164: 1 | D164: 409.89
B165: Optional Power supply for electrophoresis | C165: 1 | D165: 478.205
B166: Optional UV-light illuminator at least 200 x 200 mm window | C166: 1 | D166: 1639.56
B167: Optional Microwave oven, approx. 900 W, inner volume minimum 20 litres | C167: 1 | D167: 819.78
B168: Racks, for tubes 1.5 - 2 ml, 10 mm diameter, at least 20 positions | C168: 10 | D168: 6.8315
B169: Centrifuge for standard reaction tubes | C169: 1 | D169: 2459.34
B170: Floating rack for 20 seats, diameter 10 mm, 2ml, for ultrasonic bath | C170: 2 | D170: 9.5641
B171: Deep freeze storage box with lid for 2 ml cryovials , autoclavable PP | C171: 10 | D171: 10.9304
B172: Deep freeze storage box with lid for 0.2ml PCR tubes, autoclavable PP. | C172: 10 | D172: 11.06703
B173: 1-channel pipette, variable from 0.5 - 10 µl, | C173: 3 | D173: 273.26
B174: 1-channel pipette, variable from 10 - 100 µl | C174: 4 | D174: 273.26
B175: 1-channel pipette, variable from 100 - 1000 µl, | C175: 4 | D175: 273.26
B176: Racks suitable for pipettes offered, at least 4 positions | C176: 4 | D176: 109.304
B177: Refrigerator with freezing department | C177: 1 | D177: 409.89
B178: Freezer | C178: 1 | D178: 546.52
B179: Stand for multichannel pipettes | C179: 1 | D179: 122.967
B180: Hand-dispenser pipette, 5 dosage steps, suited for combitips | C180: 2 | D180: 218.608
B181: Tripod stand for waste bags of 2 litres | C181: 5 | D181: 10.24725
B182: Cost of equipment for Molecular tests | D182: =SUMPRODUCT(C158:C181,D158:D181) -> 24870.07575
A184: Xpert
B185: ARTÍCULOS | C185: Number | D185: Costo por unidad (US$)
B186: Cost of one GeneXpert 4-module unit with laptop | C186: 1 | D186: 17500
B187: Shipment, per machine | D187: 1000
B188: Uninterruptible power source | D188: 500
B190: Printer | C190: 1 | D190: 200
D191: =+SUM(D186:D190) -> 19200
B193: Cartridge and maintenance for XPERT | C193: Number | D193: Costo por unidad (US$)
B194: The average number of tests per machine per day is 15. So, the maximum number of cartridges per year is 3750 (=15*250 working days). Add 10% more due to losses because of damage or incorrect use.
B195: Cartridge, cost per one cartridge | D195: 16.86
B196: Cost of equipment maintenance per GeneXpert machine per year (range US$ 500-1800) | D196: 1800
B198: For further information on Xpert please look at:
B199: http://whqlibdoc.who.int/hq/2011/WHO_HTM_TB_2011.12_eng.pdf
A202: CHEMICALS
A205: Culture laboratory, chemicals
B206: According to the SoP, prepare a batch of 1600 ml and adjust according to the workload
B208: ARTÍCULOS | C208: Number | D208: Costo por unidad (US$) | E208: Possible alternatives | F208: Number | G208: Costo por unidad (US$)
B209: Loewenstein-Jensen medium** | E209: Lowenstein-Jensen medium from components
B210: Ready-to-use mix, 500g | C210: 7 | D210: 134 | E210: Potassium dihydrogen phosphate, KH2PO4, MW: 136,09, 1 kg | F210: 1 | G210: 44
B211: Fresh eggs fed without growth factors (antibiotics), 25 per 1600 ml medium final volume | C211: 2000 | D211: local cost | E211: Magnesium sulfate-heptahydrate, MgSO4 • 7H2O, MW: 246,48. 500g | F211: 1 | G211: 21
B212: Glycerol >99% purity, 1 litre | C212: 2 | D212: 38 | E212: L-Asparagine-momohydrate, C4H8N2O3 • H2O, MW: 150.13, 250g | F212: 2 | G212: 86
E213: tri-Magnesium di-citrate nonahydrate, Mg3(C6H5O7)2 • 9 H2O, 500g | F213: 1 | G213: 36
B214: ** Prepare a batch of 1600 ml according to the SoP, to be dispensed in 6–8 ml volumes into sterile McCartney bottles or 16 x 125 mm screw-capped tubes. Estimate the number of tubes per batch (+/-260 tubes). | E214: Oxalato verde de malaquita, 100 g | F214: 1 | G214: 21
E215: glycerol >99% purity, 1 litre | F215: 2 | G215: 38
E216: fresh eggs fed without growth factors (antibiotics), 25 per 1600 ml medium final volume | F216: 2000 | G216: local cost
B218: ARTÍCULOS | C218: Number | D218: Costo por unidad (US$)
B219: Modified Ogawa medium
B220: Sodium-L-Glutamate-monohydrate, C5H8NNaO4 · H2O, 1 kg | C220: 1 | D220: 45
B221: Potassium dihydrogen phosphate, KH2PO4, MW: 136,09, 1 kg | C221: 1 | D221: 44
B222: Oxalato verde de malaquita, 100 g | C222: 1 | D222: 21
B223: Magnesium sulfate-heptahydrate, MgSO4 • 7H2O, MW: 246,48. 500g | C223: 1 | D223: 21
... 163 more rows
